{"text_format":"1","workbook":"xlsx","n_sheets":1,"sheets":["WARM RESULTS 708"],"not_rendered":{"charts":6,"images":2,"macros":1,"external_links":0,"defined_names":2,"comments":1,"pivot_tables":0},"unopened":[],"bounds":{"document_bytes":16777216,"sheet_cells":100000,"rows_first":2000,"rows_last":500,"rows_between":2000,"halvings":0,"cell_chars":16384,"cell_head_chars":4096},"cells_cut":0,"cells_raw":0,"read":"whole","date_system":"1900"}

{"sheet":"WARM RESULTS 708","index":0,"n_rows":350,"n_cols":89,"rows_kept":350,"cut":false,"hidden":false,"merged":[[111,29,111,32],[111,33,111,36],[112,29,113,29],[112,30,113,30],[112,31,113,31],[112,32,113,32],[101,56,101,66],[109,25,109,26],[109,29,109,30],[109,31,109,32],[112,33,113,33],[112,34,113,34],[112,35,113,35],[112,36,113,36],[112,25,113,25],[112,26,113,28],[89,25,89,28],[89,32,89,34],[85,25,85,28],[85,32,85,34],[72,30,72,31],[72,33,72,34],[73,30,73,31],[77,30,77,31],[77,33,77,34],[78,30,78,31],[76,30,76,31],[76,33,76,34],[73,33,73,34],[74,30,74,31],[74,33,74,34],[75,30,75,31],[75,33,75,34],[81,33,81,34],[78,33,78,34],[79,30,79,31],[86,32,86,34],[87,25,87,28],[84,25,84,28],[84,32,84,34],[80,30,80,31],[80,33,80,34],[81,30,81,31],[87,32,87,34],[88,25,88,28],[88,32,88,34],[67,25,67,27],[67,30,67,32],[67,33,67,35],[57,28,57,29],[63,25,63,27],[63,30,63,32],[63,33,63,35],[81,56,81,66],[110,25,110,26],[90,32,90,34],[92,29,92,32],[92,33,92,36],[94,25,94,28],[70,30,71,31],[70,32,71,32],[61,56,61,66],[95,25,95,28],[96,25,96,28],[79,33,79,34],[97,25,97,28],[98,25,98,28],[100,29,100,32],[100,33,100,36],[86,25,86,28],[60,39,61,49],[70,33,71,34],[70,35,71,35],[60,25,61,31],[66,25,66,27],[66,30,66,32],[41,30,41,31],[41,35,41,36],[62,48,63,48],[62,49,63,49],[45,34,46,36],[44,32,44,36],[45,32,46,33],[56,28,56,29],[65,25,65,27],[65,30,65,32],[65,33,65,35],[68,25,68,27],[68,30,68,32],[68,33,68,35],[64,25,64,27],[64,30,64,32],[64,33,64,35],[66,33,66,35],[36,31,36,32],[36,33,36,34],[36,35,36,36],[38,31,38,32],[38,33,38,34],[37,31,37,32],[37,33,37,34],[37,35,37,36],[39,31,39,32],[39,33,39,34],[39,35,39,36],[38,35,38,36],[35,31,35,32],[33,31,33,32],[29,56,29,66],[29,90,30,90],[29,91,30,91],[34,31,34,32],[34,33,34,34],[34,35,34,36],[33,33,33,34],[33,35,33,36],[35,33,35,34],[35,35,35,36],[29,115,30,115],[29,116,30,116],[32,31,32,32],[32,33,32,34],[32,35,32,36],[29,105,30,105],[29,106,30,108],[29,109,30,109],[29,110,30,110],[29,111,30,111],[29,101,30,101],[29,102,30,102],[29,104,30,104],[29,96,30,96],[0,5,0,6],[0,25,1,33],[0,39,1,49],[9,11,9,12],[9,15,9,17],[9,20,9,21],[3,21,5,21],[3,12,5,12],[3,20,5,20],[4,7,5,7],[4,8,5,8],[3,16,5,16],[3,17,5,17],[3,18,5,18],[3,13,5,13],[4,9,5,9],[4,10,5,10],[3,14,5,14],[3,15,5,15],[3,19,5,19],[1,55,2,67],[29,114,30,114],[29,112,30,112],[29,97,30,97],[29,98,30,98],[29,100,30,100],[29,92,30,94],[29,95,30,95],[6,70,6,73],[6,74,6,77],[9,56,9,66],[2,1,2,4],[2,48,3,48],[2,49,3,49],[3,5,3,7],[3,8,3,10],[3,11,5,11],[4,5,5,5],[4,6,5,6],[3,22,5,22],[3,23,6,23]]}
[null,"Move this sheet into a v9 or v10 Passivhaus Planning Package (PHPP) Excel file",null,null,null,null,null,null,null,null,null,null,null,null,null,null,null,null,null,null,null,null,null,"WARM Results Sheet v7.08",null,{"$f":"\"WARM PHPP Results Sheet - Main Results\"","v":"WARM PHPP Results Sheet - Main Results"},null,null,null,null,null,null,null,null,null,null,null,null,null,{"$f":"\"WARM PHPP Results Sheet - Windows - Page 1\"","v":"WARM PHPP Results Sheet - Windows - Page 1"},null,null,null,null,null,null,null,null,null,null,null,null,null,null,null,null,null,null,null,null,null,null,null,null,null,null,null,null,null,null,"Workings"]
[null,"PHPP  to read (select from drop-down)",null,null,null,null,null,null,null,null,null,null,null,null,null,null,null,null,null,null,null,null,null,{"$f":"\"© WARM \"&YEAR(TODAY())","v":"© WARM 2024"},null,null,null,null,null,null,null,null,null,null,null,null,null,null,null,null,null,null,null,null,null,null,null,null,null,null,null,null,null,null,null,{"$f":"\"WARM PHPP Results Sheet - Project Data\"","v":"WARM PHPP Results Sheet - Project Data"}]
[null,"This PHPP",null,null,null,null,null,null,null,null,null,"If referencing another PHPP, open it, then type filename.xlsx here",null,null,null,null,null,null,null,null,null,null,null,null,null,null,null,null,null,null,null,null,null,null,null,null,null,null,null,null,null,null,null,null,null,null,null,null,"Shading Winter","Shading Summer",null,null,null,null,null,null,null,null,null,null,null,null,null,null,null,null,null,null,null,null,"External workbook list",null,null,null,null,"This PHPP"]
[null,"Current Results",null,null,null,"Losses",null,null,"Gains",null,null,"Heating Energy Monthly","Heating Energy Annual","Heating Load","Summer Overheating","Primary Energy Demand","PER Demand","PER Generation","PER Passing?\n(Hidden)","Cooling Demand","Cooling Load","Vent Capacity","Form Heat Loss Factor","Change in Heating Energy Annual",null,"Treated floor area:",null,{"$f":"INDIRECT(CG43)","v":{"$error":"#REF!"}},"m2",null,null,null,null,null,null,null,null,null,null,"Ref","Qty","Orientation","Aw","Ag","g","Uw","Glass Type","Frame Type",null,null,"Gain kWh","Loss kWh","Net kWh","Net kWh/m2",null,null,null,null,null,null,null,null,null,null,null,null,null,null,null,null,"External workbook list",null,null,null,null,{"$f":"IF($L$3=\"\",\"\",$L$3)","v":"If referencing another PHPP, open it, then type filename.xlsx here"}]
[null,{"$f":"IF(AND(OR(INDEX(L11:L525,COUNTA(L11:L525))=\"\",INDEX(L11:L525,COUNTA(L11:L525))=$L$7),OR(INDEX(O11:O525,COUNTA(O11:O525))=\"\",INDEX(O11:O525,COUNTA(O11:O525))=$O$7),OR(INDEX(P11:P525,COUNTA(P11:P525))=\"\",INDEX(P11:P525,COUNTA(P11:P525))=$P$7),OR(INDEX(Q11:Q525,COUNTA(Q11:Q525))=\"\",INDEX(Q11:Q525,COUNTA(Q11:Q525))=$Q$7)),\"\",\"Warning! Last entry in revision history does not match current results.\")","v":{"$error":"#REF!"}},null,null,null,"Fabric","Vent","Total ","Solar ","Internal ","Total useful",null,null,null,null,null,null,null,null,null,null,null,null,null,null,null,null,null,null,null,null,null,null,null,null,null,null,null,0,{"$f":"IF(OR((INDIRECT($CG$111&($CK$321)+$AM5))=\"\",$AO5=\"\"),\"\",(INDIRECT($CG$111&($CK$321)+$AM5)))","v":{"$error":"#REF!"}},{"$f":"IF(ISBLANK(INDIRECT($CG$117&($CK$321)+$AM5)),\"\",INDIRECT($CG$117&($CK$321)+$AM5))","v":{"$error":"#REF!"}},{"$f":"IF(OR((INDIRECT($CG$107&($CK$321)+$AM5))=\"\",$AO5=\"\"),\"\",(INDIRECT($CG$107&($CK$321)+$AM5)))","v":{"$error":"#REF!"}},{"$f":"IF(OR((INDIRECT($CG$102&($CK$321)+$AM5))=\"\",$AO5=\"\"),\"\",(INDIRECT($CG$102&($CK$321)+$AM5)))","v":{"$error":"#REF!"}},{"$f":"(INDIRECT($CG$103&($CK$321)+$AM5))","v":{"$error":"#REF!"}},{"$f":"INDIRECT($CG$106&($CK$321)+$AM5)","v":{"$error":"#REF!"}},{"$f":"INDIRECT($CG$104&($CK$321)+$AM5)","v":{"$error":"#REF!"}},{"$f":"IF(OR((INDIRECT($CG$118&($CK$321)+$AM5))=\"\",$AO5=\"\"),\"\",(INDIRECT($CG$118&($CK$321)+$AM5)))","v":{"$error":"#REF!"}},{"$f":"IF(OR((INDIRECT($CG$119&($CK$321)+$AM5))=\"\",$AO5=\"\"),\"\",(INDIRECT($CG$119&($CK$321)+$AM5)))","v":{"$error":"#REF!"}},{"$f":"IF(OR((INDIRECT($CG$136&($CK$322)+$AM5))=\"\",$AO5=\"\"),\"\",(INDIRECT($CG$136&($CK$322)+$AM5)))","v":{"$error":"#REF!"}},{"$f":"IF(OR((INDIRECT($CG$137&($CK$322)+$AM5))=\"\",$AO5=\"\"),\"\",(INDIRECT($CG$137&($CK$322)+$AM5)))","v":{"$error":"#REF!"}},{"$f":"IF($AN5=\"\",\"\",$CK$122*$CK$123*INDIRECT($CG$120&($CK$322)+$AM5))","v":{"$error":"#REF!"}},{"$f":"IF($AN5=\"\",\"\",INDIRECT($CG$102&($CK$321)+$AM5)*INDIRECT($CG$104&($CK$321)+$AM5)*$CK$109)","v":{"$error":"#REF!"}},{"$f":"IF($AO5=\"\",\"\",AY5-AZ5)","v":{"$error":"#REF!"}},{"$f":"IF($AO5=\"\",\"\",(AY5-AZ5)/$AB$4)","v":{"$error":"#REF!"}},null,"U-Value Build-Ups"]
[null,null,null,null,null,null,null,null,null,null,null,null,null,null,null,null,null,null,null,null,null,null,null,null,null,"Monthly Method Heat Balance - kWh/(m2.yr)",null,null,null,null,null,null,null,null,null,null,null,null,1,{"$error":"#REF!"},{"$error":"#REF!"},{"$error":"#REF!"},{"$error":"#REF!"},{"$error":"#REF!"},{"$error":"#REF!"},{"$error":"#REF!"},{"$error":"#REF!"},{"$error":"#REF!"},{"$error":"#REF!"},{"$error":"#REF!"},{"$error":"#REF!"},{"$error":"#REF!"},{"$error":"#REF!"},{"$error":"#REF!"},null,null,null,null,null,null,null,null,null,null,null,null,null,null,null,null,"Shading Classification %",null,null,null,null,null,null,null,null,"Wall Areas by Orientation m2"]
[null,null,null,null,{"$f":"TODAY()","v":"2024-04-30"},{"$f":"$CK$245","v":{"$error":"#REF!"}},{"$f":"$CK$244","v":{"$error":"#REF!"}},{"$f":"$CK$248","v":{"$error":"#REF!"}},{"$f":"$CK$247","v":{"$error":"#REF!"}},{"$f":"$CK$246","v":{"$error":"#REF!"}},{"$f":"$CK$249","v":{"$error":"#REF!"}},{"$f":"IF($CK$25=0,\"\",$CK$25)","v":{"$error":"#REF!"}},{"$f":"IF($CK$250=0,\"\",$CK$250)","v":{"$error":"#REF!"}},{"$f":"$CK$306","v":{"$error":"#REF!"}},{"$f":"$CK$310","v":{"$error":"#REF!"}},{"$f":"IF($CK$26=0,\"\",$CK$26)","v":{"$error":"#REF!"}},{"$f":"IF($CK$28=0,\"\",$CK$28)","v":{"$error":"#REF!"}},{"$f":"$CK$29","v":{"$error":"#REF!"}},{"$f":"CK30","v":{"$error":"#REF!"}},{"$f":"$CK$308","v":{"$error":"#REF!"}},{"$f":"$CK$309","v":{"$error":"#REF!"}},{"$f":"$CK$307","v":{"$error":"#REF!"}},{"$f":"IFERROR($CK$67/$CK$43,\"\")","v":""},null,null,null,"Losses","Gains",null,null,null,null,null,null,null,null,null,null,2,{"$error":"#REF!"},{"$error":"#REF!"},{"$error":"#REF!"},{"$error":"#REF!"},{"$error":"#REF!"},{"$error":"#REF!"},{"$error":"#REF!"},{"$error":"#REF!"},{"$error":"#REF!"},{"$error":"#REF!"},{"$error":"#REF!"},{"$error":"#REF!"},{"$error":"#REF!"},{"$error":"#REF!"},{"$error":"#REF!"},null,"Choose from drop-down menu in \"building assembly description\"",null,null,null,null,null,null,null,null,null,"Yellow = input required",null,null,null,null,"Winter",null,null,null,"Summer",null,null,null,null,"North",{"$f":"SUMIFS(INDIRECT(CG70),INDIRECT(CG71),\"North\",INDIRECT(CG68),8,INDIRECT(CG69),\">0\")","v":{"$error":"#REF!"}},null,"Form Heat Loss Factor"]
[null,"Revision History",null,null,null,null,null,null,null,null,null,null,null,null,null,null,null,null,null,null,null,null,null,null,null,{"$f":"IF(AA8<0.1,\"\",\"Windows\")","v":{"$error":"#REF!"}},{"$f":"CK215/$AB$4","v":{"$error":"#REF!"}},null,null,null,null,null,null,null,null,null,null,null,3,{"$error":"#REF!"},{"$error":"#REF!"},{"$error":"#REF!"},{"$error":"#REF!"},{"$error":"#REF!"},{"$error":"#REF!"},{"$error":"#REF!"},{"$error":"#REF!"},{"$error":"#REF!"},{"$error":"#REF!"},{"$error":"#REF!"},{"$error":"#REF!"},{"$error":"#REF!"},{"$error":"#REF!"},{"$error":"#REF!"},null,null,null,null,null,null,null,null,null,null,null,null,null,null,null,null,"Very high",0,"to",45,"Very high",0,"to",35,null,"East",{"$f":"SUMIFS(INDIRECT(CG70),INDIRECT(CG71),\"East\",INDIRECT(CG68),8,INDIRECT(CG69),\">0\")","v":{"$error":"#REF!"}},null,"Wall",{"$f":"SUM(CK44:CK47,CK49:CK51)/CK43","v":{"$error":"#REF!"}}]
[null,null,"Kept?",null,null,null,null,null,null,null,null,null,null,null,null,null,null,null,null,null,null,null,null,null,null,{"$f":"IF(AA9<0.1,\"\",\"Roof\")","v":{"$error":"#REF!"}},{"$f":"CK210/$AB$4","v":{"$error":"#REF!"}},null,null,null,null,null,null,null,null,null,null,null,4,{"$error":"#REF!"},{"$error":"#REF!"},{"$error":"#REF!"},{"$error":"#REF!"},{"$error":"#REF!"},{"$error":"#REF!"},{"$error":"#REF!"},{"$error":"#REF!"},{"$error":"#REF!"},{"$error":"#REF!"},{"$error":"#REF!"},{"$error":"#REF!"},{"$error":"#REF!"},{"$error":"#REF!"},{"$error":"#REF!"},null,"Assembly no.","Building assembly description",null,null,null,null,null,null,null,null,null,null,null,"Interior insulation?",null,"High",45,"to",55,"High",35,"to",50,null,"South",{"$f":"SUMIFS(INDIRECT(CG70),INDIRECT(CG71),\"South\",INDIRECT(CG68),8,INDIRECT(CG69),\">0\")","v":{"$error":"#REF!"}},null,"Roof",{"$f":"(CK52+CK48)/CK43","v":{"$error":"#REF!"}}]
["Version","Description","Y/N","Who","Date",null,"kWh/m2yr",null,null,"kWh/m2yr",null,"kWh/m2.yr",null,"W/m2","%","kWh/m2.yr",null,null,null,"kWh/m2.yr","W/m2",null,"-","kWh/m2.yr",null,{"$f":"IF(AA10<0.1,\"\",\"Floor\")","v":{"$error":"#REF!"}},{"$f":"CK211/$AB$4","v":{"$error":"#REF!"}},null,null,null,null,null,null,null,null,null,null,null,5,{"$error":"#REF!"},{"$error":"#REF!"},{"$error":"#REF!"},{"$error":"#REF!"},{"$error":"#REF!"},{"$error":"#REF!"},{"$error":"#REF!"},{"$error":"#REF!"},{"$error":"#REF!"},{"$error":"#REF!"},{"$error":"#REF!"},{"$error":"#REF!"},{"$error":"#REF!"},{"$error":"#REF!"},{"$error":"#REF!"},null,{"$f":"IF($BE10=\"\",\"\",INDEX(INDIRECT($CG$152),MATCH($BE10,INDIRECT($CG$151),0)))","v":""},null,null,null,null,null,null,null,null,null,null,null,null,{"$f":"IF($BE10=\"\",\"\",IF(ISBLANK(INDEX(INDIRECT($CG$153),MATCH($BE10,INDIRECT($CG$151),0))),\"\",INDEX(INDIRECT($CG$153),MATCH($BE10,INDIRECT($CG$151),0))))","v":""},null,"Medium",55,"to",75,"Medium",50,"to",70,null,"West",{"$f":"SUMIFS(INDIRECT(CG70),INDIRECT(CG71),\"West\",INDIRECT(CG68),8,INDIRECT(CG69),\">0\")","v":{"$error":"#REF!"}},null,"Floor",{"$f":"CK53/CK43","v":{"$error":"#REF!"}}]
[0,null,null,null,null,null,null,null,null,null,null,null,null,null,null,null,null,null,null,null,null,null,null,0,null,{"$f":"IF(AA11<0.1,\"\",\"Wall\")","v":{"$error":"#REF!"}},{"$f":"(CK208+CK209)/$AB$4","v":{"$error":"#REF!"}},null,null,null,null,null,null,null,null,null,null,null,6,{"$error":"#REF!"},{"$error":"#REF!"},{"$error":"#REF!"},{"$error":"#REF!"},{"$error":"#REF!"},{"$error":"#REF!"},{"$error":"#REF!"},{"$error":"#REF!"},{"$error":"#REF!"},{"$error":"#REF!"},{"$error":"#REF!"},{"$error":"#REF!"},{"$error":"#REF!"},{"$error":"#REF!"},{"$error":"#REF!"},null,null,null,null,null,null,null,null,null,null,null,null,null,null,null,null,"Low",75,"to",85,"Low",70,"to",80,null,null,null,null,"Other",{"$f":"(CK54+CK55+CK56+(SUM(SUMIF(INDIRECT(CG73),{12,13,14},INDIRECT(CG74)))))/AB4","v":{"$error":"#REF!"}}]
[{"$f":"$A11+1","v":1},null,null,null,null,null,null,null,null,null,null,null,null,null,null,null,null,null,null,null,null,null,null,{"$f":"M12-M11","v":0},null,{"$f":"IF(AA12<0.1,\"\",\"Other\")","v":{"$error":"#REF!"}},{"$f":"(CK212+CK213+CK214)/$AB$4","v":{"$error":"#REF!"}},null,null,null,null,null,null,null,null,null,null,null,7,{"$error":"#REF!"},{"$error":"#REF!"},{"$error":"#REF!"},{"$error":"#REF!"},{"$error":"#REF!"},{"$error":"#REF!"},{"$error":"#REF!"},{"$error":"#REF!"},{"$error":"#REF!"},{"$error":"#REF!"},{"$error":"#REF!"},{"$error":"#REF!"},{"$error":"#REF!"},{"$error":"#REF!"},{"$error":"#REF!"},null,null,null,null,null,"     Heat transfer resistance [m²K/W]       interior Rsi :",{"$f":"IF($BE10=\"\",\"\",IF(ISBLANK(INDEX(INDIRECT($CG$154),MATCH($BE10,INDIRECT($CG$151),0)+2)),\"\",INDEX(INDIRECT($CG$154),MATCH($BE10,INDIRECT($CG$151),0)+2)))","v":""},null,null,null,null,null,null,null,null,null,"Very low",85,"to",100,"Very low",80,"to",100,null,null,null,null,"Total",{"$f":"SUM(CF8:CF11)","v":{"$error":"#REF!"}}]
[2,null,null,null,null,null,null,null,null,null,null,null,null,null,null,null,null,null,null,null,null,null,null,0,null,{"$f":"IF(AA13<0.1,\"\",\"Doors\")","v":{"$error":"#REF!"}},{"$f":"CK216/$AB$4","v":{"$error":"#REF!"}},null,null,null,null,null,null,null,null,null,null,null,8,{"$error":"#REF!"},{"$error":"#REF!"},{"$error":"#REF!"},{"$error":"#REF!"},{"$error":"#REF!"},{"$error":"#REF!"},{"$error":"#REF!"},{"$error":"#REF!"},{"$error":"#REF!"},{"$error":"#REF!"},{"$error":"#REF!"},{"$error":"#REF!"},{"$error":"#REF!"},{"$error":"#REF!"},{"$error":"#REF!"},null,null,null,null,null,"exterior Rse :",{"$f":"IF($BE10=\"\",\"\",IF(ISBLANK(INDEX(INDIRECT($CG$155),MATCH($BE10,INDIRECT($CG$151),0)+3)),\"\",INDEX(INDIRECT($CG$155),MATCH($BE10,INDIRECT($CG$151),0)+3)))","v":""}]
[3,null,null,null,null,null,null,null,null,null,null,null,null,null,null,null,null,null,null,null,null,null,null,0,null,{"$f":"IF(ABS(AA14)<0.1,\"\",\"Thermal Bridges\")","v":{"$error":"#REF!"}},{"$f":"((IF(ISNUMBER(CK217),CK217,0))+(IF(ISNUMBER(CK218),CK218,0))+(IF(ISNUMBER(CK219),CK219,0)))/AB4","v":{"$error":"#REF!"}},null,null,null,null,null,null,null,null,null,null,null,9,{"$error":"#REF!"},{"$error":"#REF!"},{"$error":"#REF!"},{"$error":"#REF!"},{"$error":"#REF!"},{"$error":"#REF!"},{"$error":"#REF!"},{"$error":"#REF!"},{"$error":"#REF!"},{"$error":"#REF!"},{"$error":"#REF!"},{"$error":"#REF!"},{"$error":"#REF!"},{"$error":"#REF!"},{"$error":"#REF!"}]
[4,null,null,null,null,null,null,null,null,null,null,null,null,null,null,null,null,null,null,null,null,null,null,0,null,{"$f":"IF(AA15<0.1,\"\",\"Infiltration\")","v":{"$error":"#REF!"}},{"$f":"CK220*CK221*CK222*CK223/AB4","v":{"$error":"#REF!"}},null,null,null,null,null,null,null,null,null,null,null,10,{"$error":"#REF!"},{"$error":"#REF!"},{"$error":"#REF!"},{"$error":"#REF!"},{"$error":"#REF!"},{"$error":"#REF!"},{"$error":"#REF!"},{"$error":"#REF!"},{"$error":"#REF!"},{"$error":"#REF!"},{"$error":"#REF!"},{"$error":"#REF!"},{"$error":"#REF!"},{"$error":"#REF!"},{"$error":"#REF!"},null,"Area section 1",null,null,"l [W/(mK)]","Area section 2 (optional)",null,null,"l [W/(mK)]","Area section 3 (optional)",null,null,"l [W/(mK)]",null,"Thickness [mm]"]
[5,null,null,null,null,null,null,null,null,null,null,null,null,null,null,null,null,null,null,null,null,null,null,0,null,{"$f":"IF(AA16<0.1,\"\",\"Ventilation\")","v":{"$error":"#REF!"}},{"$f":"CK225-AA15","v":{"$error":"#REF!"}},null,null,null,null,null,null,null,null,null,null,null,11,{"$error":"#REF!"},{"$error":"#REF!"},{"$error":"#REF!"},{"$error":"#REF!"},{"$error":"#REF!"},{"$error":"#REF!"},{"$error":"#REF!"},{"$error":"#REF!"},{"$error":"#REF!"},{"$error":"#REF!"},{"$error":"#REF!"},{"$error":"#REF!"},{"$error":"#REF!"},{"$error":"#REF!"},{"$error":"#REF!"},"1.",{"$f":"IF($BE$10=\"\",\"\",IF(ISBLANK(INDEX(INDIRECT($CG$156),MATCH($BE$10,INDIRECT($CG$151),0)+5+$BC16)),\"\",INDEX(INDIRECT($CG$156),MATCH($BE$10,INDIRECT($CG$151),0)+5+$BC16)))","v":""},null,null,{"$f":"IF($BE$10=\"\",\"\",IF(ISBLANK(INDEX(INDIRECT($CG$157),MATCH($BE$10,INDIRECT($CG$151),0)+5+$BC16)),\"\",INDEX(INDIRECT($CG$157),MATCH($BE$10,INDIRECT($CG$151),0)+5+$BC16)))","v":""},{"$f":"IF($BE$10=\"\",\"\",IF(ISBLANK(INDEX(INDIRECT($CG$158),MATCH($BE$10,INDIRECT($CG$151),0)+5+$BC16)),\"\",INDEX(INDIRECT($CG$158),MATCH($BE$10,INDIRECT($CG$151),0)+5+$BC16)))","v":""},null,null,{"$f":"IF($BE$10=\"\",\"\",IF(ISBLANK(INDEX(INDIRECT($CG$159),MATCH($BE$10,INDIRECT($CG$151),0)+5+$BC16)),\"\",INDEX(INDIRECT($CG$159),MATCH($BE$10,INDIRECT($CG$151),0)+5+$BC16)))","v":""},{"$f":"IF($BE$10=\"\",\"\",IF(ISBLANK(INDEX(INDIRECT($CG$160),MATCH($BE$10,INDIRECT($CG$151),0)+5+$BC16)),\"\",INDEX(INDIRECT($CG$160),MATCH($BE$10,INDIRECT($CG$151),0)+5+$BC16)))","v":""},null,null,{"$f":"IF($BE$10=\"\",\"\",IF(ISBLANK(INDEX(INDIRECT($CG$161),MATCH($BE$10,INDIRECT($CG$151),0)+5+$BC16)),\"\",INDEX(INDIRECT($CG$161),MATCH($BE$10,INDIRECT($CG$151),0)+5+$BC16)))","v":""},null,{"$f":"IF($BE$10=\"\",\"\",IF(ISBLANK(INDEX(INDIRECT($CG$162),MATCH($BE$10,INDIRECT($CG$151),0)+5+$BC16)),\"\",INDEX(INDIRECT($CG$162),MATCH($BE$10,INDIRECT($CG$151),0)+5+$BC16)))","v":""},null,"Workbook ref used",null,null,null,null,{"$f":"IF(B3=\"This PHPP\",\"\",B3)","v":""}]
[6,null,null,null,null,null,null,null,null,null,null,null,null,null,null,null,null,null,null,null,null,null,null,0,null,{"$f":"IF(AB17<0.1,\"\",\"Solar\")","v":{"$error":"#REF!"}},null,{"$f":"CK227*CK224","v":{"$error":"#REF!"}},null,null,null,null,null,null,null,null,null,null,12,{"$error":"#REF!"},{"$error":"#REF!"},{"$error":"#REF!"},{"$error":"#REF!"},{"$error":"#REF!"},{"$error":"#REF!"},{"$error":"#REF!"},{"$error":"#REF!"},{"$error":"#REF!"},{"$error":"#REF!"},{"$error":"#REF!"},{"$error":"#REF!"},{"$error":"#REF!"},{"$error":"#REF!"},{"$error":"#REF!"},"2.","",null,null,"","",null,null,"","",null,null,"",null,"",null,"Version from Data sheet",null,null,null,null,{"$f":"IFERROR(CK22,CK23)","v":{"$error":"#REF!"}}]
[7,null,null,null,null,null,null,null,null,null,null,null,null,null,null,null,null,null,null,null,null,null,null,0,null,{"$f":"IF(AB18<0.1,\"\",\"Internal\")","v":{"$error":"#REF!"}},null,{"$f":"CK226*CK224","v":{"$error":"#REF!"}},null,null,null,null,null,null,null,null,null,null,13,{"$error":"#REF!"},{"$error":"#REF!"},{"$error":"#REF!"},{"$error":"#REF!"},{"$error":"#REF!"},{"$error":"#REF!"},{"$error":"#REF!"},{"$error":"#REF!"},{"$error":"#REF!"},{"$error":"#REF!"},{"$error":"#REF!"},{"$error":"#REF!"},{"$error":"#REF!"},{"$error":"#REF!"},{"$error":"#REF!"},"3.","",null,null,"","",null,null,"","",null,null,"",null,"",null,"Version assumed",null,null,null,null,{"$f":"IF((BX17=BW20),1,IF(BX17=BY20,2,IF(OR(BX17=CA20,BX17=CA19,BX17=CA18),3)))","v":{"$error":"#REF!"}},"offet:",{"$f":"(BX18-1)*2","v":{"$error":"#REF!"}},10.6]
[8,null,null,null,null,null,null,null,null,null,null,null,null,null,null,null,null,null,null,null,null,null,null,0,null,{"$f":"IF(AK29=\"Yes\",\"\",\"Heating\")","v":"Heating"},null,{"$f":"IF(AK29=\"Yes\",0,(AA20-AB17-AB18))","v":{"$error":"#REF!"}},null,null,null,null,null,null,null,null,null,null,14,{"$error":"#REF!"},{"$error":"#REF!"},{"$error":"#REF!"},{"$error":"#REF!"},{"$error":"#REF!"},{"$error":"#REF!"},{"$error":"#REF!"},{"$error":"#REF!"},{"$error":"#REF!"},{"$error":"#REF!"},{"$error":"#REF!"},{"$error":"#REF!"},{"$error":"#REF!"},{"$error":"#REF!"},{"$error":"#REF!"},"4.","",null,null,"","",null,null,"","",null,null,"",null,"",null,null,null,null,null,null,null,null,null,10.4]
[9,null,null,null,null,null,null,null,null,null,null,null,null,null,null,null,null,null,null,null,null,null,null,0,null,"Totals",{"$f":"SUM(AA8:AA19)","v":{"$error":"#REF!"}},{"$f":"SUM(AB8:AB19)","v":{"$error":"#REF!"}},null,null,null,null,null,null,null,null,null,null,15,{"$error":"#REF!"},{"$error":"#REF!"},{"$error":"#REF!"},{"$error":"#REF!"},{"$error":"#REF!"},{"$error":"#REF!"},{"$error":"#REF!"},{"$error":"#REF!"},{"$error":"#REF!"},{"$error":"#REF!"},{"$error":"#REF!"},{"$error":"#REF!"},{"$error":"#REF!"},{"$error":"#REF!"},{"$error":"#REF!"},"5.","",null,null,"","",null,null,"","",null,null,"",null,"",null,"PHPP version",null,null,null,9.3000000000000007,null,9.6,null,10.3]
[10,null,null,null,null,null,null,null,null,null,null,null,null,null,null,null,null,null,null,null,null,null,null,0,null,null,null,null,null,null,null,null,null,null,null,null,null,null,16,{"$error":"#REF!"},{"$error":"#REF!"},{"$error":"#REF!"},{"$error":"#REF!"},{"$error":"#REF!"},{"$error":"#REF!"},{"$error":"#REF!"},{"$error":"#REF!"},{"$error":"#REF!"},{"$error":"#REF!"},{"$error":"#REF!"},{"$error":"#REF!"},{"$error":"#REF!"},{"$error":"#REF!"},{"$error":"#REF!"},"6.","",null,null,"","",null,null,"","",null,null,"",null,"",null,null,null,null,null,"TAB","CELL","TAB","CELL","TAB","CELL",null,null,null,null,"Reference",null,null,null,"Answer"]
[null,null,null,null,null,null,null,null,null,null,null,null,null,null,null,null,null,null,null,null,null,null,null,null,null,null,null,null,null,null,null,null,null,null,null,null,null,null,17,{"$error":"#REF!"},{"$error":"#REF!"},{"$error":"#REF!"},{"$error":"#REF!"},{"$error":"#REF!"},{"$error":"#REF!"},{"$error":"#REF!"},{"$error":"#REF!"},{"$error":"#REF!"},{"$error":"#REF!"},{"$error":"#REF!"},{"$error":"#REF!"},{"$error":"#REF!"},{"$error":"#REF!"},{"$error":"#REF!"},"7.","",null,null,"","",null,null,"","",null,null,"",null,"",null,"Workbook version",null,null,null,"Brief instructions","D3",null,null,"Brief instructions","D3",null,null,null,null,{"$f":"IF($BX$16=\"\",\"'\",\"'[\"&$BX$16&\"]\")&$BW$22&\"'!\"&$BX$22","v":"'Brief instructions'!D3"},null,null,null,{"$f":"IF(ISNUMBER(VALUE(MID(INDIRECT(CG22),9,4))),VALUE(MID(INDIRECT(CG22),9,4)),VALUE(MID(INDIRECT(CG22),9,3)))","v":{"$error":"#REF!"}}]
[null,"How to Insert The WARM Results Sheet into a PHPP",null,null,null,null,null,null,null,null,null,null,null,null,null,null,null,null,null,null,null,null,null,null,null,"Form Heat Loss",null,null,null,null,null,null,null,null,null,null,null,null,18,{"$error":"#REF!"},{"$error":"#REF!"},{"$error":"#REF!"},{"$error":"#REF!"},{"$error":"#REF!"},{"$error":"#REF!"},{"$error":"#REF!"},{"$error":"#REF!"},{"$error":"#REF!"},{"$error":"#REF!"},{"$error":"#REF!"},{"$error":"#REF!"},{"$error":"#REF!"},{"$error":"#REF!"},{"$error":"#REF!"},"8.","",null,null,"","",null,null,"","",null,null,"",null,"",null,"Workbook version",null,null,null,null,null,"Instructions","D3",null,null,null,null,null,null,{"$f":"IF($BX$16=\"\",\"'\",\"'[\"&$BX$16&\"]\")&$BY$23&\"'!\"&$BZ$23","v":"'Instructions'!D3"},null,null,null,{"$f":"IF(ISNUMBER(VALUE(MID(INDIRECT(CG23),9,4))),VALUE(MID(INDIRECT(CG23),9,4)),VALUE(MID(INDIRECT(CG23),9,3)))","v":{"$error":"#REF!"}}]
[null,"1. Open the PHPP you wish to insert the results sheet into.",null,null,null,null,null,null,null,null,null,null,null,null,null,null,null,null,null,null,null,null,null,null,null,"Factor (FHLF):",null,null,null,null,null,null,null,null,null,null,null,null,19,{"$error":"#REF!"},{"$error":"#REF!"},{"$error":"#REF!"},{"$error":"#REF!"},{"$error":"#REF!"},{"$error":"#REF!"},{"$error":"#REF!"},{"$error":"#REF!"},{"$error":"#REF!"},{"$error":"#REF!"},{"$error":"#REF!"},{"$error":"#REF!"},{"$error":"#REF!"},{"$error":"#REF!"},{"$error":"#REF!"},null,null,null,null,"Percentage of sec. 1",null,null,null,"Percentage of sec. 2",null,null,null,"Percentage of sec. 3",null,"Total  ",null,"Climate location",null,null,null,"Verification","K9","Verification","K9","Verification","K10",null,null,null,null,{"$f":"IF($BX$16=\"\",\"'\",\"'[\"&$BX$16&\"]\")&(OFFSET($BW24,0,$BZ$18))&\"'!\"&OFFSET($BX24,0,$BZ$18)","v":{"$error":"#REF!"}},null,null,null,{"$f":"INDIRECT(CG24)","v":{"$error":"#REF!"}}]
[null,"2. Right click on the tab below, \"WARM RESULTS 708\" , and select \"Move or copy\".",null,null,null,null,null,null,null,null,null,null,null,null,null,null,null,null,null,null,null,null,null,null,null,"(What is it?)",null,null,null,null,null,null,null,null,null,null,null,null,20,{"$error":"#REF!"},{"$error":"#REF!"},{"$error":"#REF!"},{"$error":"#REF!"},{"$error":"#REF!"},{"$error":"#REF!"},{"$error":"#REF!"},{"$error":"#REF!"},{"$error":"#REF!"},{"$error":"#REF!"},{"$error":"#REF!"},{"$error":"#REF!"},{"$error":"#REF!"},{"$error":"#REF!"},{"$error":"#REF!"},null,null,null,null,{"$f":"IF($BE10=\"\",\"\",MAX(0,1-BK25-BO25))","v":""},null,null,null,{"$f":"IF($BE10=\"\",\"\",INDEX(INDIRECT($CG$163),MATCH($BE10,INDIRECT($CG$151),0)+15))","v":""},null,null,null,{"$f":"IF($BE10=\"\",\"\",INDEX(INDIRECT($CG$164),MATCH($BE10,INDIRECT($CG$151),0)+15))","v":""},null,{"$f":"IF(ISNUMBER(BQ16),SUM(BQ16:BQ23)/10,\"\")","v":""},"cm","Heating Energy Monthly",null,null,null,"Verification","I35","Verification","I35","Verification","I36",null,null,null,null,{"$error":"#REF!"},null,null,null,{"$error":"#REF!"}]
[null,"3. In the \"To book\" list, select the PHPP you are inserting it into.",null,null,null,null,null,null,null,null,null,null,null,null,null,null,null,null,null,null,null,null,null,null,null,null,null,null,null,null,null,null,null,null,null,null,null,null,21,{"$error":"#REF!"},{"$error":"#REF!"},{"$error":"#REF!"},{"$error":"#REF!"},{"$error":"#REF!"},{"$error":"#REF!"},{"$error":"#REF!"},{"$error":"#REF!"},{"$error":"#REF!"},{"$error":"#REF!"},{"$error":"#REF!"},{"$error":"#REF!"},{"$error":"#REF!"},{"$error":"#REF!"},{"$error":"#REF!"},null,null,null,null,null,null,null,null,null,null,null,null,null,null,null,null,"Primary Energy Demand",null,null,null,"Verification","I52","Verification","I53","Verification","I53",null,null,null,null,{"$error":"#REF!"},null,null,null,{"$error":"#REF!"}]
[null,"4. Do NOT tick the box to \"Create a copy\".",null,null,null,null,null,null,null,null,null,null,null,null,null,null,null,null,null,null,null,null,null,null,null,{"$f":"\"Total: \"&ROUND(CF12,2)","v":{"$error":"#REF!"}},null,null,null,null,null,null,null,null,null,null,null,null,22,{"$error":"#REF!"},{"$error":"#REF!"},{"$error":"#REF!"},{"$error":"#REF!"},{"$error":"#REF!"},{"$error":"#REF!"},{"$error":"#REF!"},{"$error":"#REF!"},{"$error":"#REF!"},{"$error":"#REF!"},{"$error":"#REF!"},{"$error":"#REF!"},{"$error":"#REF!"},{"$error":"#REF!"},{"$error":"#REF!"},null,null,null,"U-value supplement",{"$f":"IF($BE10=\"\",\"\",IF(ISBLANK(INDEX(INDIRECT($CG$165),MATCH($BE10,INDIRECT($CG$151),0)+17)),\"\",INDEX(INDIRECT($CG$165),MATCH($BE10,INDIRECT($CG$151),0)+17)))","v":""},"W/(m²K)",null,null,null,"U-Value: ",{"$f":"IF($BE10=\"\",\"\",IF(ISBLANK(INDEX(INDIRECT($CG$166),MATCH($BE10,INDIRECT($CG$151),0)+17)),\"\",INDEX(INDIRECT($CG$166),MATCH($BE10,INDIRECT($CG$151),0)+17)))","v":""},null,"W/(m²K)",null,null,null,"Primary Energy Demand Limit",null,null,null,"Verification","K52","Verification","K53","Verification","K53",null,null,null,null,{"$error":"#REF!"},null,null,null,{"$error":"#REF!"}]
[null,"5. Click \"OK\".",null,null,null,null,null,null,null,null,null,null,null,null,null,null,null,null,null,null,null,null,null,null,null,null,null,null,null,null,null,null,null,null,null,null,null,null,23,{"$error":"#REF!"},{"$error":"#REF!"},{"$error":"#REF!"},{"$error":"#REF!"},{"$error":"#REF!"},{"$error":"#REF!"},{"$error":"#REF!"},{"$error":"#REF!"},{"$error":"#REF!"},{"$error":"#REF!"},{"$error":"#REF!"},{"$error":"#REF!"},{"$error":"#REF!"},{"$error":"#REF!"},{"$error":"#REF!"},null,null,null,null,null,null,null,null,null,null,null,null,null,null,null,null,"PER Demand",null,null,null,"Verification","I54","Verification","I55","Verification","I55",null,null,null,null,{"$error":"#REF!"},null,null,null,{"$error":"#REF!"}]
[null,null,null,null,null,null,null,null,null,null,null,null,null,null,null,null,null,null,null,null,null,null,null,null,null,null,null,null,null,null,null,null,null,null,null,"Turn off htg display?","No",null,24,{"$error":"#REF!"},{"$error":"#REF!"},{"$error":"#REF!"},{"$error":"#REF!"},{"$error":"#REF!"},{"$error":"#REF!"},{"$error":"#REF!"},{"$error":"#REF!"},{"$error":"#REF!"},{"$error":"#REF!"},{"$error":"#REF!"},{"$error":"#REF!"},{"$error":"#REF!"},{"$error":"#REF!"},{"$error":"#REF!"},null,"Assembly no.","Building assembly description",null,null,null,null,null,null,null,null,null,null,null,"Interior insulation?",null,"PER Generation",null,null,null,"Verification","I55","Verification","I56","Verification","I56",null,null,null,null,{"$error":"#REF!"},null,null,null,{"$error":"#REF!"}]
[null,"Instructions for Using the Revision History",null,null,null,null,null,null,null,null,null,null,null,null,null,null,null,null,null,null,null,null,null,null,null,null,null,null,null,null,null,null,null,null,null,null,null,null,25,{"$error":"#REF!"},{"$error":"#REF!"},{"$error":"#REF!"},{"$error":"#REF!"},{"$error":"#REF!"},{"$error":"#REF!"},{"$error":"#REF!"},{"$error":"#REF!"},{"$error":"#REF!"},{"$error":"#REF!"},{"$error":"#REF!"},{"$error":"#REF!"},{"$error":"#REF!"},{"$error":"#REF!"},{"$error":"#REF!"},null,{"$f":"IF($BE30=\"\",\"\",INDEX(INDIRECT($CG$152),MATCH($BE30,INDIRECT($CG$151),0)))","v":""},null,null,null,null,null,null,null,null,null,null,null,null,{"$f":"IF($BE30=\"\",\"\",IF(ISBLANK(INDEX(INDIRECT($CG$153),MATCH($BE30,INDIRECT($CG$151),0))),\"\",INDEX(INDIRECT($CG$153),MATCH($BE30,INDIRECT($CG$151),0))))","v":""},null,"Passing PER?",null,null,null,"Verification","N54","Verification","N55","Verification","N55",null,null,null,null,{"$error":"#REF!"},null,null,null,{"$error":"#REF!"}]
[null,"  Use the table above for keeping track of changes to the PHPP.",null,null,null,null,null,null,null,null,null,null,null,null,null,null,null,null,null,null,null,null,null,null,null,null,null,null,null,null,null,null,null,null,null,null,null,null,26,{"$error":"#REF!"},{"$error":"#REF!"},{"$error":"#REF!"},{"$error":"#REF!"},{"$error":"#REF!"},{"$error":"#REF!"},{"$error":"#REF!"},{"$error":"#REF!"},{"$error":"#REF!"},{"$error":"#REF!"},{"$error":"#REF!"},{"$error":"#REF!"},{"$error":"#REF!"},{"$error":"#REF!"},{"$error":"#REF!"},null,null,null,null,null,null,null,null,null,null,null,null,null,null,null,null,"Specific capacity",null,null,null,"Verification","K29","Verification","K29","Verification","K30",null,null,null,null,{"$error":"#REF!"},null,null,null,{"$error":"#REF!"}]
[null,"  EITHER:",null,null,null,null,null,null,null,null,null,null,null,null,null,null,null,null,null,null,null,null,null,null,null,"Window Breakdown",null,null,null,null,null,"Shading Breakdown",null,null,null,null,null,null,27,{"$error":"#REF!"},{"$error":"#REF!"},{"$error":"#REF!"},{"$error":"#REF!"},{"$error":"#REF!"},{"$error":"#REF!"},{"$error":"#REF!"},{"$error":"#REF!"},{"$error":"#REF!"},{"$error":"#REF!"},{"$error":"#REF!"},{"$error":"#REF!"},{"$error":"#REF!"},{"$error":"#REF!"},{"$error":"#REF!"},null,null,null,null,null,"     Heat transfer resistance [m²K/W]       interior Rsi :",{"$f":"IF($BE30=\"\",\"\",IF(ISBLANK(INDEX(INDIRECT($CG$154),MATCH($BE30,INDIRECT($CG$151),0)+2)),\"\",INDEX(INDIRECT($CG$154),MATCH($BE30,INDIRECT($CG$151),0)+2)))","v":""},null,null,null,null,null,null,null,null,null,"Interior Temperature Winter",null,null,null,"Verification","K27","Verification","K27","Verification","K28",null,null,null,null,{"$error":"#REF!"},null,null,null,{"$error":"#REF!"}]
[null,"  (1) Save the PHPP as a macro-enabled workbook (.xlsm) and use the button",null,null,null,null,null,null,null,null,null,null,null,null,null,null,null,null,null,null,null,null,null,null,null,null,null,null,null,null,null,"Area",null,"Shading Winter",null,"Shading Summer",null,null,28,{"$error":"#REF!"},{"$error":"#REF!"},{"$error":"#REF!"},{"$error":"#REF!"},{"$error":"#REF!"},{"$error":"#REF!"},{"$error":"#REF!"},{"$error":"#REF!"},{"$error":"#REF!"},{"$error":"#REF!"},{"$error":"#REF!"},{"$error":"#REF!"},{"$error":"#REF!"},{"$error":"#REF!"},{"$error":"#REF!"},null,null,null,null,null,"exterior Rse :",{"$f":"IF($BE30=\"\",\"\",IF(ISBLANK(INDEX(INDIRECT($CG$155),MATCH($BE30,INDIRECT($CG$151),0)+3)),\"\",INDEX(INDIRECT($CG$155),MATCH($BE30,INDIRECT($CG$151),0)+3)))","v":""},null,null,null,null,null,null,null,null,null,"IHG Values Winter",null,null,null,"Verification","K28","Verification","K28","Verification","K29",null,null,null,null,{"$error":"#REF!"},null,null,null,{"$error":"#REF!"}]
[null,"        above to record current results in the table.",null,null,null,null,null,null,null,null,null,null,null,null,null,null,null,null,null,null,null,null,null,null,null,null,null,null,null,null,null,"m2 (% of wall)",null,"%",null,"%",null,null,29,{"$error":"#REF!"},{"$error":"#REF!"},{"$error":"#REF!"},{"$error":"#REF!"},{"$error":"#REF!"},{"$error":"#REF!"},{"$error":"#REF!"},{"$error":"#REF!"},{"$error":"#REF!"},{"$error":"#REF!"},{"$error":"#REF!"},{"$error":"#REF!"},{"$error":"#REF!"},{"$error":"#REF!"},{"$error":"#REF!"},null,null,null,null,null,null,null,null,null,null,null,null,null,null,null,null,"IHG Values Summer",null,null,null,"Verification","N28","Verification","N28","Verification","N29",null,null,null,null,{"$error":"#REF!"},null,null,null,{"$error":"#REF!"}]
[null,"  OR:",null,null,null,null,null,null,null,null,null,null,null,null,null,null,null,null,null,null,null,null,null,null,null,null,null,null,null,null,"North",{"$f":"IF(INDIRECT($CG$112&CK315)=0,0,FIXED(INDIRECT($CG$114&CK315),1)&\" (\"&FIXED(CK44/(CC7+CK44)*100,0)&\"% of N. wall)\")","v":{"$error":"#REF!"}},null,{"$f":"$CK138","v":{"$error":"#REF!"}},null,{"$f":"$CK143","v":{"$error":"#REF!"}},null,null,30,{"$error":"#REF!"},{"$error":"#REF!"},{"$error":"#REF!"},{"$error":"#REF!"},{"$error":"#REF!"},{"$error":"#REF!"},{"$error":"#REF!"},{"$error":"#REF!"},{"$error":"#REF!"},{"$error":"#REF!"},{"$error":"#REF!"},{"$error":"#REF!"},{"$error":"#REF!"},{"$error":"#REF!"},{"$error":"#REF!"},null,"Area section 1",null,null,"l [W/(mK)]","Area section 2 (optional)",null,null,"l [W/(mK)]","Area section 3 (optional)",null,null,"l [W/(mK)]",null,"Thickness [mm]",null,"Building type",null,null,null,"Verification","R20","Verification","R20","Verification","T21",null,null,null,null,{"$error":"#REF!"},null,null,null,{"$error":"#REF!"}]
[null,"  (2) Save the PHPP as a non-macro-enabled workbook (.xlsx) and copy cells",null,null,null,null,null,null,null,null,null,null,null,null,null,null,null,null,null,null,null,null,null,null,null,null,null,null,null,null,"East",{"$f":"IF(INDIRECT($CG$112&CK316)=0,0,FIXED(INDIRECT($CG$114&CK316),1)&\" (\"&FIXED(CK45/(CC8+CK45)*100,0)&\"% of E. wall)\")","v":{"$error":"#REF!"}},null,{"$f":"$CK139","v":{"$error":"#REF!"}},null,{"$f":"$CK144","v":{"$error":"#REF!"}},null,null,31,{"$error":"#REF!"},{"$error":"#REF!"},{"$error":"#REF!"},{"$error":"#REF!"},{"$error":"#REF!"},{"$error":"#REF!"},{"$error":"#REF!"},{"$error":"#REF!"},{"$error":"#REF!"},{"$error":"#REF!"},{"$error":"#REF!"},{"$error":"#REF!"},{"$error":"#REF!"},{"$error":"#REF!"},{"$error":"#REF!"},"1.",{"$f":"IF($BE$30=\"\",\"\",IF(ISBLANK(INDEX(INDIRECT($CG$156),MATCH($BE$30,INDIRECT($CG$151),0)+5+$BC36)),\"\",INDEX(INDIRECT($CG$156),MATCH($BE$30,INDIRECT($CG$151),0)+5+$BC36)))","v":""},null,null,{"$f":"IF($BE$30=\"\",\"\",IF(ISBLANK(INDEX(INDIRECT($CG$157),MATCH($BE$30,INDIRECT($CG$151),0)+5+$BC36)),\"\",INDEX(INDIRECT($CG$157),MATCH($BE$30,INDIRECT($CG$151),0)+5+$BC36)))","v":""},{"$f":"IF($BE$30=\"\",\"\",IF(ISBLANK(INDEX(INDIRECT($CG$158),MATCH($BE$30,INDIRECT($CG$151),0)+5+$BC36)),\"\",INDEX(INDIRECT($CG$158),MATCH($BE$30,INDIRECT($CG$151),0)+5+$BC36)))","v":""},null,null,{"$f":"IF($BE$30=\"\",\"\",IF(ISBLANK(INDEX(INDIRECT($CG$159),MATCH($BE$30,INDIRECT($CG$151),0)+5+$BC36)),\"\",INDEX(INDIRECT($CG$159),MATCH($BE$30,INDIRECT($CG$151),0)+5+$BC36)))","v":""},{"$f":"IF($BE$30=\"\",\"\",IF(ISBLANK(INDEX(INDIRECT($CG$160),MATCH($BE$30,INDIRECT($CG$151),0)+5+$BC36)),\"\",INDEX(INDIRECT($CG$160),MATCH($BE$30,INDIRECT($CG$151),0)+5+$BC36)))","v":""},null,null,{"$f":"IF($BE$30=\"\",\"\",IF(ISBLANK(INDEX(INDIRECT($CG$161),MATCH($BE$30,INDIRECT($CG$151),0)+5+$BC36)),\"\",INDEX(INDIRECT($CG$161),MATCH($BE$30,INDIRECT($CG$151),0)+5+$BC36)))","v":""},null,{"$f":"IF($BE$30=\"\",\"\",IF(ISBLANK(INDEX(INDIRECT($CG$162),MATCH($BE$30,INDIRECT($CG$151),0)+5+$BC36)),\"\",INDEX(INDIRECT($CG$162),MATCH($BE$30,INDIRECT($CG$151),0)+5+$BC36)))","v":""},null,"IHG: Utilisation Pattern",null,null,null,"Verification","R24","Verification","R24","Verification","T21",null,null,null,null,{"$error":"#REF!"},null,null,null,{"$error":"#REF!"}]
[null,"        E7 to S7, then paste AS VALUES in the table.",null,null,null,null,null,null,null,null,null,null,null,null,null,null,null,null,null,null,null,null,null,null,"N",null,null,null,null,null,"South",{"$f":"IF(INDIRECT($CG$112&CK317)=0,0,FIXED(INDIRECT($CG$114&CK317),1)&\" (\"&FIXED(CK46/(CC9+CK46)*100,0)&\"% of S. wall)\")","v":{"$error":"#REF!"}},null,{"$f":"$CK140","v":{"$error":"#REF!"}},null,{"$f":"$CK145","v":{"$error":"#REF!"}},null,null,32,{"$f":"IF(OR((INDIRECT($CG$111&($CK$321)+$AM37))=\"\",$AO37=\"\"),\"\",(INDIRECT($CG$111&($CK$321)+$AM37)))","v":{"$error":"#REF!"}},{"$f":"IF(ISBLANK(INDIRECT($CG$117&($CK$321)+$AM37)),\"\",INDIRECT($CG$117&($CK$321)+$AM37))","v":{"$error":"#REF!"}},{"$f":"IF(OR((INDIRECT($CG$107&($CK$321)+$AM37))=\"\",$AO37=\"\"),\"\",(INDIRECT($CG$107&($CK$321)+$AM37)))","v":{"$error":"#REF!"}},{"$f":"IF(OR((INDIRECT($CG$102&($CK$321)+$AM37))=\"\",$AO37=\"\"),\"\",(INDIRECT($CG$102&($CK$321)+$AM37)))","v":{"$error":"#REF!"}},{"$f":"(INDIRECT($CG$103&($CK$321)+$AM37))","v":{"$error":"#REF!"}},{"$f":"INDIRECT($CG$106&($CK$321)+$AM37)","v":{"$error":"#REF!"}},{"$f":"INDIRECT($CG$104&($CK$321)+$AM37)","v":{"$error":"#REF!"}},{"$f":"IF(OR((INDIRECT($CG$118&($CK$321)+$AM37))=\"\",$AO37=\"\"),\"\",(INDIRECT($CG$118&($CK$321)+$AM37)))","v":{"$error":"#REF!"}},{"$f":"IF(OR((INDIRECT($CG$119&($CK$321)+$AM37))=\"\",$AO37=\"\"),\"\",(INDIRECT($CG$119&($CK$321)+$AM37)))","v":{"$error":"#REF!"}},{"$f":"IF(OR((INDIRECT($CG$136&($CK$322)+$AM37))=\"\",$AO37=\"\"),\"\",(INDIRECT($CG$136&($CK$322)+$AM37)))","v":{"$error":"#REF!"}},{"$f":"IF(OR((INDIRECT($CG$137&($CK$322)+$AM37))=\"\",$AO37=\"\"),\"\",(INDIRECT($CG$137&($CK$322)+$AM37)))","v":{"$error":"#REF!"}},{"$f":"IF($AN37=\"\",\"\",$CK$122*$CK$123*INDIRECT($CG$120&($CK$322)+$AM37))","v":{"$error":"#REF!"}},{"$f":"IF($AN37=\"\",\"\",INDIRECT($CG$102&($CK$321)+$AM37)*INDIRECT($CG$104&($CK$321)+$AM37)*$CK$109)","v":{"$error":"#REF!"}},{"$f":"IF($AO37=\"\",\"\",AY37-AZ37)","v":{"$error":"#REF!"}},{"$f":"IF($AO37=\"\",\"\",(AY37-AZ37)/$AB$4)","v":{"$error":"#REF!"}},"2.","",null,null,"","",null,null,"","",null,null,"",null,"",null,"IHG: Type of Values Used",null,null,null,"Verification","R25","Verification","R25","Verification","T24",null,null,null,null,{"$error":"#REF!"},null,null,null,{"$error":"#REF!"}]
[null,null,null,null,null,null,null,null,null,null,null,null,null,null,null,null,null,null,null,null,null,null,null,null,"E",null,null,null,null,null,"West",{"$f":"IF(INDIRECT($CG$112&CK318)=0,0,FIXED(INDIRECT($CG$114&CK318),1)&\" (\"&FIXED(CK47/(CC10+CK47)*100,0)&\"% of W. wall)\")","v":{"$error":"#REF!"}},null,{"$f":"$CK141","v":{"$error":"#REF!"}},null,{"$f":"$CK146","v":{"$error":"#REF!"}},null,null,33,{"$error":"#REF!"},{"$error":"#REF!"},{"$error":"#REF!"},{"$error":"#REF!"},{"$error":"#REF!"},{"$error":"#REF!"},{"$error":"#REF!"},{"$error":"#REF!"},{"$error":"#REF!"},{"$error":"#REF!"},{"$error":"#REF!"},{"$error":"#REF!"},{"$error":"#REF!"},{"$error":"#REF!"},{"$error":"#REF!"},"3.","",null,null,"","",null,null,"","",null,null,"",null,"",null,"Planned number of occupants: type",null,null,null,"Verification","R29","Verification","R29","Verification",{"$f":"IF(NOT(ISBLANK(Nachweis_Personenzahl_Projektiert)),\"T30\",\"T29\")","v":"T30"},null,null,null,null,{"$error":"#REF!"},null,null,null,{"$error":"#REF!"}]
[null,"Instructions for Using the Project Data Sheets",null,null,null,null,null,null,null,null,null,null,null,null,null,null,null,null,null,null,null,null,null,null,"S",null,null,null,null,null,"Horizontal",{"$f":"IF(INDIRECT($CG$112&CK319)=0,0,FIXED(INDIRECT($CG$114&CK319),1)&\" (\"&FIXED(CK48/(CK52+CK48)*100,0)&\"% of roof)\")","v":{"$error":"#REF!"}},null,{"$f":"$CK142","v":{"$error":"#REF!"}},null,{"$f":"$CK147","v":{"$error":"#REF!"}},null,null,34,{"$error":"#REF!"},{"$error":"#REF!"},{"$error":"#REF!"},{"$error":"#REF!"},{"$error":"#REF!"},{"$error":"#REF!"},{"$error":"#REF!"},{"$error":"#REF!"},{"$error":"#REF!"},{"$error":"#REF!"},{"$error":"#REF!"},{"$error":"#REF!"},{"$error":"#REF!"},{"$error":"#REF!"},{"$error":"#REF!"},"4.","",null,null,"","",null,null,"","",null,null,"",null,"",null,"Planned number of occupants: value",null,null,null,"Verification","F29","Verification","F29","Verification","F30",null,null,null,null,{"$error":"#REF!"},null,null,null,{"$error":"#REF!"}]
[null,"  These sheets are for when you want to show the main inputs into the PHPP",null,null,null,null,null,null,null,null,null,null,null,null,null,null,null,null,null,null,null,null,null,null,"W",null,null,null,null,null,"Total",{"$f":"FIXED(SUM(INDIRECT(CG115)),1)&\" (\"&FIXED(SUM(CK44:CK48)/(SUM(CK44:CK48)+CK50+CK52)*100,0)&\"% of wall+roof)\"","v":{"$error":"#REF!"}},null,"-",null,"-",null,null,35,{"$error":"#REF!"},{"$error":"#REF!"},{"$error":"#REF!"},{"$error":"#REF!"},{"$error":"#REF!"},{"$error":"#REF!"},{"$error":"#REF!"},{"$error":"#REF!"},{"$error":"#REF!"},{"$error":"#REF!"},{"$error":"#REF!"},{"$error":"#REF!"},{"$error":"#REF!"},{"$error":"#REF!"},{"$error":"#REF!"},"5.","",null,null,"","",null,null,"","",null,null,"",null,"",null,"Number of dwelling units",null,null,null,"Verification","F28","Verification","F28","Verification","F29",null,null,null,null,{"$error":"#REF!"},null,null,null,{"$error":"#REF!"}]
[null,"  at a glance, for example to insert into a report, or print off. Cells that require",null,null,null,null,null,null,null,null,null,null,null,null,null,null,null,null,null,null,null,null,null,null,"H",null,null,null,null,null,"Key:",null,null,null,null,null,null,null,36,{"$error":"#REF!"},{"$error":"#REF!"},{"$error":"#REF!"},{"$error":"#REF!"},{"$error":"#REF!"},{"$error":"#REF!"},{"$error":"#REF!"},{"$error":"#REF!"},{"$error":"#REF!"},{"$error":"#REF!"},{"$error":"#REF!"},{"$error":"#REF!"},{"$error":"#REF!"},{"$error":"#REF!"},{"$error":"#REF!"},"6.","",null,null,"","",null,null,"","",null,null,"",null,""]
[null,"  user input are coloured yellow, as in the PHPP.",null,null,null,null,null,null,null,null,null,null,null,null,null,null,null,null,null,null,null,null,null,null,null,null,null,null,null,null,"Highly shaded",null,null,null,null,"Minimally shaded",null,null,37,{"$error":"#REF!"},{"$error":"#REF!"},{"$error":"#REF!"},{"$error":"#REF!"},{"$error":"#REF!"},{"$error":"#REF!"},{"$error":"#REF!"},{"$error":"#REF!"},{"$error":"#REF!"},{"$error":"#REF!"},{"$error":"#REF!"},{"$error":"#REF!"},{"$error":"#REF!"},{"$error":"#REF!"},{"$error":"#REF!"},"7.","",null,null,"","",null,null,"","",null,null,"",null,"",null,"Site Elevation (Altitude)",null,null,null,"Climate","D18","Climate","D18","Climate","J25",null,null,null,null,{"$f":"IF($BX$16=\"\",\"'\",\"'[\"&$BX$16&\"]\")&(OFFSET($BW42,0,$BZ$18))&\"'!\"&OFFSET($BX42,0,$BZ$18)","v":{"$error":"#REF!"}},null,null,null,{"$f":"INDIRECT(CG42)","v":{"$error":"#REF!"}}]
[null,null,null,null,null,null,null,null,null,null,null,null,null,null,null,null,null,null,null,null,null,null,null,null,null,null,null,null,null,null,null,null,null,null,null,null,null,null,38,{"$error":"#REF!"},{"$error":"#REF!"},{"$error":"#REF!"},{"$error":"#REF!"},{"$error":"#REF!"},{"$error":"#REF!"},{"$error":"#REF!"},{"$error":"#REF!"},{"$error":"#REF!"},{"$error":"#REF!"},{"$error":"#REF!"},{"$error":"#REF!"},{"$error":"#REF!"},{"$error":"#REF!"},{"$error":"#REF!"},"8.","",null,null,"","",null,null,"","",null,null,"",null,"",null,"Treated Floor Area",null,null,null,"Areas","N8","Areas","N8","Areas","L8",null,null,null,null,{"$error":"#REF!"},null,null,null,{"$error":"#REF!"}]
[null,"Tips",null,null,null,null,null,null,null,null,null,null,null,null,null,null,null,null,null,null,null,null,null,null,null,null,null,null,null,null,null,null,"Overheating",null,{"$f":"$CK$310*100","v":{"$error":"#REF!"}},null,null,null,39,{"$error":"#REF!"},{"$error":"#REF!"},{"$error":"#REF!"},{"$error":"#REF!"},{"$error":"#REF!"},{"$error":"#REF!"},{"$error":"#REF!"},{"$error":"#REF!"},{"$error":"#REF!"},{"$error":"#REF!"},{"$error":"#REF!"},{"$error":"#REF!"},{"$error":"#REF!"},{"$error":"#REF!"},{"$error":"#REF!"},null,null,null,null,"Percentage of sec. 1",null,null,null,"Percentage of sec. 2",null,null,null,"Percentage of sec. 3",null,"Total  ",null,"North Windows ",null,null,null,"Areas","N9","Areas","N9","Areas","L9",null,null,null,null,{"$error":"#REF!"},null,null,null,{"$error":"#REF!"}]
[null,"1. Use the \"+\" buttons at the top of this sheet to show hidden columns.",null,null,null,null,null,null,null,null,null,null,null,null,null,null,null,null,null,null,null,null,null,null,null,null,null,null,null,null,null,null,{"$f":"\"This project: \"&ROUND($CK$310*100,0)&\" %\"","v":{"$error":"#REF!"}},null,null,null,null,null,40,{"$error":"#REF!"},{"$error":"#REF!"},{"$error":"#REF!"},{"$error":"#REF!"},{"$error":"#REF!"},{"$error":"#REF!"},{"$error":"#REF!"},{"$error":"#REF!"},{"$error":"#REF!"},{"$error":"#REF!"},{"$error":"#REF!"},{"$error":"#REF!"},{"$error":"#REF!"},{"$error":"#REF!"},{"$error":"#REF!"},null,null,null,null,{"$f":"IF($BE30=\"\",\"\",MAX(0,1-BK45-BO45))","v":""},null,null,null,{"$f":"IF($BE30=\"\",\"\",INDEX(INDIRECT($CG$163),MATCH($BE30,INDIRECT($CG$151),0)+15))","v":""},null,null,null,{"$f":"IF($BE30=\"\",\"\",INDEX(INDIRECT($CG$164),MATCH($BE30,INDIRECT($CG$151),0)+15))","v":""},null,{"$f":"IF(ISNUMBER(BQ36),SUM(BQ36:BQ43)/10,\"\")","v":""},"cm","East Windows ",null,null,null,"Areas","N10","Areas","N10","Areas","L10",null,null,null,null,{"$error":"#REF!"},null,null,null,{"$error":"#REF!"}]
[null,"2. Use the \"-\" button on the left to hide rows to make a more report-friendly",null,null,null,null,null,null,null,null,null,null,null,null,null,null,null,null,null,null,null,null,null,null,null,null,null,null,null,null,null,null,"% of hours in a year over 25 degrees C",null,"Assessment",null,null,null,41,{"$error":"#REF!"},{"$error":"#REF!"},{"$error":"#REF!"},{"$error":"#REF!"},{"$error":"#REF!"},{"$error":"#REF!"},{"$error":"#REF!"},{"$error":"#REF!"},{"$error":"#REF!"},{"$error":"#REF!"},{"$error":"#REF!"},{"$error":"#REF!"},{"$error":"#REF!"},{"$error":"#REF!"},{"$error":"#REF!"},null,null,null,null,null,null,null,null,null,null,null,null,null,null,null,null,"South Windows ",null,null,null,"Areas","N11","Areas","N11","Areas","L11",null,null,null,null,{"$error":"#REF!"},null,null,null,{"$error":"#REF!"}]
[null,"   table. Warning: this will also hide these rows on pages 3, 5 and 7.",null,null,null,null,null,null,null,null,null,null,null,null,null,null,null,null,null,null,null,null,null,null,null,null,null,null,null,null,null,null,null,null,null,null,null,null,42,{"$error":"#REF!"},{"$error":"#REF!"},{"$error":"#REF!"},{"$error":"#REF!"},{"$error":"#REF!"},{"$error":"#REF!"},{"$error":"#REF!"},{"$error":"#REF!"},{"$error":"#REF!"},{"$error":"#REF!"},{"$error":"#REF!"},{"$error":"#REF!"},{"$error":"#REF!"},{"$error":"#REF!"},{"$error":"#REF!"},null,null,null,"U-value supplement",{"$f":"IF($BE30=\"\",\"\",IF(ISBLANK(INDEX(INDIRECT($CG$165),MATCH($BE30,INDIRECT($CG$151),0)+17)),\"\",INDEX(INDIRECT($CG$165),MATCH($BE30,INDIRECT($CG$151),0)+17)))","v":""},"W/(m²K)",null,null,null,"U-Value: ",{"$f":"IF($BE30=\"\",\"\",IF(ISBLANK(INDEX(INDIRECT($CG$166),MATCH($BE30,INDIRECT($CG$151),0)+17)),\"\",INDEX(INDIRECT($CG$166),MATCH($BE30,INDIRECT($CG$151),0)+17)))","v":""},null,"W/(m²K)",null,null,null,"West Windows ",null,null,null,"Areas","N12","Areas","N12","Areas","L12",null,null,null,null,{"$error":"#REF!"},null,null,null,{"$error":"#REF!"}]
[null,null,null,null,null,null,null,null,null,null,null,null,null,null,null,null,null,null,null,null,null,null,null,null,null,null,null,null,null,null,null,null,"0 - 2 %",null,"Excellent",null,null,null,43,{"$error":"#REF!"},{"$error":"#REF!"},{"$error":"#REF!"},{"$error":"#REF!"},{"$error":"#REF!"},{"$error":"#REF!"},{"$error":"#REF!"},{"$error":"#REF!"},{"$error":"#REF!"},{"$error":"#REF!"},{"$error":"#REF!"},{"$error":"#REF!"},{"$error":"#REF!"},{"$error":"#REF!"},{"$error":"#REF!"},null,null,null,null,null,null,null,null,null,null,null,null,null,null,null,null,"Horizontal Windows ",null,null,null,"Areas","N13","Areas","N13","Areas","L13",null,null,null,null,{"$error":"#REF!"},null,null,null,{"$error":"#REF!"}]
[null,"Conditions of Use of the WARM Results Sheet",null,null,null,null,null,null,null,null,null,null,null,null,null,null,null,null,null,null,null,null,null,null,null,null,null,null,null,null,null,null,"2 - 5 %",null,"Good",null,null,null,44,{"$error":"#REF!"},{"$error":"#REF!"},{"$error":"#REF!"},{"$error":"#REF!"},{"$error":"#REF!"},{"$error":"#REF!"},{"$error":"#REF!"},{"$error":"#REF!"},{"$error":"#REF!"},{"$error":"#REF!"},{"$error":"#REF!"},{"$error":"#REF!"},{"$error":"#REF!"},{"$error":"#REF!"},{"$error":"#REF!"},null,null,null,null,null,null,null,null,null,null,null,null,null,null,null,null,"Exterior Door",null,null,null,"Areas","N14","Areas","N14","Areas","L14",null,null,null,null,{"$error":"#REF!"},null,null,null,{"$error":"#REF!"}]
[null,"* No claims are made for the WARM Results Sheet's accuracy or correctness.",null,null,null,null,null,null,null,null,null,null,null,null,null,null,null,null,null,null,null,null,null,null,null,null,null,null,null,null,null,null,"5 - 10 %",null,"Acceptable (certification criteria)",null,null,null,45,{"$error":"#REF!"},{"$error":"#REF!"},{"$error":"#REF!"},{"$error":"#REF!"},{"$error":"#REF!"},{"$error":"#REF!"},{"$error":"#REF!"},{"$error":"#REF!"},{"$error":"#REF!"},{"$error":"#REF!"},{"$error":"#REF!"},{"$error":"#REF!"},{"$error":"#REF!"},{"$error":"#REF!"},{"$error":"#REF!"},null,null,null,null,null,null,null,null,null,null,null,null,null,null,null,null,"[8] Exterior Wall - Ambient",null,null,null,"Areas","N15","Areas","N15","Areas","L15",null,null,null,null,{"$error":"#REF!"},null,null,null,{"$error":"#REF!"}]
[null,"* Do not rely on anything in the WARM Results Sheet - use the PHPP itself.",null,null,null,null,null,null,null,null,null,null,null,null,null,null,null,null,null,null,null,null,null,null,null,null,null,null,null,null,null,null,"10 - 15 %",null,"Poor",null,null,null,46,{"$error":"#REF!"},{"$error":"#REF!"},{"$error":"#REF!"},{"$error":"#REF!"},{"$error":"#REF!"},{"$error":"#REF!"},{"$error":"#REF!"},{"$error":"#REF!"},{"$error":"#REF!"},{"$error":"#REF!"},{"$error":"#REF!"},{"$error":"#REF!"},{"$error":"#REF!"},{"$error":"#REF!"},{"$error":"#REF!"},null,null,null,null,null,null,null,null,null,null,null,null,null,null,null,null,"[9] Exterior Wall - Ground",null,null,null,"Areas","N16","Areas","N16","Areas","L16",null,null,null,null,{"$error":"#REF!"},null,null,null,{"$error":"#REF!"}]
[null,"* There is no warranty of any sort, implied or otherwise.",null,null,null,null,null,null,null,null,null,null,null,null,null,null,null,null,null,null,null,null,null,null,null,null,null,null,null,null,null,null,"> 15 %",null,"Catastrophic",null,null,null,47,{"$error":"#REF!"},{"$error":"#REF!"},{"$error":"#REF!"},{"$error":"#REF!"},{"$error":"#REF!"},{"$error":"#REF!"},{"$error":"#REF!"},{"$error":"#REF!"},{"$error":"#REF!"},{"$error":"#REF!"},{"$error":"#REF!"},{"$error":"#REF!"},{"$error":"#REF!"},{"$error":"#REF!"},{"$error":"#REF!"},null,null,null,null,null,null,null,null,null,null,null,null,null,null,null,null,"[10] Roof/Ceiling - Ambient",null,null,null,"Areas","N17","Areas","N17","Areas","L17",null,null,null,null,{"$error":"#REF!"},null,null,null,{"$error":"#REF!"}]
[null,"* No liability will be accepted by WARM for any loss or negative consequences",null,null,null,null,null,null,null,null,null,null,null,null,null,null,null,null,null,null,null,null,null,null,null,null,null,null,null,null,null,null,null,null,null,null,null,null,48,{"$error":"#REF!"},{"$error":"#REF!"},{"$error":"#REF!"},{"$error":"#REF!"},{"$error":"#REF!"},{"$error":"#REF!"},{"$error":"#REF!"},{"$error":"#REF!"},{"$error":"#REF!"},{"$error":"#REF!"},{"$error":"#REF!"},{"$error":"#REF!"},{"$error":"#REF!"},{"$error":"#REF!"},{"$error":"#REF!"},null,null,null,null,null,null,null,null,null,null,null,null,null,null,null,null,"[11] Floor Slab",null,null,null,"Areas","N18","Areas","N18","Areas","L18",null,null,null,null,{"$error":"#REF!"},null,null,null,{"$error":"#REF!"}]
[null,"   arising from the use of the WARM Results Sheet.",null,null,null,null,null,null,null,null,null,null,null,null,null,null,null,null,null,null,null,null,null,null,null,null,null,null,null,null,null,null,null,null,null,null,null,null,49,{"$error":"#REF!"},{"$error":"#REF!"},{"$error":"#REF!"},{"$error":"#REF!"},{"$error":"#REF!"},{"$error":"#REF!"},{"$error":"#REF!"},{"$error":"#REF!"},{"$error":"#REF!"},{"$error":"#REF!"},{"$error":"#REF!"},{"$error":"#REF!"},{"$error":"#REF!"},{"$error":"#REF!"},{"$error":"#REF!"},null,"Continued on next sheet",null,null,null,null,null,null,null,null,null,null,null,null,null,null,"[12] User Area1",null,null,null,"Areas","N19","Areas","N19","Areas","L19",null,null,null,null,{"$error":"#REF!"},null,null,null,{"$error":"#REF!"}]
[null,"* There is no support offered.",null,null,null,null,null,null,null,null,null,null,null,null,null,null,null,null,null,null,null,null,null,null,null,null,null,null,null,null,null,null,null,null,null,null,null,null,50,{"$error":"#REF!"},{"$error":"#REF!"},{"$error":"#REF!"},{"$error":"#REF!"},{"$error":"#REF!"},{"$error":"#REF!"},{"$error":"#REF!"},{"$error":"#REF!"},{"$error":"#REF!"},{"$error":"#REF!"},{"$error":"#REF!"},{"$error":"#REF!"},{"$error":"#REF!"},{"$error":"#REF!"},{"$error":"#REF!"},null,null,null,null,null,null,null,null,null,null,null,null,null,null,null,null,"[13] User Area2",null,null,null,"Areas","N20","Areas","N20","Areas","L20",null,null,null,null,{"$error":"#REF!"},null,null,null,{"$error":"#REF!"}]
[null,null,null,null,null,null,null,null,null,null,null,null,null,null,null,null,null,null,null,null,null,null,null,null,null,null,null,null,null,null,null,null,null,null,null,null,null,null,null,null,null,null,null,null,null,null,null,null,null,null,null,null,null,null,null,null,null,null,null,null,null,null,null,null,null,null,null,null,null,null,"[14] User Area3",null,null,null,"Areas","N21","Areas","N21","Areas","L21",null,null,null,null,{"$error":"#REF!"},null,null,null,{"$error":"#REF!"}]
[null,"If you find any bugs, please tell us.",null,null,null,null,null,null,null,null,null,null,null,null,null,null,null,null,null,null,null,null,null,null,null,null,null,null,null,null,null,null,null,null,null,null,null,null,null,null,null,null,null,null,null,null,null,null,null,null,null,null,null,null,null,null,null,null,null,null,null,null,null,null,null,null,null,null,null,null,"T Bridge Psi Names",null,null,null,"Areas","L145:L244","Areas","L145:L244","Areas","L145:L245",null,null,null,null,{"$error":"#REF!"}]
[null,"If you want a new feature added, please let us know and we may include it in",null,null,null,null,null,null,null,null,null,null,null,null,null,null,null,null,null,null,null,null,null,null,null,null,null,null,null,null,null,null,null,null,null,null,null,null,null,null,null,null,null,null,null,null,null,null,null,null,null,null,null,null,null,null,null,null,null,null,null,null,null,null,null,null,null,null,null,null,"T Bridge Length/Qty.",null,null,null,"Areas","R145:R244","Areas","R145:R244","Areas","T145:T245",null,null,null,null,{"$error":"#REF!"}]
[null,"later revisions.",null,null,null,null,null,null,null,null,null,null,null,null,null,null,null,null,null,null,null,null,null,null,null,null,null,null,null,null,null,null,null,null,null,null,null,null,"Note: window results sheet uses annual method to calculate window heat losses",null,null,null,null,null,null,null,null,null,null,null,null,null,null,null,null,null,null,null,null,null,null,null,null,null,null,null,null,null,null,null,"T Bridge Psi range",null,null,null,"Areas","AE145:AE244","Areas","AE145:AE244","Areas","AC145:AC244",null,null,null,null,{"$error":"#REF!"}]
[null,null,null,null,null,null,null,null,null,null,null,null,null,null,null,null,null,null,null,null,null,null,null,null,null,null,null,null,null,null,null,null,null,null,null,null,null,null,null,null,null,null,null,null,null,null,null,null,null,null,null,null,null,null,null,null,null,null,null,null,null,null,null,null,null,null,null,null,null,null,"T Bridge % Fabric Heat Loss",null,null,null,"Areas","AZ145:AZ244","Areas","AZ145:AZ244","Areas","AX145:AX244",null,null,null,null,{"$error":"#REF!"}]
[null,"Authors:",null,null,null,null,null,null,null,null,null,null,null,null,null,null,null,null,null,null,null,null,null,null,null,{"$f":"\"WARM PHPP Results Sheet - Project Data\"","v":"WARM PHPP Results Sheet - Project Data"},null,null,null,null,null,null,null,null,null,null,null,null,null,{"$f":"\"WARM PHPP Results Sheet - Windows - Page 2\"","v":"WARM PHPP Results Sheet - Windows - Page 2"},null,null,null,null,null,null,null,null,null,null,null,null,null,null,null,"Assembly no.","Building assembly description",null,null,null,null,null,null,null,null,null,null,null,"Interior insulation?",null,"Slab on Grade",null,null,null,"Ground","C24","Ground","C24","Ground","C24",null,null,null,null,{"$error":"#REF!"},null,null,null,{"$f":"INDIRECT(CG61)","v":{"$error":"#REF!"}}]
[null,"Peter Warm",null,null,null,null,null,null,null,null,null,null,null,null,null,null,null,null,null,null,null,null,null,null,null,null,null,null,null,null,null,null,null,"Yellow = input required",null,null,null,null,null,null,null,null,null,null,null,null,null,null,null,null,null,null,null,null,null,{"$f":"IF($BE62=\"\",\"\",INDEX(INDIRECT($CG$152),MATCH($BE62,INDIRECT($CG$151),0)))","v":""},null,null,null,null,null,null,null,null,null,null,null,null,{"$f":"IF($BE62=\"\",\"\",IF(ISBLANK(INDEX(INDIRECT($CG$153),MATCH($BE62,INDIRECT($CG$151),0))),\"\",INDEX(INDIRECT($CG$153),MATCH($BE62,INDIRECT($CG$151),0))))","v":""},null,"Heated Basement or Underground Floor Slab",null,null,null,"Ground","C29","Ground","C29","Ground","C30",null,null,null,null,{"$error":"#REF!"},null,null,null,{"$error":"#REF!"}]
[null,"John Trinick",null,null,null,null,null,null,null,null,null,null,null,null,null,null,null,null,null,null,null,null,null,null,null,"Verification",null,null,null,null,null,null,null,null,null,null,null,null,null,null,null,null,null,null,null,null,null,null,{"$f":"IF(OR($BX$18=1,$BX$18=2,$BX$18=3),\"Shading\",\"Shading Winter\")","v":{"$error":"#REF!"}},{"$f":"IF(OR($BX$18=1,$BX$18=2,$BX$18=3),\"\",\"Shading Summer\")","v":{"$error":"#REF!"}},null,null,null,null,null,null,null,null,null,null,null,null,null,null,null,null,null,null,null,null,"Unheated basement",null,null,null,"Ground","C32","Ground","C32","Ground","C33",null,null,null,null,{"$error":"#REF!"},null,null,null,{"$error":"#REF!"}]
[null,"Liam McDonagh-Greaves",null,null,null,null,null,null,null,null,null,null,null,null,null,null,null,null,null,null,null,null,null,null,null,"Item",null,null,"Value",null,"Item",null,null,"Value",null,null,null,null,null,"Ref","Qty.","Orientation","Aw","Ag","g","Uw","Glass Type","Frame Type",null,null,"Gain kWh","Loss kWh","Net kWh","Net kWh/m2",null,null,null,null,null,"     Heat transfer resistance [m²K/W]       interior Rsi :",{"$f":"IF($BE62=\"\",\"\",IF(ISBLANK(INDEX(INDIRECT($CG$154),MATCH($BE62,INDIRECT($CG$151),0)+2)),\"\",INDEX(INDIRECT($CG$154),MATCH($BE62,INDIRECT($CG$151),0)+2)))","v":""},null,null,null,null,null,null,null,null,null,"Suspended Floor",null,null,null,"Ground","C38","Ground","C38","Ground","C40",null,null,null,null,{"$error":"#REF!"},null,null,null,{"$error":"#REF!"}]
[null,"Email: office@peterwarm.co.uk",null,null,null,null,null,null,null,null,null,null,null,null,null,null,null,null,null,null,null,null,null,null,null,"Planned Number of Occupants",null,null,{"$f":"ROUND($CK$39,1)&\" (\"&$CK$38&\")\"","v":{"$error":"#REF!"}},null,"Building Type (Qty. of Dwelling Units)",null,null,{"$f":"$CK$35&\" (\"&$CK$40&\" units)\"","v":{"$error":"#REF!"}},null,null,null,null,51,{"$f":"IF(OR((INDIRECT($CG$111&($CK$321)+$AM65))=\"\",$AO65=\"\"),\"\",(INDIRECT($CG$111&($CK$321)+$AM65)))","v":{"$error":"#REF!"}},{"$f":"IF(ISBLANK(INDIRECT($CG$117&($CK$321)+$AM65)),\"\",INDIRECT($CG$117&($CK$321)+$AM65))","v":{"$error":"#REF!"}},{"$f":"IF(OR((INDIRECT($CG$107&($CK$321)+$AM65))=\"\",$AO65=\"\"),\"\",(INDIRECT($CG$107&($CK$321)+$AM65)))","v":{"$error":"#REF!"}},{"$f":"IF(OR((INDIRECT($CG$102&($CK$321)+$AM65))=\"\",$AO65=\"\"),\"\",(INDIRECT($CG$102&($CK$321)+$AM65)))","v":{"$error":"#REF!"}},{"$f":"(INDIRECT($CG$103&($CK$321)+$AM65))","v":{"$error":"#REF!"}},{"$f":"INDIRECT($CG$106&($CK$321)+$AM65)","v":{"$error":"#REF!"}},{"$f":"INDIRECT($CG$104&($CK$321)+$AM65)","v":{"$error":"#REF!"}},{"$f":"IF(OR((INDIRECT($CG$118&($CK$321)+$AM65))=\"\",$AO65=\"\"),\"\",(INDIRECT($CG$118&($CK$321)+$AM65)))","v":{"$error":"#REF!"}},{"$f":"IF(OR((INDIRECT($CG$119&($CK$321)+$AM65))=\"\",$AO65=\"\"),\"\",(INDIRECT($CG$119&($CK$321)+$AM65)))","v":{"$error":"#REF!"}},{"$f":"IF(OR((INDIRECT($CG$136&($CK$322)+$AM65))=\"\",$AO65=\"\"),\"\",(INDIRECT($CG$136&($CK$322)+$AM65)))","v":{"$error":"#REF!"}},{"$f":"IF(OR((INDIRECT($CG$137&($CK$322)+$AM65))=\"\",$AO65=\"\"),\"\",(INDIRECT($CG$137&($CK$322)+$AM65)))","v":{"$error":"#REF!"}},{"$f":"IF($AN65=\"\",\"\",$CK$122*$CK$123*INDIRECT($CG$120&($CK$322)+$AM65))","v":{"$error":"#REF!"}},{"$f":"IF($AN65=\"\",\"\",INDIRECT($CG$102&($CK$321)+$AM65)*INDIRECT($CG$104&($CK$321)+$AM65)*$CK$109)","v":{"$error":"#REF!"}},{"$f":"IF($AO65=\"\",\"\",AY65-AZ65)","v":{"$error":"#REF!"}},{"$f":"IF($AO65=\"\",\"\",(AY65-AZ65)/$AB$4)","v":{"$error":"#REF!"}},null,null,null,null,null,"exterior Rse :",{"$f":"IF($BE62=\"\",\"\",IF(ISBLANK(INDEX(INDIRECT($CG$155),MATCH($BE62,INDIRECT($CG$151),0)+3)),\"\",INDEX(INDIRECT($CG$155),MATCH($BE62,INDIRECT($CG$151),0)+3)))","v":""},null,null,null,null,null,null,null,null,null,"Door area",null,null,null,"Areas","AB40","Areas","AB40","Areas","L14",null,null,null,null,{"$error":"#REF!"},null,null,null,{"$error":"#REF!"}]
[null,null,null,null,null,null,null,null,null,null,null,null,null,null,null,null,null,null,null,null,null,null,null,null,null,"Specific Capacity",null,null,{"$f":"$CK$31&\" Wh/m2K\"","v":{"$error":"#REF!"}},null,"IHG: Utilisation Pattern",null,null,{"$f":"$CK$36","v":{"$error":"#REF!"}},null,null,null,null,52,{"$error":"#REF!"},{"$error":"#REF!"},{"$error":"#REF!"},{"$error":"#REF!"},{"$error":"#REF!"},{"$error":"#REF!"},{"$error":"#REF!"},{"$error":"#REF!"},{"$error":"#REF!"},{"$error":"#REF!"},{"$error":"#REF!"},{"$error":"#REF!"},{"$error":"#REF!"},{"$error":"#REF!"},{"$error":"#REF!"},null,null,null,null,null,null,null,null,null,null,null,null,null,null,null,null,"Door U value",null,null,null,"Areas","AE40","Areas","AE40","Areas","P14",null,null,null,null,{"$error":"#REF!"},null,null,null,{"$error":"#REF!"}]
[null,null,null,null,null,null,null,null,null,null,null,null,null,null,null,null,null,null,null,null,null,null,null,null,null,"Interior Temperature Winter",null,null,{"$f":"$CK$32&\" degrees C\"","v":{"$error":"#REF!"}},null,"IHG: Values Winter/Summer",null,null,{"$f":"ROUND($CK$33,1)&\" W/m2 / \"&ROUND($CK$34,1)&\" W/m2 (\"&$CK$37&\")\"","v":{"$error":"#REF!"}},null,null,null,null,53,{"$error":"#REF!"},{"$error":"#REF!"},{"$error":"#REF!"},{"$error":"#REF!"},{"$error":"#REF!"},{"$error":"#REF!"},{"$error":"#REF!"},{"$error":"#REF!"},{"$error":"#REF!"},{"$error":"#REF!"},{"$error":"#REF!"},{"$error":"#REF!"},{"$error":"#REF!"},{"$error":"#REF!"},{"$error":"#REF!"},null,"Area section 1",null,null,"l [W/(mK)]","Area section 2 (optional)",null,null,"l [W/(mK)]","Area section 3 (optional)",null,null,"l [W/(mK)]",null,"Thickness [mm]",null,"Total thermal envelope",null,null,null,"Areas","N29","Areas","N29","Areas","L29",null,null,null,null,{"$error":"#REF!"},null,null,null,{"$error":"#REF!"}]
[null,null,null,null,null,null,null,null,null,null,null,null,null,null,null,null,null,null,null,null,null,null,null,null,null,"Floor Slab Type",null,null,{"$f":"IF($CK$61=\"x\",$BS$61,\"\"&IF($CK$62=\"x\",$BS$62,\"\"&IF($CK$63=\"x\",$BS$63,\"\"&IF($CK$64=\"x\",$BS$64,\"\"))))","v":{"$error":"#REF!"}},null,"Climate Data Set",null,null,{"$f":"$CK$24","v":{"$error":"#REF!"}},null,null,null,null,54,{"$error":"#REF!"},{"$error":"#REF!"},{"$error":"#REF!"},{"$error":"#REF!"},{"$error":"#REF!"},{"$error":"#REF!"},{"$error":"#REF!"},{"$error":"#REF!"},{"$error":"#REF!"},{"$error":"#REF!"},{"$error":"#REF!"},{"$error":"#REF!"},{"$error":"#REF!"},{"$error":"#REF!"},{"$error":"#REF!"},"1.",{"$f":"IF($BE$62=\"\",\"\",IF(ISBLANK(INDEX(INDIRECT($CG$156),MATCH($BE$62,INDIRECT($CG$151),0)+5+$BC68)),\"\",INDEX(INDIRECT($CG$156),MATCH($BE$62,INDIRECT($CG$151),0)+5+$BC68)))","v":""},null,null,{"$f":"IF($BE$62=\"\",\"\",IF(ISBLANK(INDEX(INDIRECT($CG$157),MATCH($BE$62,INDIRECT($CG$151),0)+5+$BC68)),\"\",INDEX(INDIRECT($CG$157),MATCH($BE$62,INDIRECT($CG$151),0)+5+$BC68)))","v":""},{"$f":"IF($BE$62=\"\",\"\",IF(ISBLANK(INDEX(INDIRECT($CG$158),MATCH($BE$62,INDIRECT($CG$151),0)+5+$BC68)),\"\",INDEX(INDIRECT($CG$158),MATCH($BE$62,INDIRECT($CG$151),0)+5+$BC68)))","v":""},null,null,{"$f":"IF($BE$62=\"\",\"\",IF(ISBLANK(INDEX(INDIRECT($CG$159),MATCH($BE$62,INDIRECT($CG$151),0)+5+$BC68)),\"\",INDEX(INDIRECT($CG$159),MATCH($BE$62,INDIRECT($CG$151),0)+5+$BC68)))","v":""},{"$f":"IF($BE$62=\"\",\"\",IF(ISBLANK(INDEX(INDIRECT($CG$160),MATCH($BE$62,INDIRECT($CG$151),0)+5+$BC68)),\"\",INDEX(INDIRECT($CG$160),MATCH($BE$62,INDIRECT($CG$151),0)+5+$BC68)))","v":""},null,null,{"$f":"IF($BE$62=\"\",\"\",IF(ISBLANK(INDEX(INDIRECT($CG$161),MATCH($BE$62,INDIRECT($CG$151),0)+5+$BC68)),\"\",INDEX(INDIRECT($CG$161),MATCH($BE$62,INDIRECT($CG$151),0)+5+$BC68)))","v":""},null,{"$f":"IF($BE$62=\"\",\"\",IF(ISBLANK(INDEX(INDIRECT($CG$162),MATCH($BE$62,INDIRECT($CG$151),0)+5+$BC68)),\"\",INDEX(INDIRECT($CG$162),MATCH($BE$62,INDIRECT($CG$151),0)+5+$BC68)))","v":""},null,"Group Number Column",null,null,null,"Areas","M41:M140","Areas","M41:M140","Areas","BJ41:BJ140",null,null,null,null,{"$error":"#REF!"}]
[null,null,null,null,null,null,null,null,null,null,null,null,null,null,null,null,null,null,null,null,null,null,null,null,null,null,null,null,null,null,"Elevation (Altitude)",null,null,{"$f":"$CK$42&\" m\"","v":{"$error":"#REF!"}},null,null,null,null,55,{"$error":"#REF!"},{"$error":"#REF!"},{"$error":"#REF!"},{"$error":"#REF!"},{"$error":"#REF!"},{"$error":"#REF!"},{"$error":"#REF!"},{"$error":"#REF!"},{"$error":"#REF!"},{"$error":"#REF!"},{"$error":"#REF!"},{"$error":"#REF!"},{"$error":"#REF!"},{"$error":"#REF!"},{"$error":"#REF!"},"2.","",null,null,"","",null,null,"","",null,null,"",null,"",null,"Quantity Column",null,null,null,"Areas","P41:P140","Areas","P41:P140","Areas","N41:N140",null,null,null,null,{"$error":"#REF!"}]
[null,null,null,null,null,null,null,null,null,null,null,null,null,null,null,null,null,null,null,null,null,null,null,null,null,"Areas",null,null,null,null,null,null,null,null,null,null,null,null,56,{"$error":"#REF!"},{"$error":"#REF!"},{"$error":"#REF!"},{"$error":"#REF!"},{"$error":"#REF!"},{"$error":"#REF!"},{"$error":"#REF!"},{"$error":"#REF!"},{"$error":"#REF!"},{"$error":"#REF!"},{"$error":"#REF!"},{"$error":"#REF!"},{"$error":"#REF!"},{"$error":"#REF!"},{"$error":"#REF!"},"3.","",null,null,"","",null,null,"","",null,null,"",null,"",null,"HLA net area column",null,null,null,"Areas","AB41:AB140","Areas","AB41:AB140","Areas","Z41:Z140",null,null,null,null,{"$error":"#REF!"}]
[null,null,null,null,null,null,null,null,null,null,null,null,null,null,null,null,null,null,null,null,null,null,null,null,null,"Area",null,null,"m2",null,"Thermal Bridges",null,"Length (m) or Qty.","Psi- or Chi-Value (W/mK or W/K)",null,"% Fabric Heat Loss",null,null,57,{"$error":"#REF!"},{"$error":"#REF!"},{"$error":"#REF!"},{"$error":"#REF!"},{"$error":"#REF!"},{"$error":"#REF!"},{"$error":"#REF!"},{"$error":"#REF!"},{"$error":"#REF!"},{"$error":"#REF!"},{"$error":"#REF!"},{"$error":"#REF!"},{"$error":"#REF!"},{"$error":"#REF!"},{"$error":"#REF!"},"4.","",null,null,"","",null,null,"","",null,null,"",null,"",null,"Area Orientation Column",null,null,null,"Areas","AI41:AI140","Areas","AI41:AI140","Areas","AG41:AG140",null,null,null,null,{"$error":"#REF!"}]
[null,null,null,null,null,null,null,null,null,null,null,null,null,null,null,null,null,null,null,null,null,null,null,null,null,"TFA",null,null,{"$f":"$CK$43","v":{"$error":"#REF!"}},null,null,null,null,null,null,null,null,null,58,{"$error":"#REF!"},{"$error":"#REF!"},{"$error":"#REF!"},{"$error":"#REF!"},{"$error":"#REF!"},{"$error":"#REF!"},{"$error":"#REF!"},{"$error":"#REF!"},{"$error":"#REF!"},{"$error":"#REF!"},{"$error":"#REF!"},{"$error":"#REF!"},{"$error":"#REF!"},{"$error":"#REF!"},{"$error":"#REF!"},"5.","",null,null,"","",null,null,"","",null,null,"",null,"",null,"Area inclination range",null,null,null,"Areas","AH41:AH140","Areas","AH41:AH140","Areas","AF41:AF140",null,null,null,null,{"$error":"#REF!"}]
[null,null,null,null,null,null,null,null,null,null,null,null,null,null,null,null,null,null,null,null,null,null,null,null,null,"HLA Floor",null,null,{"$f":"$CK$53","v":{"$error":"#REF!"}},null,null,null,{"$f":"IF(OR(ISBLANK(INDEX(INDIRECT($CG$58),MATCH($AE73,INDIRECT($CG$57),0))),ISBLANK($AE73)),\"\",INDEX(INDIRECT($CG$58),MATCH($AE73,INDIRECT($CG$57),0)))","v":""},{"$f":"IF(OR(ISBLANK(INDEX(INDIRECT($CG$59),MATCH($AE73,INDIRECT($CG$57),0))),ISBLANK($AE73)),\"\",INDEX(INDIRECT($CG$59),MATCH($AE73,INDIRECT($CG$57),0)))","v":""},null,{"$f":"IF(OR(ISBLANK(INDEX(INDIRECT($CG$60),MATCH($AE73,INDIRECT($CG$57),0))),ISBLANK($AE73)),\"\",INDEX(INDIRECT($CG$60),MATCH($AE73,INDIRECT($CG$57),0)))","v":""},null,null,59,{"$error":"#REF!"},{"$error":"#REF!"},{"$error":"#REF!"},{"$error":"#REF!"},{"$error":"#REF!"},{"$error":"#REF!"},{"$error":"#REF!"},{"$error":"#REF!"},{"$error":"#REF!"},{"$error":"#REF!"},{"$error":"#REF!"},{"$error":"#REF!"},{"$error":"#REF!"},{"$error":"#REF!"},{"$error":"#REF!"},"6.","",null,null,"","",null,null,"","",null,null,"",null,"",null,"Area groups range",null,null,null,"Areas","M41:M140","Areas","M41:M140","Areas","M41:M140",null,null,null,null,{"$error":"#REF!"}]
[null,null,null,null,null,null,null,null,null,null,null,null,null,null,null,null,null,null,null,null,null,null,null,null,null,"HLA Walls Above Ground",null,null,{"$f":"$CK$50","v":{"$error":"#REF!"}},null,null,null,"","",null,"",null,null,60,{"$error":"#REF!"},{"$error":"#REF!"},{"$error":"#REF!"},{"$error":"#REF!"},{"$error":"#REF!"},{"$error":"#REF!"},{"$error":"#REF!"},{"$error":"#REF!"},{"$error":"#REF!"},{"$error":"#REF!"},{"$error":"#REF!"},{"$error":"#REF!"},{"$error":"#REF!"},{"$error":"#REF!"},{"$error":"#REF!"},"7.","",null,null,"","",null,null,"","",null,null,"",null,"",null,"Area subtractions range",null,null,null,"Areas","Z41:Z140","Areas","Z41:Z140","Areas","X41:X140",null,null,null,null,{"$error":"#REF!"}]
[null,null,null,null,null,null,null,null,null,null,null,null,null,null,null,null,null,null,null,null,null,null,null,null,null,"HLA Walls Below Ground",null,null,{"$f":"$CK$51","v":{"$error":"#REF!"}},null,null,null,"","",null,"",null,null,61,{"$error":"#REF!"},{"$error":"#REF!"},{"$error":"#REF!"},{"$error":"#REF!"},{"$error":"#REF!"},{"$error":"#REF!"},{"$error":"#REF!"},{"$error":"#REF!"},{"$error":"#REF!"},{"$error":"#REF!"},{"$error":"#REF!"},{"$error":"#REF!"},{"$error":"#REF!"},{"$error":"#REF!"},{"$error":"#REF!"},"8.","",null,null,"","",null,null,"","",null,null,"",null,"",null,"Area errors",null,null,null,"Areas","I41:I140","Areas","I41:I140","Areas","I41:I140",null,null,null,null,{"$error":"#REF!"}]
[null,null,null,null,null,null,null,null,null,null,null,null,null,null,null,null,null,null,null,null,null,null,null,null,null,"HLA Roof",null,null,{"$f":"$CK$52","v":{"$error":"#REF!"}},null,null,null,"","",null,"",null,null,62,{"$error":"#REF!"},{"$error":"#REF!"},{"$error":"#REF!"},{"$error":"#REF!"},{"$error":"#REF!"},{"$error":"#REF!"},{"$error":"#REF!"},{"$error":"#REF!"},{"$error":"#REF!"},{"$error":"#REF!"},{"$error":"#REF!"},{"$error":"#REF!"},{"$error":"#REF!"},{"$error":"#REF!"},{"$error":"#REF!"},null,null,null,null,"Percentage of sec. 1",null,null,null,"Percentage of sec. 2",null,null,null,"Percentage of sec. 3",null,"Total  ",null,"GLAZING SPECS"]
[null,null,null,null,null,null,null,null,null,null,null,null,null,null,null,null,null,null,null,null,null,null,null,null,null,"Windows North",null,null,{"$f":"$CK$44","v":{"$error":"#REF!"}},null,null,null,"","",null,"",null,null,63,{"$error":"#REF!"},{"$error":"#REF!"},{"$error":"#REF!"},{"$error":"#REF!"},{"$error":"#REF!"},{"$error":"#REF!"},{"$error":"#REF!"},{"$error":"#REF!"},{"$error":"#REF!"},{"$error":"#REF!"},{"$error":"#REF!"},{"$error":"#REF!"},{"$error":"#REF!"},{"$error":"#REF!"},{"$error":"#REF!"},null,null,null,null,{"$f":"IF($BE62=\"\",\"\",MAX(0,1-BK77-BO77))","v":""},null,null,null,{"$f":"IF($BE62=\"\",\"\",INDEX(INDIRECT($CG$163),MATCH($BE62,INDIRECT($CG$151),0)+15))","v":""},null,null,null,{"$f":"IF($BE62=\"\",\"\",INDEX(INDIRECT($CG$164),MATCH($BE62,INDIRECT($CG$151),0)+15))","v":""},null,{"$f":"IF(ISNUMBER(BQ68),SUM(BQ68:BQ75)/10,\"\")","v":""},"cm","Glazing type names",null,null,null,"Components","IE15:IE214","Components","IE15:IE214","Components","II13:II250",null,null,null,null,{"$f":"IF($BX$16=\"\",\"'\",\"'[\"&$BX$16&\"]\")&(OFFSET($BW77,0,$BZ$18))&\"'!\"&OFFSET($BX77,0,$BZ$18)","v":{"$error":"#REF!"}}]
[null,null,null,null,null,null,null,null,null,null,null,null,null,null,null,null,null,null,null,null,null,null,null,null,null,"Windows East",null,null,{"$f":"$CK$45","v":{"$error":"#REF!"}},null,null,null,"","",null,"",null,null,64,{"$error":"#REF!"},{"$error":"#REF!"},{"$error":"#REF!"},{"$error":"#REF!"},{"$error":"#REF!"},{"$error":"#REF!"},{"$error":"#REF!"},{"$error":"#REF!"},{"$error":"#REF!"},{"$error":"#REF!"},{"$error":"#REF!"},{"$error":"#REF!"},{"$error":"#REF!"},{"$error":"#REF!"},{"$error":"#REF!"},null,null,null,null,null,null,null,null,null,null,null,null,null,null,null,null,"Glazing g-values",null,null,null,"Components","IF15:IF214","Components","IF15:IF214","Components","IJ13:IJ250",null,null,null,null,{"$f":"IF($BX$16=\"\",\"'\",\"'[\"&$BX$16&\"]\")&(OFFSET($BW78,0,$BZ$18))&\"'!\"&OFFSET($BX78,0,$BZ$18)","v":{"$error":"#REF!"}}]
[null,null,null,null,null,null,null,null,null,null,null,null,null,null,null,null,null,null,null,null,null,null,null,null,null,"Windows South",null,null,{"$f":"$CK$46","v":{"$error":"#REF!"}},null,null,null,"","",null,"",null,null,65,{"$error":"#REF!"},{"$error":"#REF!"},{"$error":"#REF!"},{"$error":"#REF!"},{"$error":"#REF!"},{"$error":"#REF!"},{"$error":"#REF!"},{"$error":"#REF!"},{"$error":"#REF!"},{"$error":"#REF!"},{"$error":"#REF!"},{"$error":"#REF!"},{"$error":"#REF!"},{"$error":"#REF!"},{"$error":"#REF!"},null,null,null,"U-value supplement",{"$f":"IF($BE62=\"\",\"\",IF(ISBLANK(INDEX(INDIRECT($CG$165),MATCH($BE62,INDIRECT($CG$151),0)+17)),\"\",INDEX(INDIRECT($CG$165),MATCH($BE62,INDIRECT($CG$151),0)+17)))","v":""},"W/(m²K)",null,null,null,"U-Value: ",{"$f":"IF($BE62=\"\",\"\",IF(ISBLANK(INDEX(INDIRECT($CG$166),MATCH($BE62,INDIRECT($CG$151),0)+17)),\"\",INDEX(INDIRECT($CG$166),MATCH($BE62,INDIRECT($CG$151),0)+17)))","v":""},null,"W/(m²K)",null,null,null,"Glazing U-values",null,null,null,"Components","IG15:IG214","Components","IG15:IG214","Components","IK13:IK250",null,null,null,null,{"$f":"IF($BX$16=\"\",\"'\",\"'[\"&$BX$16&\"]\")&(OFFSET($BW79,0,$BZ$18))&\"'!\"&OFFSET($BX79,0,$BZ$18)","v":{"$error":"#REF!"}}]
[null,null,null,null,null,null,null,null,null,null,null,null,null,null,null,null,null,null,null,null,null,null,null,null,null,"Windows West",null,null,{"$f":"$CK$47","v":{"$error":"#REF!"}},null,null,null,"","",null,"",null,null,66,{"$error":"#REF!"},{"$error":"#REF!"},{"$error":"#REF!"},{"$error":"#REF!"},{"$error":"#REF!"},{"$error":"#REF!"},{"$error":"#REF!"},{"$error":"#REF!"},{"$error":"#REF!"},{"$error":"#REF!"},{"$error":"#REF!"},{"$error":"#REF!"},{"$error":"#REF!"},{"$error":"#REF!"},{"$error":"#REF!"}]
[null,null,null,null,null,null,null,null,null,null,null,null,null,null,null,null,null,null,null,null,null,null,null,null,null,"Windows Horizontal",null,null,{"$f":"$CK$48","v":{"$error":"#REF!"}},null,null,null,"","",null,"",null,null,67,{"$error":"#REF!"},{"$error":"#REF!"},{"$error":"#REF!"},{"$error":"#REF!"},{"$error":"#REF!"},{"$error":"#REF!"},{"$error":"#REF!"},{"$error":"#REF!"},{"$error":"#REF!"},{"$error":"#REF!"},{"$error":"#REF!"},{"$error":"#REF!"},{"$error":"#REF!"},{"$error":"#REF!"},{"$error":"#REF!"},null,"Assembly no.","Building assembly description",null,null,null,null,null,null,null,null,null,null,null,"Interior insulation?",null,"FRAME SPECS"]
[null,null,null,null,null,null,null,null,null,null,null,null,null,null,null,null,null,null,null,null,null,null,null,null,null,"Opaque Door",null,null,{"$f":"$CK$49","v":{"$error":"#REF!"}},null,null,null,"","",null,"",null,null,68,{"$error":"#REF!"},{"$error":"#REF!"},{"$error":"#REF!"},{"$error":"#REF!"},{"$error":"#REF!"},{"$error":"#REF!"},{"$error":"#REF!"},{"$error":"#REF!"},{"$error":"#REF!"},{"$error":"#REF!"},{"$error":"#REF!"},{"$error":"#REF!"},{"$error":"#REF!"},{"$error":"#REF!"},{"$error":"#REF!"},null,{"$f":"IF($BE82=\"\",\"\",INDEX(INDIRECT($CG$152),MATCH($BE82,INDIRECT($CG$151),0)))","v":""},null,null,null,null,null,null,null,null,null,null,null,null,{"$f":"IF($BE82=\"\",\"\",IF(ISBLANK(INDEX(INDIRECT($CG$153),MATCH($BE82,INDIRECT($CG$151),0))),\"\",INDEX(INDIRECT($CG$153),MATCH($BE82,INDIRECT($CG$151),0))))","v":""},null,"Frame type names",null,null,null,"Components","IL15:IL388","Components","IL15:IL388","Components","IP13:IP700",null,null,null,null,{"$f":"IF($BX$16=\"\",\"'\",\"'[\"&$BX$16&\"]\")&(OFFSET($BW82,0,$BZ$18))&\"'!\"&OFFSET($BX82,0,$BZ$18)","v":{"$error":"#REF!"}}]
[null,null,null,null,null,null,null,null,null,null,null,null,null,null,null,null,null,null,null,null,null,null,null,null,null,null,null,null,null,null,null,null,null,null,null,null,null,null,69,{"$error":"#REF!"},{"$error":"#REF!"},{"$error":"#REF!"},{"$error":"#REF!"},{"$error":"#REF!"},{"$error":"#REF!"},{"$error":"#REF!"},{"$error":"#REF!"},{"$error":"#REF!"},{"$error":"#REF!"},{"$error":"#REF!"},{"$error":"#REF!"},{"$error":"#REF!"},{"$error":"#REF!"},{"$error":"#REF!"},null,null,null,null,null,null,null,null,null,null,null,null,null,null,null,null,"Uf left",null,null,null,"Components","IM15:IM388","Components","IM15:IM388","Components","IU13:IU700",null,null,null,null,{"$error":"#REF!"}]
[null,null,null,null,null,null,null,null,null,null,null,null,null,null,null,null,null,null,null,null,null,null,null,null,null,"Glazing Specifications",null,null,null,null,null,null,"Summertime Overheating",null,null,null,null,null,70,{"$error":"#REF!"},{"$error":"#REF!"},{"$error":"#REF!"},{"$error":"#REF!"},{"$error":"#REF!"},{"$error":"#REF!"},{"$error":"#REF!"},{"$error":"#REF!"},{"$error":"#REF!"},{"$error":"#REF!"},{"$error":"#REF!"},{"$error":"#REF!"},{"$error":"#REF!"},{"$error":"#REF!"},{"$error":"#REF!"},null,null,null,null,null,"     Heat transfer resistance [m²K/W]       interior Rsi :",{"$f":"IF($BE82=\"\",\"\",IF(ISBLANK(INDEX(INDIRECT($CG$154),MATCH($BE82,INDIRECT($CG$151),0)+2)),\"\",INDEX(INDIRECT($CG$154),MATCH($BE82,INDIRECT($CG$151),0)+2)))","v":""},null,null,null,null,null,null,null,null,null,"Uf right",null,null,null,"Components","IN15:IN388","Components","IN15:IN388","Components","IW13:IW700",null,null,null,null,{"$error":"#REF!"}]
[null,null,null,null,null,null,null,null,null,null,null,null,null,null,null,null,null,null,null,null,null,null,null,null,null,"Glazing Type Name",null,null,null,"g-Value","Ug-Value",null,"Type of Ventilation",null,null,"Air changes",null,null,71,{"$error":"#REF!"},{"$error":"#REF!"},{"$error":"#REF!"},{"$error":"#REF!"},{"$error":"#REF!"},{"$error":"#REF!"},{"$error":"#REF!"},{"$error":"#REF!"},{"$error":"#REF!"},{"$error":"#REF!"},{"$error":"#REF!"},{"$error":"#REF!"},{"$error":"#REF!"},{"$error":"#REF!"},{"$error":"#REF!"},null,null,null,null,null,"exterior Rse :",{"$f":"IF($BE82=\"\",\"\",IF(ISBLANK(INDEX(INDIRECT($CG$155),MATCH($BE82,INDIRECT($CG$151),0)+3)),\"\",INDEX(INDIRECT($CG$155),MATCH($BE82,INDIRECT($CG$151),0)+3)))","v":""},null,null,null,null,null,null,null,null,null,"Uf bottom",null,null,null,"Components","IO15:IO388","Components","IO15:IO388","Components","JA13:JA700",null,null,null,null,{"$error":"#REF!"}]
[null,null,null,null,null,null,null,null,null,null,null,null,null,null,null,null,null,null,null,null,null,null,null,null,null,null,null,null,null,{"$f":"IF(OR(ISBLANK(INDEX(INDIRECT($CG$78),MATCH($Z86,INDIRECT($CG$77),0))),ISBLANK($Z86)),\"\",INDEX(INDIRECT($CG$78),MATCH($Z86,INDIRECT($CG$77),0)))","v":""},{"$f":"IF(OR(ISBLANK(INDEX(INDIRECT($CG$79),MATCH($Z86,INDIRECT($CG$77),0))),ISBLANK($Z86)),\"\",INDEX(INDIRECT($CG$79),MATCH($Z86,INDIRECT($CG$77),0)))","v":""},null,"MVHR or AHU",null,null,{"$f":"ROUND($CK$291,2)&\" ac/h\"","v":{"$error":"#REF!"}},null,null,72,{"$error":"#REF!"},{"$error":"#REF!"},{"$error":"#REF!"},{"$error":"#REF!"},{"$error":"#REF!"},{"$error":"#REF!"},{"$error":"#REF!"},{"$error":"#REF!"},{"$error":"#REF!"},{"$error":"#REF!"},{"$error":"#REF!"},{"$error":"#REF!"},{"$error":"#REF!"},{"$error":"#REF!"},{"$error":"#REF!"},null,null,null,null,null,null,null,null,null,null,null,null,null,null,null,null,"Uf top",null,null,null,"Components","IP15:IP388","Components","IP15:IP388","Components","IY13:IY700",null,null,null,null,{"$error":"#REF!"}]
[null,null,null,null,null,null,null,null,null,null,null,null,null,null,null,null,null,null,null,null,null,null,null,null,null,null,null,null,null,{"$f":"IF(OR(ISBLANK(INDEX(INDIRECT($CG$78),MATCH($Z87,INDIRECT($CG$77),0))),ISBLANK($Z87)),\"\",INDEX(INDIRECT($CG$78),MATCH($Z87,INDIRECT($CG$77),0)))","v":""},{"$f":"IF(OR(ISBLANK(INDEX(INDIRECT($CG$79),MATCH($Z87,INDIRECT($CG$77),0))),ISBLANK($Z87)),\"\",INDEX(INDIRECT($CG$79),MATCH($Z87,INDIRECT($CG$77),0)))","v":""},null,"Summer bypass enabled? (Yes/No)",null,null,{"$f":"IF($CK$292=\"x\",\"No\",\"Yes\")","v":{"$error":"#REF!"}},null,null,73,{"$error":"#REF!"},{"$error":"#REF!"},{"$error":"#REF!"},{"$error":"#REF!"},{"$error":"#REF!"},{"$error":"#REF!"},{"$error":"#REF!"},{"$error":"#REF!"},{"$error":"#REF!"},{"$error":"#REF!"},{"$error":"#REF!"},{"$error":"#REF!"},{"$error":"#REF!"},{"$error":"#REF!"},{"$error":"#REF!"},null,"Area section 1",null,null,"l [W/(mK)]","Area section 2 (optional)",null,null,"l [W/(mK)]","Area section 3 (optional)",null,null,"l [W/(mK)]",null,"Thickness [mm]",null,"Frame width left",null,null,null,"Components","IQ15:IQ388","Components","IQ15:IQ388","Components","IT13:IT700",null,null,null,null,{"$error":"#REF!"}]
[null,null,null,null,null,null,null,null,null,null,null,null,null,null,null,null,null,null,null,null,null,null,null,null,null,null,null,null,null,{"$f":"IF(OR(ISBLANK(INDEX(INDIRECT($CG$78),MATCH($Z88,INDIRECT($CG$77),0))),ISBLANK($Z88)),\"\",INDEX(INDIRECT($CG$78),MATCH($Z88,INDIRECT($CG$77),0)))","v":""},{"$f":"IF(OR(ISBLANK(INDEX(INDIRECT($CG$79),MATCH($Z88,INDIRECT($CG$77),0))),ISBLANK($Z88)),\"\",INDEX(INDIRECT($CG$79),MATCH($Z88,INDIRECT($CG$77),0)))","v":""},null,"Extract-only system",null,null,{"$f":"ROUND($CK293,2)&\" ac/h\"","v":{"$error":"#REF!"}},null,null,74,{"$error":"#REF!"},{"$error":"#REF!"},{"$error":"#REF!"},{"$error":"#REF!"},{"$error":"#REF!"},{"$error":"#REF!"},{"$error":"#REF!"},{"$error":"#REF!"},{"$error":"#REF!"},{"$error":"#REF!"},{"$error":"#REF!"},{"$error":"#REF!"},{"$error":"#REF!"},{"$error":"#REF!"},{"$error":"#REF!"},"1.",{"$f":"IF($BE$82=\"\",\"\",IF(ISBLANK(INDEX(INDIRECT($CG$156),MATCH($BE$82,INDIRECT($CG$151),0)+5+$BC88)),\"\",INDEX(INDIRECT($CG$156),MATCH($BE$82,INDIRECT($CG$151),0)+5+$BC88)))","v":""},null,null,{"$f":"IF($BE$82=\"\",\"\",IF(ISBLANK(INDEX(INDIRECT($CG$157),MATCH($BE$82,INDIRECT($CG$151),0)+5+$BC88)),\"\",INDEX(INDIRECT($CG$157),MATCH($BE$82,INDIRECT($CG$151),0)+5+$BC88)))","v":""},{"$f":"IF($BE$82=\"\",\"\",IF(ISBLANK(INDEX(INDIRECT($CG$158),MATCH($BE$82,INDIRECT($CG$151),0)+5+$BC88)),\"\",INDEX(INDIRECT($CG$158),MATCH($BE$82,INDIRECT($CG$151),0)+5+$BC88)))","v":""},null,null,{"$f":"IF($BE$82=\"\",\"\",IF(ISBLANK(INDEX(INDIRECT($CG$159),MATCH($BE$82,INDIRECT($CG$151),0)+5+$BC88)),\"\",INDEX(INDIRECT($CG$159),MATCH($BE$82,INDIRECT($CG$151),0)+5+$BC88)))","v":""},{"$f":"IF($BE$82=\"\",\"\",IF(ISBLANK(INDEX(INDIRECT($CG$160),MATCH($BE$82,INDIRECT($CG$151),0)+5+$BC88)),\"\",INDEX(INDIRECT($CG$160),MATCH($BE$82,INDIRECT($CG$151),0)+5+$BC88)))","v":""},null,null,{"$f":"IF($BE$82=\"\",\"\",IF(ISBLANK(INDEX(INDIRECT($CG$161),MATCH($BE$82,INDIRECT($CG$151),0)+5+$BC88)),\"\",INDEX(INDIRECT($CG$161),MATCH($BE$82,INDIRECT($CG$151),0)+5+$BC88)))","v":""},null,{"$f":"IF($BE$82=\"\",\"\",IF(ISBLANK(INDEX(INDIRECT($CG$153),MATCH($BE$82,INDIRECT($CG$151),0)+5+$BC88)),\"\",INDEX(INDIRECT($CG$153),MATCH($BE$82,INDIRECT($CG$151),0)+5+$BC88)))","v":""},null,"Frame width right",null,null,null,"Components","IR15:IR388","Components","IR15:IR388","Components","IV13:IV700",null,null,null,null,{"$error":"#REF!"}]
[null,null,null,null,null,null,null,null,null,null,null,null,null,null,null,null,null,null,null,null,null,null,null,null,null,null,null,null,null,{"$f":"IF(OR(ISBLANK(INDEX(INDIRECT($CG$78),MATCH($Z89,INDIRECT($CG$77),0))),ISBLANK($Z89)),\"\",INDEX(INDIRECT($CG$78),MATCH($Z89,INDIRECT($CG$77),0)))","v":""},{"$f":"IF(OR(ISBLANK(INDEX(INDIRECT($CG$79),MATCH($Z89,INDIRECT($CG$77),0))),ISBLANK($Z89)),\"\",INDEX(INDIRECT($CG$79),MATCH($Z89,INDIRECT($CG$77),0)))","v":""},null,"Window ventilation (24-hour)",null,null,{"$f":"ROUND($CK294,2)&\" ac/h\"","v":{"$error":"#REF!"}},null,null,75,{"$error":"#REF!"},{"$error":"#REF!"},{"$error":"#REF!"},{"$error":"#REF!"},{"$error":"#REF!"},{"$error":"#REF!"},{"$error":"#REF!"},{"$error":"#REF!"},{"$error":"#REF!"},{"$error":"#REF!"},{"$error":"#REF!"},{"$error":"#REF!"},{"$error":"#REF!"},{"$error":"#REF!"},{"$error":"#REF!"},"2.","",null,null,"","",null,null,"","",null,null,"",null,"",null,"Frame width bottom",null,null,null,"Components","IS15:IS388","Components","IS15:IS388","Components","IZ13:IZ700",null,null,null,null,{"$error":"#REF!"}]
[null,null,null,null,null,null,null,null,null,null,null,null,null,null,null,null,null,null,null,null,null,null,null,null,null,null,null,null,null,{"$f":"IF(OR(ISBLANK(INDEX(INDIRECT($CG$78),MATCH($Z90,INDIRECT($CG$77),0))),ISBLANK($Z90)),\"\",INDEX(INDIRECT($CG$78),MATCH($Z90,INDIRECT($CG$77),0)))","v":""},{"$f":"IF(OR(ISBLANK(INDEX(INDIRECT($CG$79),MATCH($Z90,INDIRECT($CG$77),0))),ISBLANK($Z90)),\"\",INDEX(INDIRECT($CG$79),MATCH($Z90,INDIRECT($CG$77),0)))","v":""},null,"Additional night-time window opening",null,null,{"$f":"ROUND($CK295,2)&\" ac/h\"","v":{"$error":"#REF!"}},null,null,76,{"$error":"#REF!"},{"$error":"#REF!"},{"$error":"#REF!"},{"$error":"#REF!"},{"$error":"#REF!"},{"$error":"#REF!"},{"$error":"#REF!"},{"$error":"#REF!"},{"$error":"#REF!"},{"$error":"#REF!"},{"$error":"#REF!"},{"$error":"#REF!"},{"$error":"#REF!"},{"$error":"#REF!"},{"$error":"#REF!"},"3.","",null,null,"","",null,null,"","",null,null,"",null,"",null,"Frame width top",null,null,null,"Components","IT15:IT388","Components","IT15:IT388","Components","IX13:IX700",null,null,null,null,{"$error":"#REF!"}]
[null,null,null,null,null,null,null,null,null,null,null,null,null,null,null,null,null,null,null,null,null,null,null,null,null,null,null,null,null,null,null,null,"Additional mech. ventilation, automatic",null,null,{"$f":"ROUND($CK296,2)&\" ac/h\"","v":{"$error":"#REF!"}},null,null,77,{"$error":"#REF!"},{"$error":"#REF!"},{"$error":"#REF!"},{"$error":"#REF!"},{"$error":"#REF!"},{"$error":"#REF!"},{"$error":"#REF!"},{"$error":"#REF!"},{"$error":"#REF!"},{"$error":"#REF!"},{"$error":"#REF!"},{"$error":"#REF!"},{"$error":"#REF!"},{"$error":"#REF!"},{"$error":"#REF!"},"4.","",null,null,"","",null,null,"","",null,null,"",null,"",null,"Spacer Psi left",null,null,null,"Components","IU15:IU388","Components","IU15:IU388","Components","IR13:IR700",null,null,null,null,{"$error":"#REF!"}]
[null,null,null,null,null,null,null,null,null,null,null,null,null,null,null,null,null,null,null,null,null,null,null,null,null,null,null,null,null,null,null,null,null,null,null,null,null,null,78,{"$error":"#REF!"},{"$error":"#REF!"},{"$error":"#REF!"},{"$error":"#REF!"},{"$error":"#REF!"},{"$error":"#REF!"},{"$error":"#REF!"},{"$error":"#REF!"},{"$error":"#REF!"},{"$error":"#REF!"},{"$error":"#REF!"},{"$error":"#REF!"},{"$error":"#REF!"},{"$error":"#REF!"},{"$error":"#REF!"},"5.","",null,null,"","",null,null,"","",null,null,"",null,"",null,"Spacer Psi right",null,null,null,"Components","IV15:IV388","Components","IV15:IV388","Components","IR13:IR700",null,null,null,null,{"$error":"#REF!"}]
[null,null,null,null,null,null,null,null,null,null,null,null,null,null,null,null,null,null,null,null,null,null,null,null,null,"Frame Specifications",null,null,null,"Uf (W/m2K)",null,null,null,"Frame Width (mm)",null,null,null,null,79,{"$error":"#REF!"},{"$error":"#REF!"},{"$error":"#REF!"},{"$error":"#REF!"},{"$error":"#REF!"},{"$error":"#REF!"},{"$error":"#REF!"},{"$error":"#REF!"},{"$error":"#REF!"},{"$error":"#REF!"},{"$error":"#REF!"},{"$error":"#REF!"},{"$error":"#REF!"},{"$error":"#REF!"},{"$error":"#REF!"},"6.","",null,null,"","",null,null,"","",null,null,"",null,"",null,"Spacer Psi bottom",null,null,null,"Components","IW15:IW388","Components","IW15:IW388","Components","IR13:IR700",null,null,null,null,{"$error":"#REF!"}]
[null,null,null,null,null,null,null,null,null,null,null,null,null,null,null,null,null,null,null,null,null,null,null,null,null,"Frame Type Name",null,null,null,"Left","Right","Bottom","Top","Left","Right","Bottom","Top",null,80,{"$error":"#REF!"},{"$error":"#REF!"},{"$error":"#REF!"},{"$error":"#REF!"},{"$error":"#REF!"},{"$error":"#REF!"},{"$error":"#REF!"},{"$error":"#REF!"},{"$error":"#REF!"},{"$error":"#REF!"},{"$error":"#REF!"},{"$error":"#REF!"},{"$error":"#REF!"},{"$error":"#REF!"},{"$error":"#REF!"},"7.","",null,null,"","",null,null,"","",null,null,"",null,"",null,"Spacer Psi top",null,null,null,"Components","IX15:IX388","Components","IX15:IX388","Components","IR13:IR700",null,null,null,null,{"$error":"#REF!"}]
[null,null,null,null,null,null,null,null,null,null,null,null,null,null,null,null,null,null,null,null,null,null,null,null,null,null,null,null,null,{"$f":"IF(OR(ISBLANK(INDEX(INDIRECT($CG$83),MATCH($Z95,INDIRECT($CG$82),0))),ISBLANK($Z95)),\"\",INDEX(INDIRECT($CG$83),MATCH($Z95,INDIRECT($CG$82),0)))","v":""},{"$f":"IF(OR(ISBLANK(INDEX(INDIRECT($CG$84),MATCH($Z95,INDIRECT($CG$82),0))),ISBLANK($Z95)),\"\",INDEX(INDIRECT($CG$84),MATCH($Z95,INDIRECT($CG$82),0)))","v":""},{"$f":"IF(OR(ISBLANK(INDEX(INDIRECT($CG$85),MATCH($Z95,INDIRECT($CG$82),0))),ISBLANK($Z95)),\"\",INDEX(INDIRECT($CG$85),MATCH($Z95,INDIRECT($CG$82),0)))","v":""},{"$f":"IF(OR(ISBLANK(INDEX(INDIRECT($CG$86),MATCH($Z95,INDIRECT($CG$82),0))),ISBLANK($Z95)),\"\",INDEX(INDIRECT($CG$86),MATCH($Z95,INDIRECT($CG$82),0)))","v":""},{"$f":"IF(OR(ISBLANK(INDEX(INDIRECT($CG$87),MATCH($Z95,INDIRECT($CG$82),0))),ISBLANK($Z95)),\"\",INDEX(INDIRECT($CG$87),MATCH($Z95,INDIRECT($CG$82),0)))","v":""},{"$f":"IF(OR(ISBLANK(INDEX(INDIRECT($CG$88),MATCH($Z95,INDIRECT($CG$82),0))),ISBLANK($Z95)),\"\",INDEX(INDIRECT($CG$88),MATCH($Z95,INDIRECT($CG$82),0)))","v":""},{"$f":"IF(OR(ISBLANK(INDEX(INDIRECT($CG$89),MATCH($Z95,INDIRECT($CG$82),0))),ISBLANK($Z95)),\"\",INDEX(INDIRECT($CG$89),MATCH($Z95,INDIRECT($CG$82),0)))","v":""},{"$f":"IF(OR(ISBLANK(INDEX(INDIRECT($CG$90),MATCH($Z95,INDIRECT($CG$82),0))),ISBLANK($Z95)),\"\",INDEX(INDIRECT($CG$90),MATCH($Z95,INDIRECT($CG$82),0)))","v":""},null,81,{"$error":"#REF!"},{"$error":"#REF!"},{"$error":"#REF!"},{"$error":"#REF!"},{"$error":"#REF!"},{"$error":"#REF!"},{"$error":"#REF!"},{"$error":"#REF!"},{"$error":"#REF!"},{"$error":"#REF!"},{"$error":"#REF!"},{"$error":"#REF!"},{"$error":"#REF!"},{"$error":"#REF!"},{"$error":"#REF!"},"8.","",null,null,"","",null,null,"","",null,null,"",null,"",null,"Installation Psi left",null,null,null,"Components","IY15:IY388","Components","IY15:IY388","Components","JZ13:JZ700",null,null,null,null,{"$error":"#REF!"}]
[null,null,null,null,null,null,null,null,null,null,null,null,null,null,null,null,null,null,null,null,null,null,null,null,null,null,null,null,null,{"$f":"IF(OR(ISBLANK(INDEX(INDIRECT($CG$83),MATCH($Z96,INDIRECT($CG$82),0))),ISBLANK($Z96)),\"\",INDEX(INDIRECT($CG$83),MATCH($Z96,INDIRECT($CG$82),0)))","v":""},{"$f":"IF(OR(ISBLANK(INDEX(INDIRECT($CG$84),MATCH($Z96,INDIRECT($CG$82),0))),ISBLANK($Z96)),\"\",INDEX(INDIRECT($CG$84),MATCH($Z96,INDIRECT($CG$82),0)))","v":""},{"$f":"IF(OR(ISBLANK(INDEX(INDIRECT($CG$85),MATCH($Z96,INDIRECT($CG$82),0))),ISBLANK($Z96)),\"\",INDEX(INDIRECT($CG$85),MATCH($Z96,INDIRECT($CG$82),0)))","v":""},{"$f":"IF(OR(ISBLANK(INDEX(INDIRECT($CG$86),MATCH($Z96,INDIRECT($CG$82),0))),ISBLANK($Z96)),\"\",INDEX(INDIRECT($CG$86),MATCH($Z96,INDIRECT($CG$82),0)))","v":""},{"$f":"IF(OR(ISBLANK(INDEX(INDIRECT($CG$87),MATCH($Z96,INDIRECT($CG$82),0))),ISBLANK($Z96)),\"\",INDEX(INDIRECT($CG$87),MATCH($Z96,INDIRECT($CG$82),0)))","v":""},{"$f":"IF(OR(ISBLANK(INDEX(INDIRECT($CG$88),MATCH($Z96,INDIRECT($CG$82),0))),ISBLANK($Z96)),\"\",INDEX(INDIRECT($CG$88),MATCH($Z96,INDIRECT($CG$82),0)))","v":""},{"$f":"IF(OR(ISBLANK(INDEX(INDIRECT($CG$89),MATCH($Z96,INDIRECT($CG$82),0))),ISBLANK($Z96)),\"\",INDEX(INDIRECT($CG$89),MATCH($Z96,INDIRECT($CG$82),0)))","v":""},{"$f":"IF(OR(ISBLANK(INDEX(INDIRECT($CG$90),MATCH($Z96,INDIRECT($CG$82),0))),ISBLANK($Z96)),\"\",INDEX(INDIRECT($CG$90),MATCH($Z96,INDIRECT($CG$82),0)))","v":""},null,82,{"$error":"#REF!"},{"$error":"#REF!"},{"$error":"#REF!"},{"$error":"#REF!"},{"$error":"#REF!"},{"$error":"#REF!"},{"$error":"#REF!"},{"$error":"#REF!"},{"$error":"#REF!"},{"$error":"#REF!"},{"$error":"#REF!"},{"$error":"#REF!"},{"$error":"#REF!"},{"$error":"#REF!"},{"$error":"#REF!"},null,null,null,null,"Percentage of sec. 1",null,null,null,"Percentage of sec. 2",null,null,null,"Percentage of sec. 3",null,"Total  ",null,"Installation Psi right",null,null,null,"Components","IZ15:IZ388","Components","IZ15:IZ388","Components","JZ13:JZ700",null,null,null,null,{"$error":"#REF!"}]
[null,null,null,null,null,null,null,null,null,null,null,null,null,null,null,null,null,null,null,null,null,null,null,null,null,null,null,null,null,{"$f":"IF(OR(ISBLANK(INDEX(INDIRECT($CG$83),MATCH($Z97,INDIRECT($CG$82),0))),ISBLANK($Z97)),\"\",INDEX(INDIRECT($CG$83),MATCH($Z97,INDIRECT($CG$82),0)))","v":""},{"$f":"IF(OR(ISBLANK(INDEX(INDIRECT($CG$84),MATCH($Z97,INDIRECT($CG$82),0))),ISBLANK($Z97)),\"\",INDEX(INDIRECT($CG$84),MATCH($Z97,INDIRECT($CG$82),0)))","v":""},{"$f":"IF(OR(ISBLANK(INDEX(INDIRECT($CG$85),MATCH($Z97,INDIRECT($CG$82),0))),ISBLANK($Z97)),\"\",INDEX(INDIRECT($CG$85),MATCH($Z97,INDIRECT($CG$82),0)))","v":""},{"$f":"IF(OR(ISBLANK(INDEX(INDIRECT($CG$86),MATCH($Z97,INDIRECT($CG$82),0))),ISBLANK($Z97)),\"\",INDEX(INDIRECT($CG$86),MATCH($Z97,INDIRECT($CG$82),0)))","v":""},{"$f":"IF(OR(ISBLANK(INDEX(INDIRECT($CG$87),MATCH($Z97,INDIRECT($CG$82),0))),ISBLANK($Z97)),\"\",INDEX(INDIRECT($CG$87),MATCH($Z97,INDIRECT($CG$82),0)))","v":""},{"$f":"IF(OR(ISBLANK(INDEX(INDIRECT($CG$88),MATCH($Z97,INDIRECT($CG$82),0))),ISBLANK($Z97)),\"\",INDEX(INDIRECT($CG$88),MATCH($Z97,INDIRECT($CG$82),0)))","v":""},{"$f":"IF(OR(ISBLANK(INDEX(INDIRECT($CG$89),MATCH($Z97,INDIRECT($CG$82),0))),ISBLANK($Z97)),\"\",INDEX(INDIRECT($CG$89),MATCH($Z97,INDIRECT($CG$82),0)))","v":""},{"$f":"IF(OR(ISBLANK(INDEX(INDIRECT($CG$90),MATCH($Z97,INDIRECT($CG$82),0))),ISBLANK($Z97)),\"\",INDEX(INDIRECT($CG$90),MATCH($Z97,INDIRECT($CG$82),0)))","v":""},null,83,{"$f":"IF(OR((INDIRECT($CG$111&($CK$321)+$AM97))=\"\",$AO97=\"\"),\"\",(INDIRECT($CG$111&($CK$321)+$AM97)))","v":{"$error":"#REF!"}},{"$f":"IF(ISBLANK(INDIRECT($CG$117&($CK$321)+$AM97)),\"\",INDIRECT($CG$117&($CK$321)+$AM97))","v":{"$error":"#REF!"}},{"$f":"IF(OR((INDIRECT($CG$107&($CK$321)+$AM97))=\"\",$AO97=\"\"),\"\",(INDIRECT($CG$107&($CK$321)+$AM97)))","v":{"$error":"#REF!"}},{"$f":"IF(OR((INDIRECT($CG$102&($CK$321)+$AM97))=\"\",$AO97=\"\"),\"\",(INDIRECT($CG$102&($CK$321)+$AM97)))","v":{"$error":"#REF!"}},{"$f":"(INDIRECT($CG$103&($CK$321)+$AM97))","v":{"$error":"#REF!"}},{"$f":"INDIRECT($CG$106&($CK$321)+$AM97)","v":{"$error":"#REF!"}},{"$f":"INDIRECT($CG$104&($CK$321)+$AM97)","v":{"$error":"#REF!"}},{"$f":"IF(OR((INDIRECT($CG$118&($CK$321)+$AM97))=\"\",$AO97=\"\"),\"\",(INDIRECT($CG$118&($CK$321)+$AM97)))","v":{"$error":"#REF!"}},{"$f":"IF(OR((INDIRECT($CG$119&($CK$321)+$AM97))=\"\",$AO97=\"\"),\"\",(INDIRECT($CG$119&($CK$321)+$AM97)))","v":{"$error":"#REF!"}},{"$f":"IF(OR((INDIRECT($CG$136&($CK$322)+$AM97))=\"\",$AO97=\"\"),\"\",(INDIRECT($CG$136&($CK$322)+$AM97)))","v":{"$error":"#REF!"}},{"$f":"IF(OR((INDIRECT($CG$137&($CK$322)+$AM97))=\"\",$AO97=\"\"),\"\",(INDIRECT($CG$137&($CK$322)+$AM97)))","v":{"$error":"#REF!"}},{"$f":"IF($AN97=\"\",\"\",$CK$122*$CK$123*INDIRECT($CG$120&($CK$322)+$AM97))","v":{"$error":"#REF!"}},{"$f":"IF($AN97=\"\",\"\",INDIRECT($CG$102&($CK$321)+$AM97)*INDIRECT($CG$104&($CK$321)+$AM97)*$CK$109)","v":{"$error":"#REF!"}},{"$f":"IF($AO97=\"\",\"\",AY97-AZ97)","v":{"$error":"#REF!"}},{"$f":"IF($AO97=\"\",\"\",(AY97-AZ97)/$AB$4)","v":{"$error":"#REF!"}},null,null,null,null,{"$f":"IF($BE82=\"\",\"\",MAX(0,1-BK97-BO97))","v":""},null,null,null,{"$f":"IF($BE82=\"\",\"\",INDEX(INDIRECT($CG$163),MATCH($BE82,INDIRECT($CG$151),0)+15))","v":""},null,null,null,{"$f":"IF($BE82=\"\",\"\",INDEX(INDIRECT($CG$164),MATCH($BE82,INDIRECT($CG$151),0)+15))","v":""},null,{"$f":"IF(ISNUMBER(BQ88),SUM(BQ88:BQ95)/10,\"\")","v":""},"cm","Installation Psi bottom",null,null,null,"Components","JA15:JA388","Components","JA15:JA388","Components","KB13:KB700",null,null,null,null,{"$error":"#REF!"}]
[null,null,null,null,null,null,null,null,null,null,null,null,null,null,null,null,null,null,null,null,null,null,null,null,null,null,null,null,null,{"$f":"IF(OR(ISBLANK(INDEX(INDIRECT($CG$83),MATCH($Z98,INDIRECT($CG$82),0))),ISBLANK($Z98)),\"\",INDEX(INDIRECT($CG$83),MATCH($Z98,INDIRECT($CG$82),0)))","v":""},{"$f":"IF(OR(ISBLANK(INDEX(INDIRECT($CG$84),MATCH($Z98,INDIRECT($CG$82),0))),ISBLANK($Z98)),\"\",INDEX(INDIRECT($CG$84),MATCH($Z98,INDIRECT($CG$82),0)))","v":""},{"$f":"IF(OR(ISBLANK(INDEX(INDIRECT($CG$85),MATCH($Z98,INDIRECT($CG$82),0))),ISBLANK($Z98)),\"\",INDEX(INDIRECT($CG$85),MATCH($Z98,INDIRECT($CG$82),0)))","v":""},{"$f":"IF(OR(ISBLANK(INDEX(INDIRECT($CG$86),MATCH($Z98,INDIRECT($CG$82),0))),ISBLANK($Z98)),\"\",INDEX(INDIRECT($CG$86),MATCH($Z98,INDIRECT($CG$82),0)))","v":""},{"$f":"IF(OR(ISBLANK(INDEX(INDIRECT($CG$87),MATCH($Z98,INDIRECT($CG$82),0))),ISBLANK($Z98)),\"\",INDEX(INDIRECT($CG$87),MATCH($Z98,INDIRECT($CG$82),0)))","v":""},{"$f":"IF(OR(ISBLANK(INDEX(INDIRECT($CG$88),MATCH($Z98,INDIRECT($CG$82),0))),ISBLANK($Z98)),\"\",INDEX(INDIRECT($CG$88),MATCH($Z98,INDIRECT($CG$82),0)))","v":""},{"$f":"IF(OR(ISBLANK(INDEX(INDIRECT($CG$89),MATCH($Z98,INDIRECT($CG$82),0))),ISBLANK($Z98)),\"\",INDEX(INDIRECT($CG$89),MATCH($Z98,INDIRECT($CG$82),0)))","v":""},{"$f":"IF(OR(ISBLANK(INDEX(INDIRECT($CG$90),MATCH($Z98,INDIRECT($CG$82),0))),ISBLANK($Z98)),\"\",INDEX(INDIRECT($CG$90),MATCH($Z98,INDIRECT($CG$82),0)))","v":""},null,84,{"$error":"#REF!"},{"$error":"#REF!"},{"$error":"#REF!"},{"$error":"#REF!"},{"$error":"#REF!"},{"$error":"#REF!"},{"$error":"#REF!"},{"$error":"#REF!"},{"$error":"#REF!"},{"$error":"#REF!"},{"$error":"#REF!"},{"$error":"#REF!"},{"$error":"#REF!"},{"$error":"#REF!"},{"$error":"#REF!"},null,null,null,null,null,null,null,null,null,null,null,null,null,null,null,null,"Installation Psi top",null,null,null,"Components","JB15:JB388","Components","JB15:JB388","Components","KA13:KA700",null,null,null,null,{"$error":"#REF!"}]
[null,null,null,null,null,null,null,null,null,null,null,null,null,null,null,null,null,null,null,null,null,null,null,null,null,null,null,null,null,{"$f":"IF(OR(ISBLANK(INDEX(INDIRECT($CG$83),MATCH($Z99,INDIRECT($CG$82),0))),ISBLANK($Z99)),\"\",INDEX(INDIRECT($CG$83),MATCH($Z99,INDIRECT($CG$82),0)))","v":""},{"$f":"IF(OR(ISBLANK(INDEX(INDIRECT($CG$84),MATCH($Z99,INDIRECT($CG$82),0))),ISBLANK($Z99)),\"\",INDEX(INDIRECT($CG$84),MATCH($Z99,INDIRECT($CG$82),0)))","v":""},{"$f":"IF(OR(ISBLANK(INDEX(INDIRECT($CG$85),MATCH($Z99,INDIRECT($CG$82),0))),ISBLANK($Z99)),\"\",INDEX(INDIRECT($CG$85),MATCH($Z99,INDIRECT($CG$82),0)))","v":""},{"$f":"IF(OR(ISBLANK(INDEX(INDIRECT($CG$86),MATCH($Z99,INDIRECT($CG$82),0))),ISBLANK($Z99)),\"\",INDEX(INDIRECT($CG$86),MATCH($Z99,INDIRECT($CG$82),0)))","v":""},{"$f":"IF(OR(ISBLANK(INDEX(INDIRECT($CG$87),MATCH($Z99,INDIRECT($CG$82),0))),ISBLANK($Z99)),\"\",INDEX(INDIRECT($CG$87),MATCH($Z99,INDIRECT($CG$82),0)))","v":""},{"$f":"IF(OR(ISBLANK(INDEX(INDIRECT($CG$88),MATCH($Z99,INDIRECT($CG$82),0))),ISBLANK($Z99)),\"\",INDEX(INDIRECT($CG$88),MATCH($Z99,INDIRECT($CG$82),0)))","v":""},{"$f":"IF(OR(ISBLANK(INDEX(INDIRECT($CG$89),MATCH($Z99,INDIRECT($CG$82),0))),ISBLANK($Z99)),\"\",INDEX(INDIRECT($CG$89),MATCH($Z99,INDIRECT($CG$82),0)))","v":""},{"$f":"IF(OR(ISBLANK(INDEX(INDIRECT($CG$90),MATCH($Z99,INDIRECT($CG$82),0))),ISBLANK($Z99)),\"\",INDEX(INDIRECT($CG$90),MATCH($Z99,INDIRECT($CG$82),0)))","v":""},null,85,{"$error":"#REF!"},{"$error":"#REF!"},{"$error":"#REF!"},{"$error":"#REF!"},{"$error":"#REF!"},{"$error":"#REF!"},{"$error":"#REF!"},{"$error":"#REF!"},{"$error":"#REF!"},{"$error":"#REF!"},{"$error":"#REF!"},{"$error":"#REF!"},{"$error":"#REF!"},{"$error":"#REF!"},{"$error":"#REF!"},null,null,null,"U-value supplement",{"$f":"IF($BE82=\"\",\"\",IF(ISBLANK(INDEX(INDIRECT($CG$165),MATCH($BE82,INDIRECT($CG$151),0)+17)),\"\",INDEX(INDIRECT($CG$165),MATCH($BE82,INDIRECT($CG$151),0)+17)))","v":""},"W/(m²K)",null,null,null,"U-Value: ",{"$f":"IF($BE82=\"\",\"\",IF(ISBLANK(INDEX(INDIRECT($CG$166),MATCH($BE82,INDIRECT($CG$151),0)+17)),\"\",INDEX(INDIRECT($CG$166),MATCH($BE82,INDIRECT($CG$151),0)+17)))","v":""},null,"W/(m²K)"]
[null,null,null,null,null,null,null,null,null,null,null,null,null,null,null,null,null,null,null,null,null,null,null,null,null,null,null,null,null,null,null,null,null,null,null,null,null,null,86,{"$error":"#REF!"},{"$error":"#REF!"},{"$error":"#REF!"},{"$error":"#REF!"},{"$error":"#REF!"},{"$error":"#REF!"},{"$error":"#REF!"},{"$error":"#REF!"},{"$error":"#REF!"},{"$error":"#REF!"},{"$error":"#REF!"},{"$error":"#REF!"},{"$error":"#REF!"},{"$error":"#REF!"},{"$error":"#REF!"},null,null,null,null,null,null,null,null,null,null,null,null,null,null,null,null,"WINDOWS"]
[null,null,null,null,null,null,null,null,null,null,null,null,null,null,null,null,null,null,null,null,null,null,null,null,null,"Frame Specifications (continued)",null,null,null,"Spacer Psi (W/mK)",null,null,null,"Installation Psi (W/mK)",null,null,null,null,87,{"$error":"#REF!"},{"$error":"#REF!"},{"$error":"#REF!"},{"$error":"#REF!"},{"$error":"#REF!"},{"$error":"#REF!"},{"$error":"#REF!"},{"$error":"#REF!"},{"$error":"#REF!"},{"$error":"#REF!"},{"$error":"#REF!"},{"$error":"#REF!"},{"$error":"#REF!"},{"$error":"#REF!"},{"$error":"#REF!"},null,"Assembly no.","Building assembly description",null,null,null,null,null,null,null,null,null,null,null,"Interior insulation?",null,"Window sheet row change start",null,null,null,null,0,null,0,null,0]
[null,null,null,null,null,null,null,null,null,null,null,null,null,null,null,null,null,null,null,null,null,null,null,null,null,"Frame Type Name",null,null,null,"Left","Right","Bottom","Top","Left","Right","Bottom","Top",null,88,{"$error":"#REF!"},{"$error":"#REF!"},{"$error":"#REF!"},{"$error":"#REF!"},{"$error":"#REF!"},{"$error":"#REF!"},{"$error":"#REF!"},{"$error":"#REF!"},{"$error":"#REF!"},{"$error":"#REF!"},{"$error":"#REF!"},{"$error":"#REF!"},{"$error":"#REF!"},{"$error":"#REF!"},{"$error":"#REF!"},null,{"$f":"IF($BE102=\"\",\"\",INDEX(INDIRECT($CG$152),MATCH($BE102,INDIRECT($CG$151),0)))","v":""},"",null,null,null,null,null,null,null,null,null,null,null,{"$f":"IF($BE102=\"\",\"\",IF(ISBLANK(INDEX(INDIRECT($CG$153),MATCH($BE102,INDIRECT($CG$151),0))),\"\",INDEX(INDIRECT($CG$153),MATCH($BE102,INDIRECT($CG$151),0))))","v":""},null,"Window Area",null,null,null,"Windows","AF","Windows","AF","Windows","AW",null,null,null,null,{"$f":"IF($BX$16=\"\",\"'\",\"'[\"&$BX$16&\"]\")&(OFFSET($BW102,0,$BZ$18))&\"'!\"&OFFSET($BX102,0,$BZ$18)","v":{"$error":"#REF!"}}]
[null,null,null,null,null,null,null,null,null,null,null,null,null,null,null,null,null,null,null,null,null,null,null,null,null,{"$f":"IF(ISBLANK($Z95),\"\",$Z95)","v":""},null,null,null,{"$f":"IF(OR(ISBLANK(INDEX(INDIRECT($CG$91),MATCH($Z95,INDIRECT($CG$82),0))),ISBLANK($Z95)),\"\",INDEX(INDIRECT($CG$91),MATCH($Z95,INDIRECT($CG$82),0)))","v":""},{"$f":"IF(OR(ISBLANK(INDEX(INDIRECT($CG$92),MATCH($Z95,INDIRECT($CG$82),0))),ISBLANK($Z95)),\"\",INDEX(INDIRECT($CG$92),MATCH($Z95,INDIRECT($CG$82),0)))","v":""},{"$f":"IF(OR(ISBLANK(INDEX(INDIRECT($CG$93),MATCH($Z95,INDIRECT($CG$82),0))),ISBLANK($Z95)),\"\",INDEX(INDIRECT($CG$93),MATCH($Z95,INDIRECT($CG$82),0)))","v":""},{"$f":"IF(OR(ISBLANK(INDEX(INDIRECT($CG$94),MATCH($Z95,INDIRECT($CG$82),0))),ISBLANK($Z95)),\"\",INDEX(INDIRECT($CG$94),MATCH($Z95,INDIRECT($CG$82),0)))","v":""},{"$f":"IF(OR(ISBLANK(INDEX(INDIRECT($CG$95),MATCH($Z95,INDIRECT($CG$82),0))),ISBLANK($Z95)),\"\",INDEX(INDIRECT($CG$95),MATCH($Z95,INDIRECT($CG$82),0)))","v":""},{"$f":"IF(OR(ISBLANK(INDEX(INDIRECT($CG$96),MATCH($Z95,INDIRECT($CG$82),0))),ISBLANK($Z95)),\"\",INDEX(INDIRECT($CG$96),MATCH($Z95,INDIRECT($CG$82),0)))","v":""},{"$f":"IF(OR(ISBLANK(INDEX(INDIRECT($CG$97),MATCH($Z95,INDIRECT($CG$82),0))),ISBLANK($Z95)),\"\",INDEX(INDIRECT($CG$97),MATCH($Z95,INDIRECT($CG$82),0)))","v":""},{"$f":"IF(OR(ISBLANK(INDEX(INDIRECT($CG$98),MATCH($Z95,INDIRECT($CG$82),0))),ISBLANK($Z95)),\"\",INDEX(INDIRECT($CG$98),MATCH($Z95,INDIRECT($CG$82),0)))","v":""},null,89,{"$error":"#REF!"},{"$error":"#REF!"},{"$error":"#REF!"},{"$error":"#REF!"},{"$error":"#REF!"},{"$error":"#REF!"},{"$error":"#REF!"},{"$error":"#REF!"},{"$error":"#REF!"},{"$error":"#REF!"},{"$error":"#REF!"},{"$error":"#REF!"},{"$error":"#REF!"},{"$error":"#REF!"},{"$error":"#REF!"},null,null,null,null,null,null,null,null,null,null,null,null,null,null,null,null,"Glazing Area",null,null,null,"Windows","AG","Windows","AG","Windows","AX",null,null,null,null,{"$error":"#REF!"}]
[null,null,null,null,null,null,null,null,null,null,null,null,null,null,null,null,null,null,null,null,null,null,null,null,null,{"$f":"IF(ISBLANK($Z96),\"\",$Z96)","v":""},null,null,null,{"$f":"IF(OR(ISBLANK(INDEX(INDIRECT($CG$91),MATCH($Z96,INDIRECT($CG$82),0))),ISBLANK($Z96)),\"\",INDEX(INDIRECT($CG$91),MATCH($Z96,INDIRECT($CG$82),0)))","v":""},{"$f":"IF(OR(ISBLANK(INDEX(INDIRECT($CG$92),MATCH($Z96,INDIRECT($CG$82),0))),ISBLANK($Z96)),\"\",INDEX(INDIRECT($CG$92),MATCH($Z96,INDIRECT($CG$82),0)))","v":""},{"$f":"IF(OR(ISBLANK(INDEX(INDIRECT($CG$93),MATCH($Z96,INDIRECT($CG$82),0))),ISBLANK($Z96)),\"\",INDEX(INDIRECT($CG$93),MATCH($Z96,INDIRECT($CG$82),0)))","v":""},{"$f":"IF(OR(ISBLANK(INDEX(INDIRECT($CG$94),MATCH($Z96,INDIRECT($CG$82),0))),ISBLANK($Z96)),\"\",INDEX(INDIRECT($CG$94),MATCH($Z96,INDIRECT($CG$82),0)))","v":""},{"$f":"IF(OR(ISBLANK(INDEX(INDIRECT($CG$95),MATCH($Z96,INDIRECT($CG$82),0))),ISBLANK($Z96)),\"\",INDEX(INDIRECT($CG$95),MATCH($Z96,INDIRECT($CG$82),0)))","v":""},{"$f":"IF(OR(ISBLANK(INDEX(INDIRECT($CG$96),MATCH($Z96,INDIRECT($CG$82),0))),ISBLANK($Z96)),\"\",INDEX(INDIRECT($CG$96),MATCH($Z96,INDIRECT($CG$82),0)))","v":""},{"$f":"IF(OR(ISBLANK(INDEX(INDIRECT($CG$97),MATCH($Z96,INDIRECT($CG$82),0))),ISBLANK($Z96)),\"\",INDEX(INDIRECT($CG$97),MATCH($Z96,INDIRECT($CG$82),0)))","v":""},{"$f":"IF(OR(ISBLANK(INDEX(INDIRECT($CG$98),MATCH($Z96,INDIRECT($CG$82),0))),ISBLANK($Z96)),\"\",INDEX(INDIRECT($CG$98),MATCH($Z96,INDIRECT($CG$82),0)))","v":""},null,90,{"$error":"#REF!"},{"$error":"#REF!"},{"$error":"#REF!"},{"$error":"#REF!"},{"$error":"#REF!"},{"$error":"#REF!"},{"$error":"#REF!"},{"$error":"#REF!"},{"$error":"#REF!"},{"$error":"#REF!"},{"$error":"#REF!"},{"$error":"#REF!"},{"$error":"#REF!"},{"$error":"#REF!"},{"$error":"#REF!"},null,null,null,null,null,"     Heat transfer resistance [m²K/W]       interior Rsi :",{"$f":"IF($BE102=\"\",\"\",IF(ISBLANK(INDEX(INDIRECT($CG$154),MATCH($BE102,INDIRECT($CG$151),0)+2)),\"\",INDEX(INDIRECT($CG$154),MATCH($BE102,INDIRECT($CG$151),0)+2)))","v":""},null,null,null,null,null,null,null,null,null,"Uw-value (installed)",null,null,null,"Windows","AH","Windows","AH","Windows","BA",null,null,null,null,{"$error":"#REF!"}]
[null,null,null,null,null,null,null,null,null,null,null,null,null,null,null,null,null,null,null,null,null,null,null,null,null,{"$f":"IF(ISBLANK($Z97),\"\",$Z97)","v":""},null,null,null,{"$f":"IF(OR(ISBLANK(INDEX(INDIRECT($CG$91),MATCH($Z97,INDIRECT($CG$82),0))),ISBLANK($Z97)),\"\",INDEX(INDIRECT($CG$91),MATCH($Z97,INDIRECT($CG$82),0)))","v":""},{"$f":"IF(OR(ISBLANK(INDEX(INDIRECT($CG$92),MATCH($Z97,INDIRECT($CG$82),0))),ISBLANK($Z97)),\"\",INDEX(INDIRECT($CG$92),MATCH($Z97,INDIRECT($CG$82),0)))","v":""},{"$f":"IF(OR(ISBLANK(INDEX(INDIRECT($CG$93),MATCH($Z97,INDIRECT($CG$82),0))),ISBLANK($Z97)),\"\",INDEX(INDIRECT($CG$93),MATCH($Z97,INDIRECT($CG$82),0)))","v":""},{"$f":"IF(OR(ISBLANK(INDEX(INDIRECT($CG$94),MATCH($Z97,INDIRECT($CG$82),0))),ISBLANK($Z97)),\"\",INDEX(INDIRECT($CG$94),MATCH($Z97,INDIRECT($CG$82),0)))","v":""},{"$f":"IF(OR(ISBLANK(INDEX(INDIRECT($CG$95),MATCH($Z97,INDIRECT($CG$82),0))),ISBLANK($Z97)),\"\",INDEX(INDIRECT($CG$95),MATCH($Z97,INDIRECT($CG$82),0)))","v":""},{"$f":"IF(OR(ISBLANK(INDEX(INDIRECT($CG$96),MATCH($Z97,INDIRECT($CG$82),0))),ISBLANK($Z97)),\"\",INDEX(INDIRECT($CG$96),MATCH($Z97,INDIRECT($CG$82),0)))","v":""},{"$f":"IF(OR(ISBLANK(INDEX(INDIRECT($CG$97),MATCH($Z97,INDIRECT($CG$82),0))),ISBLANK($Z97)),\"\",INDEX(INDIRECT($CG$97),MATCH($Z97,INDIRECT($CG$82),0)))","v":""},{"$f":"IF(OR(ISBLANK(INDEX(INDIRECT($CG$98),MATCH($Z97,INDIRECT($CG$82),0))),ISBLANK($Z97)),\"\",INDEX(INDIRECT($CG$98),MATCH($Z97,INDIRECT($CG$82),0)))","v":""},null,91,{"$error":"#REF!"},{"$error":"#REF!"},{"$error":"#REF!"},{"$error":"#REF!"},{"$error":"#REF!"},{"$error":"#REF!"},{"$error":"#REF!"},{"$error":"#REF!"},{"$error":"#REF!"},{"$error":"#REF!"},{"$error":"#REF!"},{"$error":"#REF!"},{"$error":"#REF!"},{"$error":"#REF!"},{"$error":"#REF!"},null,null,null,null,null,"exterior Rse :",{"$f":"IF($BE102=\"\",\"\",IF(ISBLANK(INDEX(INDIRECT($CG$155),MATCH($BE102,INDIRECT($CG$151),0)+3)),\"\",INDEX(INDIRECT($CG$155),MATCH($BE102,INDIRECT($CG$151),0)+3)))","v":""},null,null,null,null,null,null,null,null,null,"Glazed Fraction per Window",null,null,null,"Windows","AI","Windows","AI","Windows","AY",null,null,null,null,{"$error":"#REF!"}]
[null,null,null,null,null,null,null,null,null,null,null,null,null,null,null,null,null,null,null,null,null,null,null,null,null,{"$f":"IF(ISBLANK($Z98),\"\",$Z98)","v":""},null,null,null,{"$f":"IF(OR(ISBLANK(INDEX(INDIRECT($CG$91),MATCH($Z98,INDIRECT($CG$82),0))),ISBLANK($Z98)),\"\",INDEX(INDIRECT($CG$91),MATCH($Z98,INDIRECT($CG$82),0)))","v":""},{"$f":"IF(OR(ISBLANK(INDEX(INDIRECT($CG$92),MATCH($Z98,INDIRECT($CG$82),0))),ISBLANK($Z98)),\"\",INDEX(INDIRECT($CG$92),MATCH($Z98,INDIRECT($CG$82),0)))","v":""},{"$f":"IF(OR(ISBLANK(INDEX(INDIRECT($CG$93),MATCH($Z98,INDIRECT($CG$82),0))),ISBLANK($Z98)),\"\",INDEX(INDIRECT($CG$93),MATCH($Z98,INDIRECT($CG$82),0)))","v":""},{"$f":"IF(OR(ISBLANK(INDEX(INDIRECT($CG$94),MATCH($Z98,INDIRECT($CG$82),0))),ISBLANK($Z98)),\"\",INDEX(INDIRECT($CG$94),MATCH($Z98,INDIRECT($CG$82),0)))","v":""},{"$f":"IF(OR(ISBLANK(INDEX(INDIRECT($CG$95),MATCH($Z98,INDIRECT($CG$82),0))),ISBLANK($Z98)),\"\",INDEX(INDIRECT($CG$95),MATCH($Z98,INDIRECT($CG$82),0)))","v":""},{"$f":"IF(OR(ISBLANK(INDEX(INDIRECT($CG$96),MATCH($Z98,INDIRECT($CG$82),0))),ISBLANK($Z98)),\"\",INDEX(INDIRECT($CG$96),MATCH($Z98,INDIRECT($CG$82),0)))","v":""},{"$f":"IF(OR(ISBLANK(INDEX(INDIRECT($CG$97),MATCH($Z98,INDIRECT($CG$82),0))),ISBLANK($Z98)),\"\",INDEX(INDIRECT($CG$97),MATCH($Z98,INDIRECT($CG$82),0)))","v":""},{"$f":"IF(OR(ISBLANK(INDEX(INDIRECT($CG$98),MATCH($Z98,INDIRECT($CG$82),0))),ISBLANK($Z98)),\"\",INDEX(INDIRECT($CG$98),MATCH($Z98,INDIRECT($CG$82),0)))","v":""},null,92,{"$error":"#REF!"},{"$error":"#REF!"},{"$error":"#REF!"},{"$error":"#REF!"},{"$error":"#REF!"},{"$error":"#REF!"},{"$error":"#REF!"},{"$error":"#REF!"},{"$error":"#REF!"},{"$error":"#REF!"},{"$error":"#REF!"},{"$error":"#REF!"},{"$error":"#REF!"},{"$error":"#REF!"},{"$error":"#REF!"},null,null,null,null,null,null,null,null,null,null,null,null,null,null,null,null,"G value",null,null,null,"Windows","W","Windows","W","Windows","AS",null,null,null,null,{"$error":"#REF!"}]
[null,null,null,null,null,null,null,null,null,null,null,null,null,null,null,null,null,null,null,null,null,null,null,null,null,{"$f":"IF(ISBLANK($Z99),\"\",$Z99)","v":""},null,null,null,{"$f":"IF(OR(ISBLANK(INDEX(INDIRECT($CG$91),MATCH($Z99,INDIRECT($CG$82),0))),ISBLANK($Z99)),\"\",INDEX(INDIRECT($CG$91),MATCH($Z99,INDIRECT($CG$82),0)))","v":""},{"$f":"IF(OR(ISBLANK(INDEX(INDIRECT($CG$92),MATCH($Z99,INDIRECT($CG$82),0))),ISBLANK($Z99)),\"\",INDEX(INDIRECT($CG$92),MATCH($Z99,INDIRECT($CG$82),0)))","v":""},{"$f":"IF(OR(ISBLANK(INDEX(INDIRECT($CG$93),MATCH($Z99,INDIRECT($CG$82),0))),ISBLANK($Z99)),\"\",INDEX(INDIRECT($CG$93),MATCH($Z99,INDIRECT($CG$82),0)))","v":""},{"$f":"IF(OR(ISBLANK(INDEX(INDIRECT($CG$94),MATCH($Z99,INDIRECT($CG$82),0))),ISBLANK($Z99)),\"\",INDEX(INDIRECT($CG$94),MATCH($Z99,INDIRECT($CG$82),0)))","v":""},{"$f":"IF(OR(ISBLANK(INDEX(INDIRECT($CG$95),MATCH($Z99,INDIRECT($CG$82),0))),ISBLANK($Z99)),\"\",INDEX(INDIRECT($CG$95),MATCH($Z99,INDIRECT($CG$82),0)))","v":""},{"$f":"IF(OR(ISBLANK(INDEX(INDIRECT($CG$96),MATCH($Z99,INDIRECT($CG$82),0))),ISBLANK($Z99)),\"\",INDEX(INDIRECT($CG$96),MATCH($Z99,INDIRECT($CG$82),0)))","v":""},{"$f":"IF(OR(ISBLANK(INDEX(INDIRECT($CG$97),MATCH($Z99,INDIRECT($CG$82),0))),ISBLANK($Z99)),\"\",INDEX(INDIRECT($CG$97),MATCH($Z99,INDIRECT($CG$82),0)))","v":""},{"$f":"IF(OR(ISBLANK(INDEX(INDIRECT($CG$98),MATCH($Z99,INDIRECT($CG$82),0))),ISBLANK($Z99)),\"\",INDEX(INDIRECT($CG$98),MATCH($Z99,INDIRECT($CG$82),0)))","v":""},null,93,{"$error":"#REF!"},{"$error":"#REF!"},{"$error":"#REF!"},{"$error":"#REF!"},{"$error":"#REF!"},{"$error":"#REF!"},{"$error":"#REF!"},{"$error":"#REF!"},{"$error":"#REF!"},{"$error":"#REF!"},{"$error":"#REF!"},{"$error":"#REF!"},{"$error":"#REF!"},{"$error":"#REF!"},{"$error":"#REF!"},null,"Area section 1",null,null,"l [W/(mK)]","Area section 2 (optional)",null,null,"l [W/(mK)]","Area section 3 (optional)",null,null,"l [W/(mK)]",null,"Thickness [mm]",null,"Orientation",null,null,null,"Windows","P","Windows","P","Windows","Q",null,null,null,null,{"$error":"#REF!"}]
[null,null,null,null,null,null,null,null,null,null,null,null,null,null,null,null,null,null,null,null,null,null,null,null,null,null,null,null,null,null,null,null,null,null,null,null,null,null,94,{"$error":"#REF!"},{"$error":"#REF!"},{"$error":"#REF!"},{"$error":"#REF!"},{"$error":"#REF!"},{"$error":"#REF!"},{"$error":"#REF!"},{"$error":"#REF!"},{"$error":"#REF!"},{"$error":"#REF!"},{"$error":"#REF!"},{"$error":"#REF!"},{"$error":"#REF!"},{"$error":"#REF!"},{"$error":"#REF!"},"1.",{"$f":"IF($BE$102=\"\",\"\",IF(ISBLANK(INDEX(INDIRECT($CG$156),MATCH($BE$102,INDIRECT($CG$151),0)+5+$BC108)),\"\",INDEX(INDIRECT($CG$156),MATCH($BE$102,INDIRECT($CG$151),0)+5+$BC108)))","v":""},null,null,{"$f":"IF($BE$102=\"\",\"\",IF(ISBLANK(INDEX(INDIRECT($CG$157),MATCH($BE$102,INDIRECT($CG$151),0)+5+$BC108)),\"\",INDEX(INDIRECT($CG$157),MATCH($BE$102,INDIRECT($CG$151),0)+5+$BC108)))","v":""},{"$f":"IF($BE$102=\"\",\"\",IF(ISBLANK(INDEX(INDIRECT($CG$158),MATCH($BE$102,INDIRECT($CG$151),0)+5+$BC108)),\"\",INDEX(INDIRECT($CG$158),MATCH($BE$102,INDIRECT($CG$151),0)+5+$BC108)))","v":""},null,null,{"$f":"IF($BE$102=\"\",\"\",IF(ISBLANK(INDEX(INDIRECT($CG$159),MATCH($BE$102,INDIRECT($CG$151),0)+5+$BC108)),\"\",INDEX(INDIRECT($CG$159),MATCH($BE$102,INDIRECT($CG$151),0)+5+$BC108)))","v":""},{"$f":"IF($BE$102=\"\",\"\",IF(ISBLANK(INDEX(INDIRECT($CG$160),MATCH($BE$102,INDIRECT($CG$151),0)+5+$BC108)),\"\",INDEX(INDIRECT($CG$160),MATCH($BE$102,INDIRECT($CG$151),0)+5+$BC108)))","v":""},null,null,{"$f":"IF($BE$102=\"\",\"\",IF(ISBLANK(INDEX(INDIRECT($CG$161),MATCH($BE$102,INDIRECT($CG$151),0)+5+$BC108)),\"\",INDEX(INDIRECT($CG$161),MATCH($BE$102,INDIRECT($CG$151),0)+5+$BC108)))","v":""},null,{"$f":"IF($BE$102=\"\",\"\",IF(ISBLANK(INDEX(INDIRECT($CG$153),MATCH($BE$102,INDIRECT($CG$151),0)+5+$BC108)),\"\",INDEX(INDIRECT($CG$153),MATCH($BE$102,INDIRECT($CG$151),0)+5+$BC108)))","v":""},null,"Glazing - top table",null,null,null,"Windows","M10:AC14","Windows","M10:AC14","Windows","M10:AD14",null,null,null,null,{"$error":"#REF!"}]
[null,null,null,null,null,null,null,null,null,null,null,null,null,null,null,null,null,null,null,null,null,null,null,null,null,"Ventilation",null,null,null,null,null,null,null,null,null,null,null,null,95,{"$error":"#REF!"},{"$error":"#REF!"},{"$error":"#REF!"},{"$error":"#REF!"},{"$error":"#REF!"},{"$error":"#REF!"},{"$error":"#REF!"},{"$error":"#REF!"},{"$error":"#REF!"},{"$error":"#REF!"},{"$error":"#REF!"},{"$error":"#REF!"},{"$error":"#REF!"},{"$error":"#REF!"},{"$error":"#REF!"},"2.","",null,null,"","",null,null,"","",null,null,"",null,"",null,"Heating hours",null,null,null,"Windows","N21","Windows","N21","Windows","AC18",null,null,null,null,{"$error":"#REF!"},null,null,null,{"$f":"INDIRECT(CG109)","v":{"$error":"#REF!"}}]
[null,null,null,null,null,null,null,null,null,null,null,null,null,null,null,null,null,null,null,null,null,null,null,null,null,"Air Test Result",null,{"$f":"ROUND($CK$169,2)&\" ac/h\"","v":{"$error":"#REF!"}},null,"Ave Mech Vent Rate",null,{"$f":"TEXT(ROUND($CK$171,2),\"0.00\")&\" ac/h (\"&ROUND($CK$172,0)&\" m3/h)\"","v":{"$error":"#REF!"}},null,null,null,null,null,null,96,{"$error":"#REF!"},{"$error":"#REF!"},{"$error":"#REF!"},{"$error":"#REF!"},{"$error":"#REF!"},{"$error":"#REF!"},{"$error":"#REF!"},{"$error":"#REF!"},{"$error":"#REF!"},{"$error":"#REF!"},{"$error":"#REF!"},{"$error":"#REF!"},{"$error":"#REF!"},{"$error":"#REF!"},{"$error":"#REF!"},"3.","",null,null,"","",null,null,"","",null,null,"",null,"",null,"Window position number",null,null,null,null,null,null,null,"Windows","M",null,null,null,null,{"$error":"#REF!"}]
[null,null,null,null,null,null,null,null,null,null,null,null,null,null,null,null,null,null,null,null,null,null,null,null,null,"Air Test Volume",null,{"$f":"ROUND($CK$170,2)&\" m3\"","v":{"$error":"#REF!"}},null,null,null,null,null,null,null,null,null,null,97,{"$error":"#REF!"},{"$error":"#REF!"},{"$error":"#REF!"},{"$error":"#REF!"},{"$error":"#REF!"},{"$error":"#REF!"},{"$error":"#REF!"},{"$error":"#REF!"},{"$error":"#REF!"},{"$error":"#REF!"},{"$error":"#REF!"},{"$error":"#REF!"},{"$error":"#REF!"},{"$error":"#REF!"},{"$error":"#REF!"},"4.","",null,null,"","",null,null,"","",null,null,"",null,"",null,"Window description",null,null,null,"Windows","M","Windows","M","Windows","N",null,null,null,null,{"$error":"#REF!"}]
[null,null,null,null,null,null,null,null,null,null,null,null,null,null,null,null,null,null,null,null,null,null,null,null,null,null,null,null,null,"Intake Duct",null,null,null,"Exhaust Duct",null,null,null,null,98,{"$error":"#REF!"},{"$error":"#REF!"},{"$error":"#REF!"},{"$error":"#REF!"},{"$error":"#REF!"},{"$error":"#REF!"},{"$error":"#REF!"},{"$error":"#REF!"},{"$error":"#REF!"},{"$error":"#REF!"},{"$error":"#REF!"},{"$error":"#REF!"},{"$error":"#REF!"},{"$error":"#REF!"},{"$error":"#REF!"},"5.","",null,null,"","",null,null,"","",null,null,"",null,"",null,"Trans. loss ",null,null,null,"Windows","AA","Windows","AA","Windows","AB",null,null,null,null,{"$error":"#REF!"}]
[null,null,null,null,null,null,null,null,null,null,null,null,null,null,null,null,null,null,null,null,null,null,null,null,null,"Quantity","Vent Unit",null,null,"Length (m)","Dia. or W x H (mm)","Ins. Thick. (mm)","Ins. Cond. (W/mK)","Length (m)","Dia. or W x H (mm)","Ins. Thick. (mm)","Ins. Cond. (W/mK)",null,99,{"$error":"#REF!"},{"$error":"#REF!"},{"$error":"#REF!"},{"$error":"#REF!"},{"$error":"#REF!"},{"$error":"#REF!"},{"$error":"#REF!"},{"$error":"#REF!"},{"$error":"#REF!"},{"$error":"#REF!"},{"$error":"#REF!"},{"$error":"#REF!"},{"$error":"#REF!"},{"$error":"#REF!"},{"$error":"#REF!"},"6.","",null,null,"","",null,null,"","",null,null,"",null,"",null,"Heat gains",null,null,null,"Windows","AC","Windows","AC","Windows","AD",null,null,null,null,{"$error":"#REF!"}]
[null,null,null,null,null,null,null,null,null,null,null,null,null,null,null,null,null,null,null,null,null,null,null,null,null,null,null,null,null,null,null,null,null,null,null,null,null,null,100,{"$error":"#REF!"},{"$error":"#REF!"},{"$error":"#REF!"},{"$error":"#REF!"},{"$error":"#REF!"},{"$error":"#REF!"},{"$error":"#REF!"},{"$error":"#REF!"},{"$error":"#REF!"},{"$error":"#REF!"},{"$error":"#REF!"},{"$error":"#REF!"},{"$error":"#REF!"},{"$error":"#REF!"},{"$error":"#REF!"},"7.","",null,null,"","",null,null,"","",null,null,"",null,"",null,"Window area sum",null,null,null,"Windows","U","Windows","U","Windows","V",null,null,null,null,{"$error":"#REF!"}]
[null,null,null,null,null,null,null,null,null,null,null,null,null,null,null,null,null,null,null,null,null,null,null,null,null,{"$f":"IF($CK$173=\"x\",IF(VLOOKUP($AM6,INDIRECT($CG$185),2)>0,VLOOKUP($AM6,INDIRECT($CG$185),2),\"\"),1)","v":{"$error":"#REF!"}},{"$f":"IF($CK$173=\"x\",IF(NOT($Z115=\"\"),VLOOKUP($AM6,INDIRECT($CG$185),4),\"\"),$CK$174)","v":{"$error":"#REF!"}},null,null,{"$f":"IF($CK$173=\"x\",IFERROR(INDEX(INDIRECT($CG$193),SMALL(IF((INDIRECT($CG$194)=1)*(INDIRECT($CG$191)=1),ROW($1:$10)),1)),\"\"),INDIRECT($CG$175))","v":{"$error":"#REF!"}},{"$f":"IF($CK$173=\"x\",IFERROR(IF(INDEX(INDIRECT($CG$186),SMALL(IF((INDIRECT($CG$194)=1)*(INDIRECT($CG$191)=1),ROW($1:$10)),1))>0,INDEX(INDIRECT($CG$186),SMALL(IF((INDIRECT($CG$194)=1)*(INDIRECT($CG$191)=1),ROW($1:$10)),1)),IFERROR(INDEX(INDIRECT($CG$187),SMALL(IF((INDIRECT($CG$195)=1)*(INDIRECT($CG$191)=1),ROW($1:$10)),1)),\"\")&\" x \"&IFERROR(INDEX(INDIRECT($CG$188),SMALL(IF((INDIRECT($CG$195)=1)*(INDIRECT($CG$191)=1),ROW($1:$10)),1)),\"\")),\"\"),INDIRECT($CG$176))","v":{"$error":"#REF!"}},{"$f":"IF($CK$173=\"x\",IFERROR(INDEX(INDIRECT($CG$189),SMALL(IF((INDIRECT($CG$194)=1)*(INDIRECT($CG$191)=1),ROW($1:$10)),1)),\"\"),$CK$177)","v":{"$error":"#REF!"}},{"$f":"IF($CK$173=\"x\",IFERROR(INDEX(INDIRECT($CG$190),SMALL(IF((INDIRECT($CG$194)=1)*(INDIRECT($CG$191)=1),ROW($1:$10)),1)),\"\"),$CK$178)","v":{"$error":"#REF!"}},{"$f":"IF($CK$173=\"x\",IFERROR(INDEX(INDIRECT($CG$193),SMALL(IF((INDIRECT($CG$194)=1)*(INDIRECT($CG$192)=1),ROW($1:$10)),1)),\"\"),INDIRECT($CG$175))","v":{"$error":"#REF!"}},{"$f":"IF($CK$173=\"x\",IFERROR(IF(INDEX(INDIRECT($CG$186),SMALL(IF((INDIRECT($CG$194)=1)*(INDIRECT($CG$192)=1),ROW($1:$10)),1))>0,INDEX(INDIRECT($CG$186),SMALL(IF((INDIRECT($CG$194)=1)*(INDIRECT($CG$191)=1),ROW($1:$10)),1)),IFERROR(INDEX(INDIRECT($CG$187),SMALL(IF((INDIRECT($CG$195)=1)*(INDIRECT($CG$191)=1),ROW($1:$10)),1)),\"\")&\" x \"&IFERROR(INDEX(INDIRECT($CG$188),SMALL(IF((INDIRECT($CG$195)=1)*(INDIRECT($CG$191)=1),ROW($1:$10)),1)),\"\")),\"\"),$CK$180)","v":{"$error":"#REF!"}},{"$f":"IF($CK$173=\"x\",IFERROR(INDEX(INDIRECT($CG$189),SMALL(IF((INDIRECT($CG$194)=1)*(INDIRECT($CG$192)=1),ROW($1:$10)),1)),\"\"),$CK$181)","v":{"$error":"#REF!"}},{"$f":"IF($CK$173=\"x\",IFERROR(INDEX(INDIRECT($CG$190),SMALL(IF((INDIRECT($CG$194)=1)*(INDIRECT($CG$192)=1),ROW($1:$10)),1)),\"\"),$CK$182)","v":{"$error":"#REF!"}},null,101,{"$error":"#REF!"},{"$error":"#REF!"},{"$error":"#REF!"},{"$error":"#REF!"},{"$error":"#REF!"},{"$error":"#REF!"},{"$error":"#REF!"},{"$error":"#REF!"},{"$error":"#REF!"},{"$error":"#REF!"},{"$error":"#REF!"},{"$error":"#REF!"},{"$error":"#REF!"},{"$error":"#REF!"},{"$error":"#REF!"},"8.","",null,null,"","",null,null,"","",null,null,"",null,"",null,"Window area range",null,null,null,"Windows","U10:U14","Windows","U10:U14","Windows","V10:V14",null,null,null,null,{"$error":"#REF!"}]
[null,null,null,null,null,null,null,null,null,null,null,null,null,null,null,null,null,null,null,null,null,null,null,null,null,{"$f":"IF(VLOOKUP($AM7,INDIRECT($CG$185),2)>0,VLOOKUP($AM7,INDIRECT($CG$185),2),\"\")","v":{"$error":"#REF!"}},{"$f":"IF(NOT($Z116=\"\"),VLOOKUP($AM7,INDIRECT($CG$185),4),\"\")","v":{"$error":"#REF!"}},null,null,{"$f":"IFERROR(INDEX(INDIRECT($CG$193),SMALL(IF((INDIRECT($CG$195)=1)*(INDIRECT($CG$191)=1),ROW($1:$10)),1)),\"\")","v":""},{"$f":"IFERROR(IF(INDEX(INDIRECT($CG$186),SMALL(IF((INDIRECT($CG$195)=1)*(INDIRECT($CG$191)=1),ROW($1:$10)),1))>0,INDEX(INDIRECT($CG$186),SMALL(IF((INDIRECT($CG$195)=1)*(INDIRECT($CG$191)=1),ROW($1:$10)),1)),IFERROR(INDEX(INDIRECT($CG$187),SMALL(IF((INDIRECT($CG$195)=1)*(INDIRECT($CG$191)=1),ROW($1:$10)),1)),\"\")&\" x \"&IFERROR(INDEX(INDIRECT($CG$188),SMALL(IF((INDIRECT($CG$195)=1)*(INDIRECT($CG$191)=1),ROW($1:$10)),1)),\"\")),\"\")","v":""},{"$f":"IFERROR(INDEX(INDIRECT($CG$189),SMALL(IF((INDIRECT($CG$195)=1)*(INDIRECT($CG$191)=1),ROW($1:$10)),1)),\"\")","v":""},{"$f":"IFERROR(INDEX(INDIRECT($CG$190),SMALL(IF((INDIRECT($CG$195)=1)*(INDIRECT($CG$191)=1),ROW($1:$10)),1)),\"\")","v":""},{"$f":"IFERROR(INDEX(INDIRECT($CG$193),SMALL(IF((INDIRECT($CG$195)=1)*(INDIRECT($CG$192)=1),ROW($1:$10)),1)),\"\")","v":""},{"$f":"IFERROR(IF(INDEX(INDIRECT($CG$186),SMALL(IF((INDIRECT($CG$195)=1)*(INDIRECT($CG$192)=1),ROW($1:$10)),1))>0,INDEX(INDIRECT($CG$186),SMALL(IF((INDIRECT($CG$195)=1)*(INDIRECT($CG$191)=1),ROW($1:$10)),1)),IFERROR(INDEX(INDIRECT($CG$187),SMALL(IF((INDIRECT($CG$195)=1)*(INDIRECT($CG$191)=1),ROW($1:$10)),1)),\"\")&\" x \"&IFERROR(INDEX(INDIRECT($CG$188),SMALL(IF((INDIRECT($CG$195)=1)*(INDIRECT($CG$191)=1),ROW($1:$10)),1)),\"\")),\"\")","v":""},{"$f":"IFERROR(INDEX(INDIRECT($CG$189),SMALL(IF((INDIRECT($CG$195)=1)*(INDIRECT($CG$192)=1),ROW($1:$10)),1)),\"\")","v":""},{"$f":"IFERROR(INDEX(INDIRECT($CG$190),SMALL(IF((INDIRECT($CG$195)=1)*(INDIRECT($CG$192)=1),ROW($1:$10)),1)),\"\")","v":""},null,null,null,null,null,null,null,null,null,null,null,null,null,null,null,null,null,null,null,null,null,"Percentage of sec. 1",null,null,null,"Percentage of sec. 2",null,null,null,"Percentage of sec. 3",null,"Total  "]
[null,null,null,null,null,null,null,null,null,null,null,null,null,null,null,null,null,null,null,null,null,null,null,null,null,{"$f":"IF(VLOOKUP($AM8,INDIRECT($CG$185),2)>0,VLOOKUP($AM8,INDIRECT($CG$185),2),\"\")","v":{"$error":"#REF!"}},{"$f":"IF(NOT($Z117=\"\"),VLOOKUP($AM8,INDIRECT($CG$185),4),\"\")","v":{"$error":"#REF!"}},null,null,{"$f":"IFERROR(INDEX(INDIRECT($CG$193),SMALL(IF((INDIRECT($CG$196)=1)*(INDIRECT($CG$191)=1),ROW($1:$10)),1)),\"\")","v":""},{"$f":"IFERROR(IF(INDEX(INDIRECT($CG$186),SMALL(IF((INDIRECT($CG$196)=1)*(INDIRECT($CG$191)=1),ROW($1:$10)),1))>0,INDEX(INDIRECT($CG$186),SMALL(IF((INDIRECT($CG$196)=1)*(INDIRECT($CG$191)=1),ROW($1:$10)),1)),IFERROR(INDEX(INDIRECT($CG$187),SMALL(IF((INDIRECT($CG$195)=1)*(INDIRECT($CG$191)=1),ROW($1:$10)),1)),\"\")&\" x \"&IFERROR(INDEX(INDIRECT($CG$188),SMALL(IF((INDIRECT($CG$195)=1)*(INDIRECT($CG$191)=1),ROW($1:$10)),1)),\"\")),\"\")","v":""},{"$f":"IFERROR(INDEX(INDIRECT($CG$189),SMALL(IF((INDIRECT($CG$196)=1)*(INDIRECT($CG$191)=1),ROW($1:$10)),1)),\"\")","v":""},{"$f":"IFERROR(INDEX(INDIRECT($CG$190),SMALL(IF((INDIRECT($CG$196)=1)*(INDIRECT($CG$191)=1),ROW($1:$10)),1)),\"\")","v":""},{"$f":"IFERROR(INDEX(INDIRECT($CG$193),SMALL(IF((INDIRECT($CG$196)=1)*(INDIRECT($CG$192)=1),ROW($1:$10)),1)),\"\")","v":""},{"$f":"IFERROR(IF(INDEX(INDIRECT($CG$186),SMALL(IF((INDIRECT($CG$196)=1)*(INDIRECT($CG$192)=1),ROW($1:$10)),1))>0,INDEX(INDIRECT($CG$186),SMALL(IF((INDIRECT($CG$196)=1)*(INDIRECT($CG$191)=1),ROW($1:$10)),1)),IFERROR(INDEX(INDIRECT($CG$187),SMALL(IF((INDIRECT($CG$195)=1)*(INDIRECT($CG$191)=1),ROW($1:$10)),1)),\"\")&\" x \"&IFERROR(INDEX(INDIRECT($CG$188),SMALL(IF((INDIRECT($CG$195)=1)*(INDIRECT($CG$191)=1),ROW($1:$10)),1)),\"\")),\"\")","v":""},{"$f":"IFERROR(INDEX(INDIRECT($CG$189),SMALL(IF((INDIRECT($CG$196)=1)*(INDIRECT($CG$192)=1),ROW($1:$10)),1)),\"\")","v":""},{"$f":"IFERROR(INDEX(INDIRECT($CG$190),SMALL(IF((INDIRECT($CG$196)=1)*(INDIRECT($CG$192)=1),ROW($1:$10)),1)),\"\")","v":""},null,null,null,null,null,null,null,null,null,null,null,null,null,null,null,null,null,null,null,null,null,{"$f":"IF($BE102=\"\",\"\",MAX(0,1-BK117-BO117))","v":""},null,null,null,{"$f":"IF($BE102=\"\",\"\",INDEX(INDIRECT($CG$163),MATCH($BE102,INDIRECT($CG$151),0)+15))","v":""},null,null,null,{"$f":"IF($BE102=\"\",\"\",INDEX(INDIRECT($CG$164),MATCH($BE102,INDIRECT($CG$151),0)+15))","v":""},null,{"$f":"IF(ISNUMBER(BQ108),SUM(BQ108:BQ115)/10,\"\")","v":""},"cm","Windows qty.",null,null,null,"Windows","L","Windows","L","Windows","L",null,null,null,null,{"$f":"IF($BX$16=\"\",\"'\",\"'[\"&$BX$16&\"]\")&(OFFSET($BW117,0,$BZ$18))&\"'!\"&OFFSET($BX117,0,$BZ$18)","v":{"$error":"#REF!"}}]
[null,null,null,null,null,null,null,null,null,null,null,null,null,null,null,null,null,null,null,null,null,null,null,null,null,{"$f":"IF(VLOOKUP($AM9,INDIRECT($CG$185),2)>0,VLOOKUP($AM9,INDIRECT($CG$185),2),\"\")","v":{"$error":"#REF!"}},{"$f":"IF(NOT($Z118=\"\"),VLOOKUP($AM9,INDIRECT($CG$185),4),\"\")","v":{"$error":"#REF!"}},null,null,{"$f":"IFERROR(INDEX(INDIRECT($CG$193),SMALL(IF((INDIRECT($CG$197)=1)*(INDIRECT($CG$191)=1),ROW($1:$10)),1)),\"\")","v":""},{"$f":"IFERROR(IF(INDEX(INDIRECT($CG$186),SMALL(IF((INDIRECT($CG$197)=1)*(INDIRECT($CG$191)=1),ROW($1:$10)),1))>0,INDEX(INDIRECT($CG$186),SMALL(IF((INDIRECT($CG$197)=1)*(INDIRECT($CG$191)=1),ROW($1:$10)),1)),IFERROR(INDEX(INDIRECT($CG$187),SMALL(IF((INDIRECT($CG$195)=1)*(INDIRECT($CG$191)=1),ROW($1:$10)),1)),\"\")&\" x \"&IFERROR(INDEX(INDIRECT($CG$188),SMALL(IF((INDIRECT($CG$195)=1)*(INDIRECT($CG$191)=1),ROW($1:$10)),1)),\"\")),\"\")","v":""},{"$f":"IFERROR(INDEX(INDIRECT($CG$189),SMALL(IF((INDIRECT($CG$197)=1)*(INDIRECT($CG$191)=1),ROW($1:$10)),1)),\"\")","v":""},{"$f":"IFERROR(INDEX(INDIRECT($CG$190),SMALL(IF((INDIRECT($CG$197)=1)*(INDIRECT($CG$191)=1),ROW($1:$10)),1)),\"\")","v":""},{"$f":"IFERROR(INDEX(INDIRECT($CG$193),SMALL(IF((INDIRECT($CG$197)=1)*(INDIRECT($CG$192)=1),ROW($1:$10)),1)),\"\")","v":""},{"$f":"IFERROR(IF(INDEX(INDIRECT($CG$186),SMALL(IF((INDIRECT($CG$197)=1)*(INDIRECT($CG$192)=1),ROW($1:$10)),1))>0,INDEX(INDIRECT($CG$186),SMALL(IF((INDIRECT($CG$197)=1)*(INDIRECT($CG$191)=1),ROW($1:$10)),1)),IFERROR(INDEX(INDIRECT($CG$187),SMALL(IF((INDIRECT($CG$195)=1)*(INDIRECT($CG$191)=1),ROW($1:$10)),1)),\"\")&\" x \"&IFERROR(INDEX(INDIRECT($CG$188),SMALL(IF((INDIRECT($CG$195)=1)*(INDIRECT($CG$191)=1),ROW($1:$10)),1)),\"\")),\"\")","v":""},{"$f":"IFERROR(INDEX(INDIRECT($CG$189),SMALL(IF((INDIRECT($CG$197)=1)*(INDIRECT($CG$192)=1),ROW($1:$10)),1)),\"\")","v":""},{"$f":"IFERROR(INDEX(INDIRECT($CG$190),SMALL(IF((INDIRECT($CG$197)=1)*(INDIRECT($CG$192)=1),ROW($1:$10)),1)),\"\")","v":""},null,null,null,null,null,null,null,null,null,null,null,null,null,null,null,null,null,null,null,null,null,null,null,null,null,null,null,null,null,null,null,null,null,"Window glazing type",null,null,null,"Windows","T","Windows","T","Windows","U",null,null,null,null,{"$f":"IF($BX$16=\"\",\"'\",\"'[\"&$BX$16&\"]\")&(OFFSET($BW118,0,$BZ$18))&\"'!\"&OFFSET($BX118,0,$BZ$18)","v":{"$error":"#REF!"}}]
[null,null,null,null,null,null,null,null,null,null,null,null,null,null,null,null,null,null,null,null,null,null,null,null,null,{"$f":"IF(VLOOKUP($AM10,INDIRECT($CG$185),2)>0,VLOOKUP($AM10,INDIRECT($CG$185),2),\"\")","v":{"$error":"#REF!"}},{"$f":"IF(NOT($Z119=\"\"),VLOOKUP($AM10,INDIRECT($CG$185),4),\"\")","v":{"$error":"#REF!"}},null,null,{"$f":"IFERROR(INDEX(INDIRECT($CG$193),SMALL(IF((INDIRECT($CG$198)=1)*(INDIRECT($CG$191)=1),ROW($1:$10)),1)),\"\")","v":""},{"$f":"IFERROR(IF(INDEX(INDIRECT($CG$186),SMALL(IF((INDIRECT($CG$198)=1)*(INDIRECT($CG$191)=1),ROW($1:$10)),1))>0,INDEX(INDIRECT($CG$186),SMALL(IF((INDIRECT($CG$198)=1)*(INDIRECT($CG$191)=1),ROW($1:$10)),1)),IFERROR(INDEX(INDIRECT($CG$187),SMALL(IF((INDIRECT($CG$195)=1)*(INDIRECT($CG$191)=1),ROW($1:$10)),1)),\"\")&\" x \"&IFERROR(INDEX(INDIRECT($CG$188),SMALL(IF((INDIRECT($CG$195)=1)*(INDIRECT($CG$191)=1),ROW($1:$10)),1)),\"\")),\"\")","v":""},{"$f":"IFERROR(INDEX(INDIRECT($CG$189),SMALL(IF((INDIRECT($CG$198)=1)*(INDIRECT($CG$191)=1),ROW($1:$10)),1)),\"\")","v":""},{"$f":"IFERROR(INDEX(INDIRECT($CG$190),SMALL(IF((INDIRECT($CG$198)=1)*(INDIRECT($CG$191)=1),ROW($1:$10)),1)),\"\")","v":""},{"$f":"IFERROR(INDEX(INDIRECT($CG$193),SMALL(IF((INDIRECT($CG$198)=1)*(INDIRECT($CG$192)=1),ROW($1:$10)),1)),\"\")","v":""},{"$f":"IFERROR(IF(INDEX(INDIRECT($CG$186),SMALL(IF((INDIRECT($CG$198)=1)*(INDIRECT($CG$192)=1),ROW($1:$10)),1))>0,INDEX(INDIRECT($CG$186),SMALL(IF((INDIRECT($CG$198)=1)*(INDIRECT($CG$191)=1),ROW($1:$10)),1)),IFERROR(INDEX(INDIRECT($CG$187),SMALL(IF((INDIRECT($CG$195)=1)*(INDIRECT($CG$191)=1),ROW($1:$10)),1)),\"\")&\" x \"&IFERROR(INDEX(INDIRECT($CG$188),SMALL(IF((INDIRECT($CG$195)=1)*(INDIRECT($CG$191)=1),ROW($1:$10)),1)),\"\")),\"\")","v":""},{"$f":"IFERROR(INDEX(INDIRECT($CG$189),SMALL(IF((INDIRECT($CG$198)=1)*(INDIRECT($CG$192)=1),ROW($1:$10)),1)),\"\")","v":""},{"$f":"IFERROR(INDEX(INDIRECT($CG$190),SMALL(IF((INDIRECT($CG$198)=1)*(INDIRECT($CG$192)=1),ROW($1:$10)),1)),\"\")","v":""},null,null,null,null,null,null,null,null,null,null,null,null,null,null,null,null,null,null,null,null,"U-value supplement",{"$f":"IF($BE102=\"\",\"\",IF(ISBLANK(INDEX(INDIRECT($CG$165),MATCH($BE102,INDIRECT($CG$151),0)+17)),\"\",INDEX(INDIRECT($CG$165),MATCH($BE102,INDIRECT($CG$151),0)+17)))","v":""},"W/(m²K)",null,null,null,"U-Value: ",{"$f":"IF($BE102=\"\",\"\",IF(ISBLANK(INDEX(INDIRECT($CG$166),MATCH($BE102,INDIRECT($CG$151),0)+17)),\"\",INDEX(INDIRECT($CG$166),MATCH($BE102,INDIRECT($CG$151),0)+17)))","v":""},null,"W/(m²K)",null,null,null,"Window frame type",null,null,null,"Windows","U","Windows","U","Windows","V",null,null,null,null,{"$f":"IF($BX$16=\"\",\"'\",\"'[\"&$BX$16&\"]\")&(OFFSET($BW119,0,$BZ$18))&\"'!\"&OFFSET($BX119,0,$BZ$18)","v":{"$error":"#REF!"}}]
[null,null,null,null,null,null,null,null,null,null,null,null,null,null,null,null,null,null,null,null,null,null,null,null,null,null,null,null,null,null,null,null,null,null,null,null,null,null,null,null,null,null,null,null,null,null,null,null,null,null,null,null,null,null,null,null,null,null,null,null,null,null,null,null,null,null,null,null,null,null,"Individ. window solar gains",null,null,null,"Shading","AY","Shading","AY","Shading","BA",null,null,null,null,{"$f":"IF($BX$16=\"\",\"'\",\"'[\"&$BX$16&\"]\")&(OFFSET($BW120,0,$BZ$18))&\"'!\"&OFFSET($BX120,0,$BZ$18)","v":{"$error":"#REF!"}}]
[]
[null,null,null,null,null,null,null,null,null,null,null,null,null,null,null,null,null,null,null,null,null,null,null,null,null,null,null,null,null,null,null,null,null,null,null,null,null,null,null,null,null,null,null,null,null,null,null,null,null,null,null,null,null,null,null,null,null,null,null,null,null,null,null,null,null,null,null,null,null,null,"Dirt",null,null,null,"Windows","P9","Windows","P9","Windows","Q9",null,null,null,null,{"$f":"IF($BX$16=\"\",\"'\",\"'[\"&$BX$16&\"]\")&(OFFSET($BW122,0,$BZ$18))&\"'!\"&OFFSET($BX122,0,$BZ$18)","v":{"$error":"#REF!"}},null,null,null,{"$f":"INDIRECT(CG122)","v":{"$error":"#REF!"}}]
[null,null,null,null,null,null,null,null,null,null,null,null,null,null,null,null,null,null,null,null,null,null,null,null,null,null,null,null,null,null,null,null,null,null,null,null,null,null,null,null,null,null,null,null,null,null,null,null,null,null,null,null,null,null,null,null,null,null,null,null,null,null,null,null,null,null,null,null,null,null,"Non-perpendicular correction",null,null,null,"Windows","Q9","Windows","Q9","Windows","R9",null,null,null,null,{"$error":"#REF!"},null,null,null,{"$error":"#REF!"}]
[null,null,null,null,null,null,null,null,null,null,null,null,null,null,null,null,null,null,null,null,null,null,null,null,null,null,null,null,null,null,null,null,null,null,null,null,null,null,null,null,null,null,null,null,null,null,null,null,null,null,null,null,null,null,null,null,null,null,null,null,null,null,null,null,null,null,null,null,null,null,"Transmission Losses Heating Period NORTH",null,null,null,"Windows","AA10","Windows","AA10","Windows","AB10",null,null,null,null,{"$error":"#REF!"},null,null,null,{"$error":"#REF!"}]
[null,null,null,null,null,null,null,null,null,null,null,null,null,null,null,null,null,null,null,null,null,null,null,null,null,null,null,null,null,null,null,null,null,null,null,null,null,null,null,null,null,null,null,null,null,null,null,null,null,null,null,null,null,null,null,null,null,null,null,null,null,null,null,null,null,null,null,null,null,null,"Transmission Losses Heating Period EAST",null,null,null,"Windows","AA11","Windows","AA11","Windows","AB11",null,null,null,null,{"$error":"#REF!"},null,null,null,{"$error":"#REF!"}]
[null,null,null,null,null,null,null,null,null,null,null,null,null,null,null,null,null,null,null,null,null,null,null,null,null,null,null,null,null,null,null,null,null,null,null,null,null,null,null,null,null,null,null,null,null,null,null,null,null,null,null,null,null,null,null,null,null,null,null,null,null,null,null,null,null,null,null,null,null,null,"Transmission Losses Heating Period SOUTH",null,null,null,"Windows","AA12","Windows","AA12","Windows","AB12",null,null,null,null,{"$error":"#REF!"},null,null,null,{"$error":"#REF!"}]
[null,null,null,null,null,null,null,null,null,null,null,null,null,null,null,null,null,null,null,null,null,null,null,null,null,null,null,null,null,null,null,null,null,null,null,null,null,null,null,null,null,null,null,null,null,null,null,null,null,null,null,null,null,null,null,null,null,null,null,null,null,null,null,null,null,null,null,null,null,null,"Transmission Losses Heating Period WEST",null,null,null,"Windows","AA13","Windows","AA13","Windows","AB13",null,null,null,null,{"$error":"#REF!"},null,null,null,{"$error":"#REF!"}]
[null,null,null,null,null,null,null,null,null,null,null,null,null,null,null,null,null,null,null,null,null,null,null,null,null,null,null,null,null,null,null,null,null,null,null,null,null,null,null,null,null,null,null,null,null,null,null,null,null,null,null,null,null,null,null,null,null,null,null,null,null,null,null,null,null,null,null,null,null,null,"Transmission Losses Heating Period HORIZONTAL",null,null,null,"Windows","AA14","Windows","AA14","Windows","AB14",null,null,null,null,{"$error":"#REF!"},null,null,null,{"$error":"#REF!"}]
[null,null,null,null,null,null,null,null,null,null,null,null,null,null,null,null,null,null,null,null,null,null,null,null,null,null,null,null,null,null,null,null,null,null,null,null,null,null,null,null,null,null,null,null,null,null,null,null,null,null,null,null,null,null,null,null,null,null,null,null,null,null,null,null,null,null,null,null,null,null,"Solar Gains Heating Period NORTH",null,null,null,"Windows","AC10","Windows","AC10","Windows","AD10",null,null,null,null,{"$error":"#REF!"},null,null,null,{"$error":"#REF!"}]
[null,null,null,null,null,null,null,null,null,null,null,null,null,null,null,null,null,null,null,null,null,null,null,null,null,null,null,null,null,null,null,null,null,null,null,null,null,null,null,null,null,null,null,null,null,null,null,null,null,null,null,null,null,null,null,null,null,null,null,null,null,null,null,null,null,null,null,null,null,null,"Solar Gains Heating Period EAST",null,null,null,"Windows","AC11","Windows","AC11","Windows","AD11",null,null,null,null,{"$error":"#REF!"},null,null,null,{"$error":"#REF!"}]
[null,null,null,null,null,null,null,null,null,null,null,null,null,null,null,null,null,null,null,null,null,null,null,null,null,null,null,null,null,null,null,null,null,null,null,null,null,null,null,null,null,null,null,null,null,null,null,null,null,null,null,null,null,null,null,null,null,null,null,null,null,null,null,null,null,null,null,null,null,null,"Solar Gains Heating Period SOUTH",null,null,null,"Windows","AC12","Windows","AC12","Windows","AD12",null,null,null,null,{"$error":"#REF!"},null,null,null,{"$error":"#REF!"}]
[null,null,null,null,null,null,null,null,null,null,null,null,null,null,null,null,null,null,null,null,null,null,null,null,null,null,null,null,null,null,null,null,null,null,null,null,null,null,null,null,null,null,null,null,null,null,null,null,null,null,null,null,null,null,null,null,null,null,null,null,null,null,null,null,null,null,null,null,null,null,"Solar Gains Heating Period WEST",null,null,null,"Windows","AC13","Windows","AC13","Windows","AD13",null,null,null,null,{"$error":"#REF!"},null,null,null,{"$error":"#REF!"}]
[null,null,null,null,null,null,null,null,null,null,null,null,null,null,null,null,null,null,null,null,null,null,null,null,null,null,null,null,null,null,null,null,null,null,null,null,null,null,null,null,null,null,null,null,null,null,null,null,null,null,null,null,null,null,null,null,null,null,null,null,null,null,null,null,null,null,null,null,null,null,"Solar Gains Heating Period HORIZONTAL",null,null,null,"Windows","AC14","Windows","AC14","Windows","AD14",null,null,null,null,{"$error":"#REF!"},null,null,null,{"$error":"#REF!"}]
[]
[null,null,null,null,null,null,null,null,null,null,null,null,null,null,null,null,null,null,null,null,null,null,null,null,null,null,null,null,null,null,null,null,null,null,null,null,null,null,null,null,null,null,null,null,null,null,null,null,null,null,null,null,null,null,null,null,null,null,null,null,null,null,null,null,null,null,null,null,null,null,"SHADING"]
[null,null,null,null,null,null,null,null,null,null,null,null,null,null,null,null,null,null,null,null,null,null,null,null,null,null,null,null,null,null,null,null,null,null,null,null,null,null,null,null,null,null,null,null,null,null,null,null,null,null,null,null,null,null,null,null,null,null,null,null,null,null,null,null,null,null,null,null,null,null,"Shading total/winter",null,null,null,"Shading","AM","Shading","AM","Shading","AO",null,null,null,null,{"$f":"IF($BX$16=\"\",\"'\",\"'[\"&$BX$16&\"]\")&(OFFSET($BW136,0,$BZ$18))&\"'!\"&OFFSET($BX136,0,$BZ$18)","v":{"$error":"#REF!"}}]
[null,null,null,null,null,null,null,null,null,null,null,null,null,null,null,null,null,null,null,null,null,null,null,null,null,null,null,null,null,null,null,null,null,null,null,null,null,null,null,null,null,null,null,null,null,null,null,null,null,null,null,null,null,null,null,null,null,null,null,null,null,null,null,null,null,null,null,null,null,null,"Shading summer",null,null,null,"Shading","AQ","Shading","AQ","Shading","AS",null,null,null,null,{"$error":"#REF!"}]
[null,null,null,null,null,null,null,null,null,null,null,null,null,null,null,null,null,null,null,null,null,null,null,null,null,null,null,null,null,null,null,null,null,null,null,null,null,null,null,null,null,null,null,null,null,null,null,null,null,null,null,null,null,null,null,null,null,null,null,null,null,null,null,null,null,null,null,null,null,null,"Shading total north winter",null,null,null,"Shading","AC8","Shading","AC8","Shading","AE14",null,null,null,null,{"$error":"#REF!"},null,null,null,{"$f":"INDIRECT($CG138)","v":{"$error":"#REF!"}}]
[null,null,null,null,null,null,null,null,null,null,null,null,null,null,null,null,null,null,null,null,null,null,null,null,null,null,null,null,null,null,null,null,null,null,null,null,null,null,null,null,null,null,null,null,null,null,null,null,null,null,null,null,null,null,null,null,null,null,null,null,null,null,null,null,null,null,null,null,null,null,"Shading total east winter",null,null,null,"Shading","AC9","Shading","AC9","Shading","AE15",null,null,null,null,{"$error":"#REF!"},null,null,null,{"$error":"#REF!"}]
[null,null,null,null,null,null,null,null,null,null,null,null,null,null,null,null,null,null,null,null,null,null,null,null,null,null,null,null,null,null,null,null,null,null,null,null,null,null,null,null,null,null,null,null,null,null,null,null,null,null,null,null,null,null,null,null,null,null,null,null,null,null,null,null,null,null,null,null,null,null,"Shading total south winter",null,null,null,"Shading","AC10","Shading","AC10","Shading","AE16",null,null,null,null,{"$error":"#REF!"},null,null,null,{"$error":"#REF!"}]
[null,null,null,null,null,null,null,null,null,null,null,null,null,null,null,null,null,null,null,null,null,null,null,null,null,null,null,null,null,null,null,null,null,null,null,null,null,null,null,null,null,null,null,null,null,null,null,null,null,null,null,null,null,null,null,null,null,null,null,null,null,null,null,null,null,null,null,null,null,null,"Shading total west winter",null,null,null,"Shading","AC11","Shading","AC11","Shading","AE17",null,null,null,null,{"$error":"#REF!"},null,null,null,{"$error":"#REF!"}]
[null,null,null,null,null,null,null,null,null,null,null,null,null,null,null,null,null,null,null,null,null,null,null,null,null,null,null,null,null,null,null,null,null,null,null,null,null,null,null,null,null,null,null,null,null,null,null,null,null,null,null,null,null,null,null,null,null,null,null,null,null,null,null,null,null,null,null,null,null,null,"Shading total horizontal winter",null,null,null,"Shading","AC12","Shading","AC12","Shading","AE18",null,null,null,null,{"$error":"#REF!"},null,null,null,{"$error":"#REF!"}]
[null,null,null,null,null,null,null,null,null,null,null,null,null,null,null,null,null,null,null,null,null,null,null,null,null,null,null,null,null,null,null,null,null,null,null,null,null,null,null,null,null,null,null,null,null,null,null,null,null,null,null,null,null,null,null,null,null,null,null,null,null,null,null,null,null,null,null,null,null,null,"Shading total north summer",null,null,null,"Shading","AD8","Shading","AD8","Shading","AF14",null,null,null,null,{"$error":"#REF!"},null,null,null,{"$error":"#REF!"}]
[null,null,null,null,null,null,null,null,null,null,null,null,null,null,null,null,null,null,null,null,null,null,null,null,null,null,null,null,null,null,null,null,null,null,null,null,null,null,null,null,null,null,null,null,null,null,null,null,null,null,null,null,null,null,null,null,null,null,null,null,null,null,null,null,null,null,null,null,null,null,"Shading total east winter",null,null,null,"Shading","AD9","Shading","AD9","Shading","AF15",null,null,null,null,{"$error":"#REF!"},null,null,null,{"$error":"#REF!"}]
[null,null,null,null,null,null,null,null,null,null,null,null,null,null,null,null,null,null,null,null,null,null,null,null,null,null,null,null,null,null,null,null,null,null,null,null,null,null,null,null,null,null,null,null,null,null,null,null,null,null,null,null,null,null,null,null,null,null,null,null,null,null,null,null,null,null,null,null,null,null,"Shading total south winter",null,null,null,"Shading","AD10","Shading","AD10","Shading","AF16",null,null,null,null,{"$error":"#REF!"},null,null,null,{"$error":"#REF!"}]
[null,null,null,null,null,null,null,null,null,null,null,null,null,null,null,null,null,null,null,null,null,null,null,null,null,null,null,null,null,null,null,null,null,null,null,null,null,null,null,null,null,null,null,null,null,null,null,null,null,null,null,null,null,null,null,null,null,null,null,null,null,null,null,null,null,null,null,null,null,null,"Shading total west winter",null,null,null,"Shading","AD11","Shading","AD11","Shading","AF17",null,null,null,null,{"$error":"#REF!"},null,null,null,{"$error":"#REF!"}]
[null,null,null,null,null,null,null,null,null,null,null,null,null,null,null,null,null,null,null,null,null,null,null,null,null,null,null,null,null,null,null,null,null,null,null,null,null,null,null,null,null,null,null,null,null,null,null,null,null,null,null,null,null,null,null,null,null,null,null,null,null,null,null,null,null,null,null,null,null,null,"Shading total horizontal winter",null,null,null,"Shading","AD12","Shading","AD12","Shading","AF18",null,null,null,null,{"$error":"#REF!"},null,null,null,{"$error":"#REF!"}]
[]
[null,null,null,null,null,null,null,null,null,null,null,null,null,null,null,null,null,null,null,null,null,null,null,null,null,null,null,null,null,null,null,null,null,null,null,null,null,null,null,null,null,null,null,null,null,null,null,null,null,null,null,null,null,null,null,null,null,null,null,null,null,null,null,null,null,null,null,null,null,null,"U-VALUE BUILD-UPS"]
[null,null,null,null,null,null,null,null,null,null,null,null,null,null,null,null,null,null,null,null,null,null,null,null,null,null,null,null,null,null,null,null,null,null,null,null,null,null,null,null,null,null,null,null,null,null,null,null,null,null,null,null,null,null,null,null,null,null,null,null,null,null,null,null,null,null,null,null,null,null,"U-value build-up list",null,null,null,"Components","D15:D113","Components","D15:D113","Components","H13:H111",null,null,null,null,{"$f":"IF($BX$16=\"\",\"'\",\"'[\"&$BX$16&\"]\")&(OFFSET($BW150,0,$BZ$18))&\"'!\"&OFFSET($BX150,0,$BZ$18)","v":{"$error":"#REF!"}}]
[null,null,null,null,null,null,null,null,null,null,null,null,null,null,null,null,null,null,null,null,null,null,null,null,null,null,null,null,null,null,null,null,null,null,null,null,null,null,null,null,null,null,null,null,null,null,null,null,null,null,null,null,null,null,null,null,null,null,null,null,null,null,null,null,null,null,null,null,null,null,"U-value build-up names",null,null,null,"U-Values","M11:M1729","U-Values","M11:M1729","U-Values","L8:L1247",null,null,null,null,{"$error":"#REF!"}]
[null,null,null,null,null,null,null,null,null,null,null,null,null,null,null,null,null,null,null,null,null,null,null,null,null,null,null,null,null,null,null,null,null,null,null,null,null,null,null,null,null,null,null,null,null,null,null,null,null,null,null,null,null,null,null,null,null,null,null,null,null,null,null,null,null,null,null,null,null,null,"Assembly no.",null,null,null,"U-Values","L11:L1729","U-Values","L11:L1729","U-Values","Q8:Q1247",null,null,null,null,{"$error":"#REF!"}]
[null,null,null,null,null,null,null,null,null,null,null,null,null,null,null,null,null,null,null,null,null,null,null,null,null,null,null,null,null,null,null,null,null,null,null,null,null,null,null,null,null,null,null,null,null,null,null,null,null,null,null,null,null,null,null,null,null,null,null,null,null,null,null,null,null,null,null,null,null,null,"Interior insulation?",null,null,null,"U-Values","S11:S1729","U-Values","S11:S1729","U-Values","R10:R1249",null,null,null,null,{"$error":"#REF!"}]
[null,null,null,null,null,null,null,null,null,null,null,null,null,null,null,null,null,null,null,null,null,null,null,null,null,null,null,null,null,null,null,null,null,null,null,null,null,null,null,null,null,null,null,null,null,null,null,null,null,null,null,null,null,null,null,null,null,null,null,null,null,null,null,null,null,null,null,null,null,null,"interior Rsi",null,null,null,"U-Values","O11:O1729","U-Values","O11:O1729","U-Values","M24:M1263",null,null,null,null,{"$error":"#REF!"}]
[null,null,null,null,null,null,null,null,null,null,null,null,null,null,null,null,null,null,null,null,null,null,null,null,null,null,null,null,null,null,null,null,null,null,null,null,null,null,null,null,null,null,null,null,null,null,null,null,null,null,null,null,null,null,null,null,null,null,null,null,null,null,null,null,null,null,null,null,null,null,"exterior Rse",null,null,null,"U-Values","O11:O1729","U-Values","O11:O1729","U-Values","M25:M1264",null,null,null,null,{"$error":"#REF!"}]
[null,null,null,null,null,null,null,null,null,null,null,null,null,null,null,null,null,null,null,null,null,null,null,null,null,null,null,null,null,null,null,null,null,null,null,null,null,null,null,null,null,null,null,null,null,null,null,null,null,null,null,null,null,null,null,null,null,null,null,null,null,null,null,null,null,null,null,null,null,null,"Area section 1",null,null,null,"U-Values","L11:L1729","U-Values","L11:L1729","U-Values","L8:L1259",null,null,null,null,{"$error":"#REF!"}]
[null,null,null,null,null,null,null,null,null,null,null,null,null,null,null,null,null,null,null,null,null,null,null,null,null,null,null,null,null,null,null,null,null,null,null,null,null,null,null,null,null,null,null,null,null,null,null,null,null,null,null,null,null,null,null,null,null,null,null,null,null,null,null,null,null,null,null,null,null,null,"Lambda 1",null,null,null,"U-Values","M11:M1729","U-Values","M11:M1729","U-Values","M8:M1259",null,null,null,null,{"$error":"#REF!"}]
[null,null,null,null,null,null,null,null,null,null,null,null,null,null,null,null,null,null,null,null,null,null,null,null,null,null,null,null,null,null,null,null,null,null,null,null,null,null,null,null,null,null,null,null,null,null,null,null,null,null,null,null,null,null,null,null,null,null,null,null,null,null,null,null,null,null,null,null,null,null,"Area section 2",null,null,null,"U-Values","N11:N1729","U-Values","N11:N1729","U-Values","N8:N1259",null,null,null,null,{"$error":"#REF!"}]
[null,null,null,null,null,null,null,null,null,null,null,null,null,null,null,null,null,null,null,null,null,null,null,null,null,null,null,null,null,null,null,null,null,null,null,null,null,null,null,null,null,null,null,null,null,null,null,null,null,null,null,null,null,null,null,null,null,null,null,null,null,null,null,null,null,null,null,null,null,null,"Lambda 2",null,null,null,"U-Values","O11:O1729","U-Values","O11:O1729","U-Values","O8:O1259",null,null,null,null,{"$error":"#REF!"}]
[null,null,null,null,null,null,null,null,null,null,null,null,null,null,null,null,null,null,null,null,null,null,null,null,null,null,null,null,null,null,null,null,null,null,null,null,null,null,null,null,null,null,null,null,null,null,null,null,null,null,null,null,null,null,null,null,null,null,null,null,null,null,null,null,null,null,null,null,null,null,"Area section 3",null,null,null,"U-Values","P11:P1729","U-Values","P11:P1729","U-Values","P8:P1259",null,null,null,null,{"$error":"#REF!"}]
[null,null,null,null,null,null,null,null,null,null,null,null,null,null,null,null,null,null,null,null,null,null,null,null,null,null,null,null,null,null,null,null,null,null,null,null,null,null,null,null,null,null,null,null,null,null,null,null,null,null,null,null,null,null,null,null,null,null,null,null,null,null,null,null,null,null,null,null,null,null,"Lambda 3",null,null,null,"U-Values","Q11:Q1729","U-Values","Q11:Q1729","U-Values","Q8:Q1259",null,null,null,null,{"$error":"#REF!"}]
[null,null,null,null,null,null,null,null,null,null,null,null,null,null,null,null,null,null,null,null,null,null,null,null,null,null,null,null,null,null,null,null,null,null,null,null,null,null,null,null,null,null,null,null,null,null,null,null,null,null,null,null,null,null,null,null,null,null,null,null,null,null,null,null,null,null,null,null,null,null,"Thickness",null,null,null,"U-Values","S11:S1729","U-Values","S11:S1729","U-Values","R8:R1259",null,null,null,null,{"$error":"#REF!"}]
[null,null,null,null,null,null,null,null,null,null,null,null,null,null,null,null,null,null,null,null,null,null,null,null,null,null,null,null,null,null,null,null,null,null,null,null,null,null,null,null,null,null,null,null,null,null,null,null,null,null,null,null,null,null,null,null,null,null,null,null,null,null,null,null,null,null,null,null,null,null,"Percentage of sec 2",null,null,null,"U-Values","O11:O1729","U-Values","O11:O1729","U-Values","O8:O1260",null,null,null,null,{"$error":"#REF!"}]
[null,null,null,null,null,null,null,null,null,null,null,null,null,null,null,null,null,null,null,null,null,null,null,null,null,null,null,null,null,null,null,null,null,null,null,null,null,null,null,null,null,null,null,null,null,null,null,null,null,null,null,null,null,null,null,null,null,null,null,null,null,null,null,null,null,null,null,null,null,null,"Percentage of sec 3",null,null,null,"U-Values","Q11:Q1729","U-Values","Q11:Q1729","U-Values","Q8:Q1260",null,null,null,null,{"$error":"#REF!"}]
[null,null,null,null,null,null,null,null,null,null,null,null,null,null,null,null,null,null,null,null,null,null,null,null,null,null,null,null,null,null,null,null,null,null,null,null,null,null,null,null,null,null,null,null,null,null,null,null,null,null,null,null,null,null,null,null,null,null,null,null,null,null,null,null,null,null,null,null,null,null,"U-value supplement",null,null,null,"U-Values","M11:M1729","U-Values","M11:M1729","U-Values","R11:R1250",null,null,null,null,{"$error":"#REF!"}]
[null,null,null,null,null,null,null,null,null,null,null,null,null,null,null,null,null,null,null,null,null,null,null,null,null,null,null,null,null,null,null,null,null,null,null,null,null,null,null,null,null,null,null,null,null,null,null,null,null,null,null,null,null,null,null,null,null,null,null,null,null,null,null,null,null,null,null,null,null,null,"U-value",null,null,null,"U-Values","Q11:Q1729","U-Values","Q11:Q1729","U-Values","R11:Q1264",null,null,null,null,{"$error":"#REF!"}]
[]
[null,null,null,null,null,null,null,null,null,null,null,null,null,null,null,null,null,null,null,null,null,null,null,null,null,null,null,null,null,null,null,null,null,null,null,null,null,null,null,null,null,null,null,null,null,null,null,null,null,null,null,null,null,null,null,null,null,null,null,null,null,null,null,null,null,null,null,null,null,null,"VENTILATION"]
[null,null,null,null,null,null,null,null,null,null,null,null,null,null,null,null,null,null,null,null,null,null,null,null,null,null,null,null,null,null,null,null,null,null,null,null,null,null,null,null,null,null,null,null,null,null,null,null,null,null,null,null,null,null,null,null,null,null,null,null,null,null,null,null,null,null,null,null,null,null,"n50",null,null,null,"Ventilation","N27","Ventilation","N27","Ventilation","M23",null,null,null,null,{"$f":"IF($BX$16=\"\",\"'\",\"'[\"&$BX$16&\"]\")&(OFFSET($BW169,0,$BZ$18))&\"'!\"&OFFSET($BX169,0,$BZ$18)","v":{"$error":"#REF!"}},null,null,null,{"$f":"INDIRECT(CG169)","v":{"$error":"#REF!"}}]
[null,null,null,null,null,null,null,null,null,null,null,null,null,null,null,null,null,null,null,null,null,null,null,null,null,null,null,null,null,null,null,null,null,null,null,null,null,null,null,null,null,null,null,null,null,null,null,null,null,null,null,null,null,null,null,null,null,null,null,null,null,null,null,null,null,null,null,null,null,null,"Vn50",null,null,null,"Ventilation","P27","Ventilation","P27","Ventilation","M22",null,null,null,null,{"$error":"#REF!"},null,null,null,{"$error":"#REF!"}]
[null,null,null,null,null,null,null,null,null,null,null,null,null,null,null,null,null,null,null,null,null,null,null,null,null,null,null,null,null,null,null,null,null,null,null,null,null,null,null,null,null,null,null,null,null,null,null,null,null,null,null,null,null,null,null,null,null,null,null,null,null,null,null,null,null,null,null,null,null,null,"Vent Air Change Rate",null,null,null,"Ventilation","N43","Ventilation","N43","Ventilation","J32",null,null,null,null,{"$error":"#REF!"},null,null,null,{"$error":"#REF!"}]
[null,null,null,null,null,null,null,null,null,null,null,null,null,null,null,null,null,null,null,null,null,null,null,null,null,null,null,null,null,null,null,null,null,null,null,null,null,null,null,null,null,null,null,null,null,null,null,null,null,null,null,null,null,null,null,null,null,null,null,null,null,null,null,null,null,null,null,null,null,null,"Vent Flow Rate",null,null,null,"Ventilation","M43","Ventilation","M43","Ventilation","I32",null,null,null,null,{"$error":"#REF!"},null,null,null,{"$error":"#REF!"}]
[null,null,null,null,null,null,null,null,null,null,null,null,null,null,null,null,null,null,null,null,null,null,null,null,null,null,null,null,null,null,null,null,null,null,null,null,null,null,null,null,null,null,null,null,null,null,null,null,null,null,null,null,null,null,null,null,null,null,null,null,null,null,null,null,null,null,null,null,null,null,"Additional Vent Sheet Used?",null,null,null,"Ventilation","H42","Ventilation","H42","Ventilation","K15",null,null,null,null,{"$error":"#REF!"},null,null,null,{"$error":"#REF!"}]
[null,null,null,null,null,null,null,null,null,null,null,null,null,null,null,null,null,null,null,null,null,null,null,null,null,null,null,null,null,null,null,null,null,null,null,null,null,null,null,null,null,null,null,null,null,null,null,null,null,null,null,null,null,null,null,null,null,null,null,null,null,null,null,null,null,null,null,null,null,null,"Single Vent: Unit Used",null,null,null,"Ventilation","K88","Ventilation","K88","Ventilation","K91",null,null,null,null,{"$error":"#REF!"},null,null,null,{"$error":"#REF!"}]
[null,null,null,null,null,null,null,null,null,null,null,null,null,null,null,null,null,null,null,null,null,null,null,null,null,null,null,null,null,null,null,null,null,null,null,null,null,null,null,null,null,null,null,null,null,null,null,null,null,null,null,null,null,null,null,null,null,null,null,null,null,null,null,null,null,null,null,null,null,null,"Single Vent: Intake Duct Length",null,null,null,"Ventilation","N91","Ventilation","N91","Ventilation","N94",null,null,null,null,{"$error":"#REF!"},null,null,null,{"$error":"#REF!"}]
[null,null,null,null,null,null,null,null,null,null,null,null,null,null,null,null,null,null,null,null,null,null,null,null,null,null,null,null,null,null,null,null,null,null,null,null,null,null,null,null,null,null,null,null,null,null,null,null,null,null,null,null,null,null,null,null,null,null,null,null,null,null,null,null,null,null,null,null,null,null,"Single Vent: Intake Duct Diameter",null,null,null,"Ventilation","L106","Ventilation","L106","Ventilation","L109",null,null,null,null,{"$error":"#REF!"},null,null,null,{"$error":"#REF!"}]
[null,null,null,null,null,null,null,null,null,null,null,null,null,null,null,null,null,null,null,null,null,null,null,null,null,null,null,null,null,null,null,null,null,null,null,null,null,null,null,null,null,null,null,null,null,null,null,null,null,null,null,null,null,null,null,null,null,null,null,null,null,null,null,null,null,null,null,null,null,null,"Single Vent: Intake Duct Insulation Thickness",null,null,null,"Ventilation","L107","Ventilation","L107","Ventilation","L110",null,null,null,null,{"$error":"#REF!"},null,null,null,{"$error":"#REF!"}]
[null,null,null,null,null,null,null,null,null,null,null,null,null,null,null,null,null,null,null,null,null,null,null,null,null,null,null,null,null,null,null,null,null,null,null,null,null,null,null,null,null,null,null,null,null,null,null,null,null,null,null,null,null,null,null,null,null,null,null,null,null,null,null,null,null,null,null,null,null,null,"Single Vent: Intake Duct Insulation Cond",null,null,null,"Ventilation","L112","Ventilation","L112","Ventilation","L114",null,null,null,null,{"$error":"#REF!"},null,null,null,{"$error":"#REF!"}]
[null,null,null,null,null,null,null,null,null,null,null,null,null,null,null,null,null,null,null,null,null,null,null,null,null,null,null,null,null,null,null,null,null,null,null,null,null,null,null,null,null,null,null,null,null,null,null,null,null,null,null,null,null,null,null,null,null,null,null,null,null,null,null,null,null,null,null,null,null,null,"Single Vent: Exhaust Duct Length",null,null,null,"Ventilation","N93","Ventilation","N93","Ventilation","N96",null,null,null,null,{"$error":"#REF!"},null,null,null,{"$error":"#REF!"}]
[null,null,null,null,null,null,null,null,null,null,null,null,null,null,null,null,null,null,null,null,null,null,null,null,null,null,null,null,null,null,null,null,null,null,null,null,null,null,null,null,null,null,null,null,null,null,null,null,null,null,null,null,null,null,null,null,null,null,null,null,null,null,null,null,null,null,null,null,null,null,"Single Vent: Exhaust Duct Diameter",null,null,null,"Ventilation","Q106","Ventilation","Q106","Ventilation","Q109",null,null,null,null,{"$error":"#REF!"},null,null,null,{"$error":"#REF!"}]
[null,null,null,null,null,null,null,null,null,null,null,null,null,null,null,null,null,null,null,null,null,null,null,null,null,null,null,null,null,null,null,null,null,null,null,null,null,null,null,null,null,null,null,null,null,null,null,null,null,null,null,null,null,null,null,null,null,null,null,null,null,null,null,null,null,null,null,null,null,null,"Single Vent: Exhaust Duct Insulation Thickness",null,null,null,"Ventilation","Q107","Ventilation","Q107","Ventilation","Q110",null,null,null,null,{"$error":"#REF!"},null,null,null,{"$error":"#REF!"}]
[null,null,null,null,null,null,null,null,null,null,null,null,null,null,null,null,null,null,null,null,null,null,null,null,null,null,null,null,null,null,null,null,null,null,null,null,null,null,null,null,null,null,null,null,null,null,null,null,null,null,null,null,null,null,null,null,null,null,null,null,null,null,null,null,null,null,null,null,null,null,"Single Vent: Exhaust Duct Insulation Cond",null,null,null,"Ventilation","Q112","Ventilation","Q112","Ventilation","Q114",null,null,null,null,{"$error":"#REF!"},null,null,null,{"$error":"#REF!"}]
[null,null,null,null,null,null,null,null,null,null,null,null,null,null,null,null,null,null,null,null,null,null,null,null,null,null,null,null,null,null,null,null,null,null,null,null,null,null,null,null,null,null,null,null,null,null,null,null,null,null,null,null,null,null,null,null,null,null,null,null,null,null,null,null,null,null,null,null,null,null,"Additional Vent: Quantities of Vent. Units Used",null,null,null,"Addl vent","D97:D106","Additional Vent","D97:D106","Additional Vent","D97:D106",null,null,null,null,{"$error":"#REF!"}]
[null,null,null,null,null,null,null,null,null,null,null,null,null,null,null,null,null,null,null,null,null,null,null,null,null,null,null,null,null,null,null,null,null,null,null,null,null,null,null,null,null,null,null,null,null,null,null,null,null,null,null,null,null,null,null,null,null,null,null,null,null,null,null,null,null,null,null,null,null,null,"Additional Vent: List of Vent. Units Used",null,null,null,"Addl vent","F97:F106","Additional Vent","F97:F106","Additional Vent","F97:F106",null,null,null,null,{"$error":"#REF!"}]
[null,null,null,null,null,null,null,null,null,null,null,null,null,null,null,null,null,null,null,null,null,null,null,null,null,null,null,null,null,null,null,null,null,null,null,null,null,null,null,null,null,null,null,null,null,null,null,null,null,null,null,null,null,null,null,null,null,null,null,null,null,null,null,null,null,null,null,null,null,null,"Additional Vent: First Cell of List of Vent. Units Used",null,null,null,"Addl vent","C97:F106","Additional Vent","C97:F106","Additional Vent","C97:F106",null,null,null,null,{"$error":"#REF!"}]
[null,null,null,null,null,null,null,null,null,null,null,null,null,null,null,null,null,null,null,null,null,null,null,null,null,null,null,null,null,null,null,null,null,null,null,null,null,null,null,null,null,null,null,null,null,null,null,null,null,null,null,null,null,null,null,null,null,null,null,null,null,null,null,null,null,null,null,null,null,null,"Additional Vent: Duct Diameter",null,null,null,"Addl vent","E127:E146","Additional Vent","E127:E146","Additional Vent","E127:E146",null,null,null,null,{"$error":"#REF!"}]
[null,null,null,null,null,null,null,null,null,null,null,null,null,null,null,null,null,null,null,null,null,null,null,null,null,null,null,null,null,null,null,null,null,null,null,null,null,null,null,null,null,null,null,null,null,null,null,null,null,null,null,null,null,null,null,null,null,null,null,null,null,null,null,null,null,null,null,null,null,null,"Additional Vent: Duct Width",null,null,null,"Addl vent","F127:F146","Additional Vent","F127:F146","Additional Vent","F127:F146",null,null,null,null,{"$error":"#REF!"}]
[null,null,null,null,null,null,null,null,null,null,null,null,null,null,null,null,null,null,null,null,null,null,null,null,null,null,null,null,null,null,null,null,null,null,null,null,null,null,null,null,null,null,null,null,null,null,null,null,null,null,null,null,null,null,null,null,null,null,null,null,null,null,null,null,null,null,null,null,null,null,"Additional Vent: Duct Height",null,null,null,"Addl vent","G127:G146","Additional Vent","G127:G146","Additional Vent","G127:G146",null,null,null,null,{"$error":"#REF!"}]
[null,null,null,null,null,null,null,null,null,null,null,null,null,null,null,null,null,null,null,null,null,null,null,null,null,null,null,null,null,null,null,null,null,null,null,null,null,null,null,null,null,null,null,null,null,null,null,null,null,null,null,null,null,null,null,null,null,null,null,null,null,null,null,null,null,null,null,null,null,null,"Additional Vent: Insulation Thickness",null,null,null,"Addl vent","H127:H146","Additional Vent","H127:H146","Additional Vent","H127:H146",null,null,null,null,{"$error":"#REF!"}]
[null,null,null,null,null,null,null,null,null,null,null,null,null,null,null,null,null,null,null,null,null,null,null,null,null,null,null,null,null,null,null,null,null,null,null,null,null,null,null,null,null,null,null,null,null,null,null,null,null,null,null,null,null,null,null,null,null,null,null,null,null,null,null,null,null,null,null,null,null,null,"Additional Vent: Insulation Conductivity",null,null,null,"Addl vent","I127:I146","Additional Vent","I127:I146","Additional Vent","I127:I146",null,null,null,null,{"$error":"#REF!"}]
[null,null,null,null,null,null,null,null,null,null,null,null,null,null,null,null,null,null,null,null,null,null,null,null,null,null,null,null,null,null,null,null,null,null,null,null,null,null,null,null,null,null,null,null,null,null,null,null,null,null,null,null,null,null,null,null,null,null,null,null,null,null,null,null,null,null,null,null,null,null,"Additional Vent: Ambient or Extract Air Duct",null,null,null,"Addl vent","M127:M146","Additional Vent","M127:M146","Additional Vent","M127:M146",null,null,null,null,{"$error":"#REF!"}]
[null,null,null,null,null,null,null,null,null,null,null,null,null,null,null,null,null,null,null,null,null,null,null,null,null,null,null,null,null,null,null,null,null,null,null,null,null,null,null,null,null,null,null,null,null,null,null,null,null,null,null,null,null,null,null,null,null,null,null,null,null,null,null,null,null,null,null,null,null,null,"Additional Vent: Exhaust or Flow Duct",null,null,null,"Addl vent","N127:N146","Additional Vent","N127:N146","Additional Vent","N127:N146",null,null,null,null,{"$error":"#REF!"}]
[null,null,null,null,null,null,null,null,null,null,null,null,null,null,null,null,null,null,null,null,null,null,null,null,null,null,null,null,null,null,null,null,null,null,null,null,null,null,null,null,null,null,null,null,null,null,null,null,null,null,null,null,null,null,null,null,null,null,null,null,null,null,null,null,null,null,null,null,null,null,"Additional Vent: Ambient Vent: Length of Supply Air",null,null,null,"Addl vent","L127:L146","Additional Vent","L127:L146","Additional Vent","L127:L146",null,null,null,null,{"$error":"#REF!"}]
[null,null,null,null,null,null,null,null,null,null,null,null,null,null,null,null,null,null,null,null,null,null,null,null,null,null,null,null,null,null,null,null,null,null,null,null,null,null,null,null,null,null,null,null,null,null,null,null,null,null,null,null,null,null,null,null,null,null,null,null,null,null,null,null,null,null,null,null,null,null,"Additional Vent: Vent Unit 1",null,null,null,"Addl vent","Q127:Q146","Additional Vent","Q127:Q146","Additional Vent","Q127:Q146",null,null,null,null,{"$error":"#REF!"}]
[null,null,null,null,null,null,null,null,null,null,null,null,null,null,null,null,null,null,null,null,null,null,null,null,null,null,null,null,null,null,null,null,null,null,null,null,null,null,null,null,null,null,null,null,null,null,null,null,null,null,null,null,null,null,null,null,null,null,null,null,null,null,null,null,null,null,null,null,null,null,"Additional Vent: Vent Unit 2",null,null,null,"Addl vent","R127:R146","Additional Vent","R127:R146","Additional Vent","R127:R146",null,null,null,null,{"$error":"#REF!"}]
[null,null,null,null,null,null,null,null,null,null,null,null,null,null,null,null,null,null,null,null,null,null,null,null,null,null,null,null,null,null,null,null,null,null,null,null,null,null,null,null,null,null,null,null,null,null,null,null,null,null,null,null,null,null,null,null,null,null,null,null,null,null,null,null,null,null,null,null,null,null,"Additional Vent: Vent Unit 3",null,null,null,"Addl vent","S127:S146","Additional Vent","S127:S146","Additional Vent","S127:S146",null,null,null,null,{"$error":"#REF!"}]
[null,null,null,null,null,null,null,null,null,null,null,null,null,null,null,null,null,null,null,null,null,null,null,null,null,null,null,null,null,null,null,null,null,null,null,null,null,null,null,null,null,null,null,null,null,null,null,null,null,null,null,null,null,null,null,null,null,null,null,null,null,null,null,null,null,null,null,null,null,null,"Additional Vent: Vent Unit 4",null,null,null,"Addl vent","T127:T146","Additional Vent","T127:T146","Additional Vent","T127:T146",null,null,null,null,{"$error":"#REF!"}]
[null,null,null,null,null,null,null,null,null,null,null,null,null,null,null,null,null,null,null,null,null,null,null,null,null,null,null,null,null,null,null,null,null,null,null,null,null,null,null,null,null,null,null,null,null,null,null,null,null,null,null,null,null,null,null,null,null,null,null,null,null,null,null,null,null,null,null,null,null,null,"Additional Vent: Vent Unit 5",null,null,null,"Addl vent","U127:U146","Additional Vent","U127:U146","Additional Vent","U127:U146",null,null,null,null,{"$error":"#REF!"}]
[null,null,null,null,null,null,null,null,null,null,null,null,null,null,null,null,null,null,null,null,null,null,null,null,null,null,null,null,null,null,null,null,null,null,null,null,null,null,null,null,null,null,null,null,null,null,null,null,null,null,null,null,null,null,null,null,null,null,null,null,null,null,null,null,null,null,null,null,null,null,"Additional Vent: Vent Unit 6",null,null,null,"Addl vent","V127:V146","Additional Vent","V127:V146","Additional Vent","V127:V146",null,null,null,null,{"$error":"#REF!"}]
[null,null,null,null,null,null,null,null,null,null,null,null,null,null,null,null,null,null,null,null,null,null,null,null,null,null,null,null,null,null,null,null,null,null,null,null,null,null,null,null,null,null,null,null,null,null,null,null,null,null,null,null,null,null,null,null,null,null,null,null,null,null,null,null,null,null,null,null,null,null,"Additional Vent: Vent Unit 7",null,null,null,"Addl vent","W127:W146","Additional Vent","W127:W146","Additional Vent","W127:W146",null,null,null,null,{"$error":"#REF!"}]
[null,null,null,null,null,null,null,null,null,null,null,null,null,null,null,null,null,null,null,null,null,null,null,null,null,null,null,null,null,null,null,null,null,null,null,null,null,null,null,null,null,null,null,null,null,null,null,null,null,null,null,null,null,null,null,null,null,null,null,null,null,null,null,null,null,null,null,null,null,null,"Additional Vent: Vent Unit 8",null,null,null,"Addl vent","X127:X146","Additional Vent","X127:X146","Additional Vent","X127:X146",null,null,null,null,{"$error":"#REF!"}]
[null,null,null,null,null,null,null,null,null,null,null,null,null,null,null,null,null,null,null,null,null,null,null,null,null,null,null,null,null,null,null,null,null,null,null,null,null,null,null,null,null,null,null,null,null,null,null,null,null,null,null,null,null,null,null,null,null,null,null,null,null,null,null,null,null,null,null,null,null,null,"Additional Vent: Vent Unit 9",null,null,null,"Addl vent","Y127:Y146","Additional Vent","Y127:Y146","Additional Vent","Y127:Y146",null,null,null,null,{"$error":"#REF!"}]
[null,null,null,null,null,null,null,null,null,null,null,null,null,null,null,null,null,null,null,null,null,null,null,null,null,null,null,null,null,null,null,null,null,null,null,null,null,null,null,null,null,null,null,null,null,null,null,null,null,null,null,null,null,null,null,null,null,null,null,null,null,null,null,null,null,null,null,null,null,null,"Additional Vent: Vent Unit 10",null,null,null,"Addl vent","Z127:Z146","Additional Vent","Z127:Z146","Additional Vent","Z127:Z146",null,null,null,null,{"$error":"#REF!"}]
[]
[]
[null,null,null,null,null,null,null,null,null,null,null,null,null,null,null,null,null,null,null,null,null,null,null,null,null,null,null,null,null,null,null,null,null,null,null,null,null,null,null,null,null,null,null,null,null,null,null,null,null,null,null,null,null,null,null,null,null,null,null,null,null,null,null,null,null,null,null,null,null,null,"HEATING (MONTHLY)"]
[]
[null,null,null,null,null,null,null,null,null,null,null,null,null,null,null,null,null,null,null,null,null,null,null,null,null,null,null,null,null,null,null,null,null,null,null,null,null,null,null,null,null,null,null,null,null,null,null,null,null,null,null,null,null,null,null,null,null,null,null,null,null,null,null,null,null,null,null,null,null,null,"Wall HL Monthly",null,null,null,"Heating","O14","Heating","O14","Heating","O14",null,null,null,null,{"$f":"IF($BX$16=\"\",\"'\",\"'[\"&$BX$16&\"]\")&(OFFSET($BW208,0,$BZ$18))&\"'!\"&OFFSET($BX208,0,$BZ$18)","v":{"$error":"#REF!"}},null,null,null,{"$f":"IF(INDIRECT(CG208)=\"\",0,INDIRECT(CG208))","v":{"$error":"#REF!"}}]
[null,null,null,null,null,null,null,null,null,null,null,null,null,null,null,null,null,null,null,null,null,null,null,null,null,null,null,null,null,null,null,null,null,null,null,null,null,null,null,null,null,null,null,null,null,null,null,null,null,null,null,null,null,null,null,null,null,null,null,null,null,null,null,null,null,null,null,null,null,null,"Wall BG HL Monthly",null,null,null,"Heating","O15","Heating","O15","Heating","O15",null,null,null,null,{"$error":"#REF!"},null,null,null,{"$error":"#REF!"}]
[null,null,null,null,null,null,null,null,null,null,null,null,null,null,null,null,null,null,null,null,null,null,null,null,null,null,null,null,null,null,null,null,null,null,null,null,null,null,null,null,null,null,null,null,null,null,null,null,null,null,null,null,null,null,null,null,null,null,null,null,null,null,null,null,null,null,null,null,null,null,"Roof HL Monthly",null,null,null,"Heating","O16","Heating","O16","Heating","O16",null,null,null,null,{"$error":"#REF!"},null,null,null,{"$error":"#REF!"}]
[null,null,null,null,null,null,null,null,null,null,null,null,null,null,null,null,null,null,null,null,null,null,null,null,null,null,null,null,null,null,null,null,null,null,null,null,null,null,null,null,null,null,null,null,null,null,null,null,null,null,null,null,null,null,null,null,null,null,null,null,null,null,null,null,null,null,null,null,null,null,"Floor HL Monthly",null,null,null,"Heating","O17","Heating","O17","Heating","O17",null,null,null,null,{"$error":"#REF!"},null,null,null,{"$error":"#REF!"}]
[null,null,null,null,null,null,null,null,null,null,null,null,null,null,null,null,null,null,null,null,null,null,null,null,null,null,null,null,null,null,null,null,null,null,null,null,null,null,null,null,null,null,null,null,null,null,null,null,null,null,null,null,null,null,null,null,null,null,null,null,null,null,null,null,null,null,null,null,null,null,"Other 1",null,null,null,"Heating","O18","Heating","O18","Heating","O18",null,null,null,null,{"$error":"#REF!"},null,null,null,{"$error":"#REF!"}]
[null,null,null,null,null,null,null,null,null,null,null,null,null,null,null,null,null,null,null,null,null,null,null,null,null,null,null,null,null,null,null,null,null,null,null,null,null,null,null,null,null,null,null,null,null,null,null,null,null,null,null,null,null,null,null,null,null,null,null,null,null,null,null,null,null,null,null,null,null,null,"Other 2",null,null,null,"Heating","O19","Heating","O19","Heating","O19",null,null,null,null,{"$error":"#REF!"},null,null,null,{"$error":"#REF!"}]
[null,null,null,null,null,null,null,null,null,null,null,null,null,null,null,null,null,null,null,null,null,null,null,null,null,null,null,null,null,null,null,null,null,null,null,null,null,null,null,null,null,null,null,null,null,null,null,null,null,null,null,null,null,null,null,null,null,null,null,null,null,null,null,null,null,null,null,null,null,null,"Other 3",null,null,null,"Heating","O20","Heating","O20","Heating","O20",null,null,null,null,{"$error":"#REF!"},null,null,null,{"$error":"#REF!"}]
[null,null,null,null,null,null,null,null,null,null,null,null,null,null,null,null,null,null,null,null,null,null,null,null,null,null,null,null,null,null,null,null,null,null,null,null,null,null,null,null,null,null,null,null,null,null,null,null,null,null,null,null,null,null,null,null,null,null,null,null,null,null,null,null,null,null,null,null,null,null,"Window HL Monthly",null,null,null,"Heating","O21","Heating","O21","Heating","O21",null,null,null,null,{"$error":"#REF!"},null,null,null,{"$error":"#REF!"}]
[null,null,null,null,null,null,null,null,null,null,null,null,null,null,null,null,null,null,null,null,null,null,null,null,null,null,null,null,null,null,null,null,null,null,null,null,null,null,null,null,null,null,null,null,null,null,null,null,null,null,null,null,null,null,null,null,null,null,null,null,null,null,null,null,null,null,null,null,null,null,"Door HL Monthly",null,null,null,"Heating","O22","Heating","O22","Heating","O22",null,null,null,null,{"$error":"#REF!"},null,null,null,{"$error":"#REF!"}]
[null,null,null,null,null,null,null,null,null,null,null,null,null,null,null,null,null,null,null,null,null,null,null,null,null,null,null,null,null,null,null,null,null,null,null,null,null,null,null,null,null,null,null,null,null,null,null,null,null,null,null,null,null,null,null,null,null,null,null,null,null,null,null,null,null,null,null,null,null,null,"Exterior TB Monthly",null,null,null,"Heating","O23","Heating","O23","Heating","O23",null,null,null,null,{"$error":"#REF!"},null,null,null,{"$error":"#REF!"}]
[null,null,null,null,null,null,null,null,null,null,null,null,null,null,null,null,null,null,null,null,null,null,null,null,null,null,null,null,null,null,null,null,null,null,null,null,null,null,null,null,null,null,null,null,null,null,null,null,null,null,null,null,null,null,null,null,null,null,null,null,null,null,null,null,null,null,null,null,null,null,"Perimeter TB Monthly",null,null,null,"Heating","O24","Heating","O24","Heating","O24",null,null,null,null,{"$error":"#REF!"},null,null,null,{"$error":"#REF!"}]
[null,null,null,null,null,null,null,null,null,null,null,null,null,null,null,null,null,null,null,null,null,null,null,null,null,null,null,null,null,null,null,null,null,null,null,null,null,null,null,null,null,null,null,null,null,null,null,null,null,null,null,null,null,null,null,null,null,null,null,null,null,null,null,null,null,null,null,null,null,null,"Ground TB Monthly",null,null,null,"Heating","O25","Heating","O25","Heating","O25",null,null,null,null,{"$error":"#REF!"},null,null,null,{"$error":"#REF!"}]
[null,null,null,null,null,null,null,null,null,null,null,null,null,null,null,null,null,null,null,null,null,null,null,null,null,null,null,null,null,null,null,null,null,null,null,null,null,null,null,null,null,null,null,null,null,null,null,null,null,null,null,null,null,null,null,null,null,null,null,null,null,null,null,null,null,null,null,null,null,null,"Vv Monthly",null,null,null,"Heating","G40","Heating","G40","Heating","G40",null,null,null,null,{"$error":"#REF!"},null,null,null,{"$error":"#REF!"}]
[null,null,null,null,null,null,null,null,null,null,null,null,null,null,null,null,null,null,null,null,null,null,null,null,null,null,null,null,null,null,null,null,null,null,null,null,null,null,null,null,null,null,null,null,null,null,null,null,null,null,null,null,null,null,null,null,null,null,null,null,null,null,null,null,null,null,null,null,null,null,"nV,Res",null,null,null,"Heating","M35","Heating","M35","Heating","M35",null,null,null,null,{"$error":"#REF!"},null,null,null,{"$error":"#REF!"}]
[null,null,null,null,null,null,null,null,null,null,null,null,null,null,null,null,null,null,null,null,null,null,null,null,null,null,null,null,null,null,null,null,null,null,null,null,null,null,null,null,null,null,null,null,null,null,null,null,null,null,null,null,null,null,null,null,null,null,null,null,null,null,null,null,null,null,null,null,null,null,"cAir",null,null,null,"Heating","K40","Heating","K40","Heating","K40",null,null,null,null,{"$error":"#REF!"},null,null,null,{"$error":"#REF!"}]
[null,null,null,null,null,null,null,null,null,null,null,null,null,null,null,null,null,null,null,null,null,null,null,null,null,null,null,null,null,null,null,null,null,null,null,null,null,null,null,null,null,null,null,null,null,null,null,null,null,null,null,null,null,null,null,null,null,null,null,null,null,null,null,null,null,null,null,null,null,null,"Gt",null,null,null,"Heating","M40","Heating","M40","Heating","M40",null,null,null,null,{"$error":"#REF!"},null,null,null,{"$error":"#REF!"}]
[null,null,null,null,null,null,null,null,null,null,null,null,null,null,null,null,null,null,null,null,null,null,null,null,null,null,null,null,null,null,null,null,null,null,null,null,null,null,null,null,null,null,null,null,null,null,null,null,null,null,null,null,null,null,null,null,null,null,null,null,null,null,null,null,null,null,null,null,null,null,"Gain uti. Monthly",null,null,null,"Heating","O72","Heating","O72","Heating","O72",null,null,null,null,{"$error":"#REF!"},null,null,null,{"$error":"#REF!"}]
[null,null,null,null,null,null,null,null,null,null,null,null,null,null,null,null,null,null,null,null,null,null,null,null,null,null,null,null,null,null,null,null,null,null,null,null,null,null,null,null,null,null,null,null,null,null,null,null,null,null,null,null,null,null,null,null,null,null,null,null,null,null,null,null,null,null,null,null,null,null,"Ventilation Heat Losses QV Monthly",null,null,null,"Heating","Q43","Heating","Q43","Heating","Q43",null,null,null,null,{"$error":"#REF!"},null,null,null,{"$error":"#REF!"}]
[null,null,null,null,null,null,null,null,null,null,null,null,null,null,null,null,null,null,null,null,null,null,null,null,null,null,null,null,null,null,null,null,null,null,null,null,null,null,null,null,null,null,null,null,null,null,null,null,null,null,null,null,null,null,null,null,null,null,null,null,null,null,null,null,null,null,null,null,null,null,"Int. Gains Monthly",null,null,null,"Heating","Q65","Heating","Q65","Heating","Q65",null,null,null,null,{"$error":"#REF!"},null,null,null,{"$error":"#REF!"}]
[null,null,null,null,null,null,null,null,null,null,null,null,null,null,null,null,null,null,null,null,null,null,null,null,null,null,null,null,null,null,null,null,null,null,null,null,null,null,null,null,null,null,null,null,null,null,null,null,null,null,null,null,null,null,null,null,null,null,null,null,null,null,null,null,null,null,null,null,null,null,"Solar gains Monthly",null,null,null,"Heating","Q61","Heating","Q61","Heating","Q61",null,null,null,null,{"$error":"#REF!"},null,null,null,{"$error":"#REF!"}]
[null,null,null,null,null,null,null,null,null,null,null,null,null,null,null,null,null,null,null,null,null,null,null,null,null,null,null,null,null,null,null,null,null,null,null,null,null,null,null,null,null,null,null,null,null,null,null,null,null,null,null,null,null,null,null,null,null,null,null,null,null,null,null,null,null,null,null,null,null,null,"U val Exterior Wall - Ambient",null,null,null,"Heating","I14","Heating","I14","Heating","I14",null,null,null,null,{"$error":"#REF!"},null,null,null,{"$f":"INDIRECT(CG228)","v":{"$error":"#REF!"}}]
[null,null,null,null,null,null,null,null,null,null,null,null,null,null,null,null,null,null,null,null,null,null,null,null,null,null,null,null,null,null,null,null,null,null,null,null,null,null,null,null,null,null,null,null,null,null,null,null,null,null,null,null,null,null,null,null,null,null,null,null,null,null,null,null,null,null,null,null,null,null,"U val Exterior Wall - Ground",null,null,null,"Heating","I15","Heating","I15","Heating","I15",null,null,null,null,{"$error":"#REF!"},null,null,null,{"$error":"#REF!"}]
[null,null,null,null,null,null,null,null,null,null,null,null,null,null,null,null,null,null,null,null,null,null,null,null,null,null,null,null,null,null,null,null,null,null,null,null,null,null,null,null,null,null,null,null,null,null,null,null,null,null,null,null,null,null,null,null,null,null,null,null,null,null,null,null,null,null,null,null,null,null,"U val Roof/Ceiling - Ambient",null,null,null,"Heating","I16","Heating","I16","Heating","I16",null,null,null,null,{"$error":"#REF!"},null,null,null,{"$error":"#REF!"}]
[null,null,null,null,null,null,null,null,null,null,null,null,null,null,null,null,null,null,null,null,null,null,null,null,null,null,null,null,null,null,null,null,null,null,null,null,null,null,null,null,null,null,null,null,null,null,null,null,null,null,null,null,null,null,null,null,null,null,null,null,null,null,null,null,null,null,null,null,null,null,"U val Floor Slab",null,null,null,"Heating","I17","Heating","I17","Heating","I17",null,null,null,null,{"$error":"#REF!"},null,null,null,{"$error":"#REF!"}]
[null,null,null,null,null,null,null,null,null,null,null,null,null,null,null,null,null,null,null,null,null,null,null,null,null,null,null,null,null,null,null,null,null,null,null,null,null,null,null,null,null,null,null,null,null,null,null,null,null,null,null,null,null,null,null,null,null,null,null,null,null,null,null,null,null,null,null,null,null,null,"U val ",null,null,null,"Heating","I18","Heating","I18","Heating","I18",null,null,null,null,{"$error":"#REF!"},null,null,null,{"$error":"#REF!"}]
[null,null,null,null,null,null,null,null,null,null,null,null,null,null,null,null,null,null,null,null,null,null,null,null,null,null,null,null,null,null,null,null,null,null,null,null,null,null,null,null,null,null,null,null,null,null,null,null,null,null,null,null,null,null,null,null,null,null,null,null,null,null,null,null,null,null,null,null,null,null,"U val ",null,null,null,"Heating","I19","Heating","I19","Heating","I19",null,null,null,null,{"$error":"#REF!"},null,null,null,{"$error":"#REF!"}]
[null,null,null,null,null,null,null,null,null,null,null,null,null,null,null,null,null,null,null,null,null,null,null,null,null,null,null,null,null,null,null,null,null,null,null,null,null,null,null,null,null,null,null,null,null,null,null,null,null,null,null,null,null,null,null,null,null,null,null,null,null,null,null,null,null,null,null,null,null,null,"U val ",null,null,null,"Heating","I20","Heating","I20","Heating","I20",null,null,null,null,{"$error":"#REF!"},null,null,null,{"$error":"#REF!"}]
[null,null,null,null,null,null,null,null,null,null,null,null,null,null,null,null,null,null,null,null,null,null,null,null,null,null,null,null,null,null,null,null,null,null,null,null,null,null,null,null,null,null,null,null,null,null,null,null,null,null,null,null,null,null,null,null,null,null,null,null,null,null,null,null,null,null,null,null,null,null,"[8] Wall AM Temp. Factor ft ",null,null,null,"Heating","K14","Heating","K14","Heating","K14",null,null,null,null,{"$error":"#REF!"},null,null,null,{"$error":"#REF!"}]
[null,null,null,null,null,null,null,null,null,null,null,null,null,null,null,null,null,null,null,null,null,null,null,null,null,null,null,null,null,null,null,null,null,null,null,null,null,null,null,null,null,null,null,null,null,null,null,null,null,null,null,null,null,null,null,null,null,null,null,null,null,null,null,null,null,null,null,null,null,null,"[9] Wall BG Temp. Factor ft ",null,null,null,"Heating","K15","Heating","K15","Heating","K15",null,null,null,null,{"$error":"#REF!"},null,null,null,{"$error":"#REF!"}]
[null,null,null,null,null,null,null,null,null,null,null,null,null,null,null,null,null,null,null,null,null,null,null,null,null,null,null,null,null,null,null,null,null,null,null,null,null,null,null,null,null,null,null,null,null,null,null,null,null,null,null,null,null,null,null,null,null,null,null,null,null,null,null,null,null,null,null,null,null,null,"[10] roof Temp. Factor ft ",null,null,null,"Heating","K16","Heating","K16","Heating","K16",null,null,null,null,{"$error":"#REF!"},null,null,null,{"$error":"#REF!"}]
[null,null,null,null,null,null,null,null,null,null,null,null,null,null,null,null,null,null,null,null,null,null,null,null,null,null,null,null,null,null,null,null,null,null,null,null,null,null,null,null,null,null,null,null,null,null,null,null,null,null,null,null,null,null,null,null,null,null,null,null,null,null,null,null,null,null,null,null,null,null,"[11] Floor Temp. Factor ft ",null,null,null,"Heating","K17","Heating","K17","Heating","K17",null,null,null,null,{"$error":"#REF!"},null,null,null,{"$error":"#REF!"}]
[null,null,null,null,null,null,null,null,null,null,null,null,null,null,null,null,null,null,null,null,null,null,null,null,null,null,null,null,null,null,null,null,null,null,null,null,null,null,null,null,null,null,null,null,null,null,null,null,null,null,null,null,null,null,null,null,null,null,null,null,null,null,null,null,null,null,null,null,null,null,"[12] other1 Temp. Factor ft ",null,null,null,"Heating","K18","Heating","K18","Heating","K18",null,null,null,null,{"$error":"#REF!"},null,null,null,{"$error":"#REF!"}]
[null,null,null,null,null,null,null,null,null,null,null,null,null,null,null,null,null,null,null,null,null,null,null,null,null,null,null,null,null,null,null,null,null,null,null,null,null,null,null,null,null,null,null,null,null,null,null,null,null,null,null,null,null,null,null,null,null,null,null,null,null,null,null,null,null,null,null,null,null,null,"[13] other2 Temp. Factor ft ",null,null,null,"Heating","K19","Heating","K19","Heating","K19",null,null,null,null,{"$error":"#REF!"},null,null,null,{"$error":"#REF!"}]
[null,null,null,null,null,null,null,null,null,null,null,null,null,null,null,null,null,null,null,null,null,null,null,null,null,null,null,null,null,null,null,null,null,null,null,null,null,null,null,null,null,null,null,null,null,null,null,null,null,null,null,null,null,null,null,null,null,null,null,null,null,null,null,null,null,null,null,null,null,null,"[14] other3 Temp. Factor ft ",null,null,null,"Heating","K20","Heating","K20","Heating","K20",null,null,null,null,{"$error":"#REF!"},null,null,null,{"$error":"#REF!"}]
[]
[null,null,null,null,null,null,null,null,null,null,null,null,null,null,null,null,null,null,null,null,null,null,null,null,null,null,null,null,null,null,null,null,null,null,null,null,null,null,null,null,null,null,null,null,null,null,null,null,null,null,null,null,null,null,null,null,null,null,null,null,null,null,null,null,null,null,null,null,null,null,"HEATING (ANNUAL)"]
[null,null,null,null,null,null,null,null,null,null,null,null,null,null,null,null,null,null,null,null,null,null,null,null,null,null,null,null,null,null,null,null,null,null,null,null,null,null,null,null,null,null,null,null,null,null,null,null,null,null,null,null,null,null,null,null,null,null,null,null,null,null,null,null,null,null,null,null,null,null,"Ventilation Heat Losses QV annual",null,null,null,"Annual heating","Q38","Annual heating","Q38","Annual heating","Q40",null,null,null,null,{"$f":"IF($BX$16=\"\",\"'\",\"'[\"&$BX$16&\"]\")&(OFFSET($BW244,0,$BZ$18))&\"'!\"&OFFSET($BX244,0,$BZ$18)","v":{"$error":"#REF!"}},null,null,null,{"$f":"IF(INDIRECT(CG244)=\"\",0,INDIRECT(CG244))","v":{"$error":"#REF!"}}]
[null,null,null,null,null,null,null,null,null,null,null,null,null,null,null,null,null,null,null,null,null,null,null,null,null,null,null,null,null,null,null,null,null,null,null,null,null,null,null,null,null,null,null,null,null,null,null,null,null,null,null,null,null,null,null,null,null,null,null,null,null,null,null,null,null,null,null,null,null,null,"Trans. Heat loss annual",null,null,null,"Annual heating","Q25","Annual heating","Q25","Annual heating","Q25",null,null,null,null,{"$error":"#REF!"},null,null,null,{"$error":"#REF!"}]
[null,null,null,null,null,null,null,null,null,null,null,null,null,null,null,null,null,null,null,null,null,null,null,null,null,null,null,null,null,null,null,null,null,null,null,null,null,null,null,null,null,null,null,null,null,null,null,null,null,null,null,null,null,null,null,null,null,null,null,null,null,null,null,null,null,null,null,null,null,null,"Int. Gains annual",null,null,null,"Annual heating","Q59","Annual heating","Q59","Annual heating","Q61",null,null,null,null,{"$error":"#REF!"},null,null,null,{"$error":"#REF!"}]
[null,null,null,null,null,null,null,null,null,null,null,null,null,null,null,null,null,null,null,null,null,null,null,null,null,null,null,null,null,null,null,null,null,null,null,null,null,null,null,null,null,null,null,null,null,null,null,null,null,null,null,null,null,null,null,null,null,null,null,null,null,null,null,null,null,null,null,null,null,null,"Solar gains annual",null,null,null,"Annual heating","Q55","Annual heating","Q55","Annual heating","Q57",null,null,null,null,{"$error":"#REF!"},null,null,null,{"$error":"#REF!"}]
[null,null,null,null,null,null,null,null,null,null,null,null,null,null,null,null,null,null,null,null,null,null,null,null,null,null,null,null,null,null,null,null,null,null,null,null,null,null,null,null,null,null,null,null,null,null,null,null,null,null,null,null,null,null,null,null,null,null,null,null,null,null,null,null,null,null,null,null,null,null,"Total losses annual",null,null,null,"Annual heating","Q43","Annual heating","Q43","Annual heating","Q42",null,null,null,null,{"$error":"#REF!"},null,null,null,{"$error":"#REF!"}]
[null,null,null,null,null,null,null,null,null,null,null,null,null,null,null,null,null,null,null,null,null,null,null,null,null,null,null,null,null,null,null,null,null,null,null,null,null,null,null,null,null,null,null,null,null,null,null,null,null,null,null,null,null,null,null,null,null,null,null,null,null,null,null,null,null,null,null,null,null,null,"Total gains annual",null,null,null,"Annual heating","Q68","Annual heating","Q68","Annual heating","Q70",null,null,null,null,{"$error":"#REF!"},null,null,null,{"$error":"#REF!"}]
[null,null,null,null,null,null,null,null,null,null,null,null,null,null,null,null,null,null,null,null,null,null,null,null,null,null,null,null,null,null,null,null,null,null,null,null,null,null,null,null,null,null,null,null,null,null,null,null,null,null,null,null,null,null,null,null,null,null,null,null,null,null,null,null,null,null,null,null,null,null,"Toal heat demand annual",null,null,null,"Annual heating","Q71","Annual heating","Q71","Annual heating","Q74",null,null,null,null,{"$error":"#REF!"},null,null,null,{"$error":"#REF!"}]
[]
[null,null,null,null,null,null,null,null,null,null,null,null,null,null,null,null,null,null,null,null,null,null,null,null,null,null,null,null,null,null,null,null,null,null,null,null,null,null,null,null,null,null,null,null,null,null,null,null,null,null,null,null,null,null,null,null,null,null,null,null,null,null,null,null,null,null,null,null,null,null,"PER ANALYSIS"]
[null,null,null,null,null,null,null,null,null,null,null,null,null,null,null,null,null,null,null,null,null,null,null,null,null,null,null,null,null,null,null,null,null,null,null,null,null,null,null,null,null,null,null,null,null,null,null,null,null,null,null,null,null,null,null,null,null,null,null,null,null,null,null,null,null,null,null,null,null,null,"Heating",null,null,null,"PER","U20","PER","W20","PER","V30",null,null,null,null,{"$f":"IF($BX$16=\"\",\"'\",\"'[\"&$BX$16&\"]\")&(OFFSET($BW253,0,$BZ$18))&\"'!\"&OFFSET($BX253,0,$BZ$18)","v":{"$error":"#REF!"}},null,null,null,{"$f":"IF(INDIRECT(CG253)=\"\",0,INDIRECT(CG253))","v":{"$error":"#REF!"}}]
[null,null,null,null,null,null,null,null,null,null,null,null,null,null,null,null,null,null,null,null,null,null,null,null,null,null,null,null,null,null,null,null,null,null,null,null,null,null,null,null,null,null,null,null,null,null,null,null,null,null,null,null,null,null,null,null,null,null,null,null,null,null,null,null,null,null,null,null,null,null,"Cooling/dehum.",null,null,null,"PER","U33","PER","W32","PER","V39",null,null,null,null,{"$error":"#REF!"},null,null,null,{"$error":"#REF!"}]
[null,null,null,null,null,null,null,null,null,null,null,null,null,null,null,null,null,null,null,null,null,null,null,null,null,null,null,null,null,null,null,null,null,null,null,null,null,null,null,null,null,null,null,null,null,null,null,null,null,null,null,null,null,null,null,null,null,null,null,null,null,null,null,null,null,null,null,null,null,null,"DHW",null,null,null,"PER","U39","PER","W38","PER","V52",null,null,null,null,{"$error":"#REF!"},null,null,null,{"$error":"#REF!"}]
[null,null,null,null,null,null,null,null,null,null,null,null,null,null,null,null,null,null,null,null,null,null,null,null,null,null,null,null,null,null,null,null,null,null,null,null,null,null,null,null,null,null,null,null,null,null,null,null,null,null,null,null,null,null,null,null,null,null,null,null,null,null,null,null,null,null,null,null,null,null,"Lighting/unregulated",null,null,null,"PER","U51","PER","W50","PER","V58",null,null,null,null,{"$error":"#REF!"},null,null,null,{"$error":"#REF!"}]
[null,null,null,null,null,null,null,null,null,null,null,null,null,null,null,null,null,null,null,null,null,null,null,null,null,null,null,null,null,null,null,null,null,null,null,null,null,null,null,null,null,null,null,null,null,null,null,null,null,null,null,null,null,null,null,null,null,null,null,null,null,null,null,null,null,null,null,null,null,null,{"$f":"IF(CK257>0,\"Gas for cooking\",\"\")","v":{"$error":"#REF!"}},"(Gas for cooking)",null,null,"PER","U55","PER","W54","PER","V63",null,null,null,null,{"$error":"#REF!"},null,null,null,{"$error":"#REF!"}]
[null,null,null,null,null,null,null,null,null,null,null,null,null,null,null,null,null,null,null,null,null,null,null,null,null,null,null,null,null,null,null,null,null,null,null,null,null,null,null,null,null,null,null,null,null,null,null,null,null,null,null,null,null,null,null,null,null,null,null,null,null,null,null,null,null,null,null,null,null,null,"Points for PER graph dem: zero",null,null,null,"PER","V74","PER","X73","PER","AW93",null,null,null,null,{"$error":"#REF!"},null,null,null,{"$error":"#REF!"}]
[null,null,null,null,null,null,null,null,null,null,null,null,null,null,null,null,null,null,null,null,null,null,null,null,null,null,null,null,null,null,null,null,null,null,null,null,null,null,null,null,null,null,null,null,null,null,null,null,null,null,null,null,null,null,null,null,null,null,null,null,null,null,null,null,null,null,null,null,null,null,"Points for PER graph dem: Premium flexible minimum",null,null,null,"PER","V75","PER","X74","PER","AW82",null,null,null,null,{"$error":"#REF!"},null,null,null,{"$error":"#REF!"}]
[null,null,null,null,null,null,null,null,null,null,null,null,null,null,null,null,null,null,null,null,null,null,null,null,null,null,null,null,null,null,null,null,null,null,null,null,null,null,null,null,null,null,null,null,null,null,null,null,null,null,null,null,null,null,null,null,null,null,null,null,null,null,null,null,null,null,null,null,null,null,"Points for PER graph dem: Plus flexible minimum",null,null,null,"PER","X75","PER","Z74","PER","AW88",null,null,null,null,{"$error":"#REF!"},null,null,null,{"$error":"#REF!"}]
[null,null,null,null,null,null,null,null,null,null,null,null,null,null,null,null,null,null,null,null,null,null,null,null,null,null,null,null,null,null,null,null,null,null,null,null,null,null,null,null,null,null,null,null,null,null,null,null,null,null,null,null,null,null,null,null,null,null,null,null,null,null,null,null,null,null,null,null,null,null,"Points for PER graph dem: Premium flexible maximum",null,null,null,"PER","V77","PER","X76","PER","AW84",null,null,null,null,{"$error":"#REF!"},null,null,null,{"$error":"#REF!"}]
[null,null,null,null,null,null,null,null,null,null,null,null,null,null,null,null,null,null,null,null,null,null,null,null,null,null,null,null,null,null,null,null,null,null,null,null,null,null,null,null,null,null,null,null,null,null,null,null,null,null,null,null,null,null,null,null,null,null,null,null,null,null,null,null,null,null,null,null,null,null,"Points for PER graph dem: Classic flexible minimum",null,null,null,"PER","V81","PER","X80","PER","AW94",null,null,null,null,{"$error":"#REF!"},null,null,null,{"$error":"#REF!"}]
[null,null,null,null,null,null,null,null,null,null,null,null,null,null,null,null,null,null,null,null,null,null,null,null,null,null,null,null,null,null,null,null,null,null,null,null,null,null,null,null,null,null,null,null,null,null,null,null,null,null,null,null,null,null,null,null,null,null,null,null,null,null,null,null,null,null,null,null,null,null,"Points for PER graph dem: Classic flexible maximum",null,null,null,"PER","V83","PER","X82","PER","AW96",null,null,null,null,{"$error":"#REF!"},null,null,null,{"$error":"#REF!"}]
[null,null,null,null,null,null,null,null,null,null,null,null,null,null,null,null,null,null,null,null,null,null,null,null,null,null,null,null,null,null,null,null,null,null,null,null,null,null,null,null,null,null,null,null,null,null,null,null,null,null,null,null,null,null,null,null,null,null,null,null,null,null,null,null,null,null,null,null,null,null,"Points for PER graph dem: PHI LEB flexible maximum",null,null,null,"PER","X83","PER","Z82","PER","AW102",null,null,null,null,{"$error":"#REF!"},null,null,null,{"$error":"#REF!"}]
[null,null,null,null,null,null,null,null,null,null,null,null,null,null,null,null,null,null,null,null,null,null,null,null,null,null,null,null,null,null,null,null,null,null,null,null,null,null,null,null,null,null,null,null,null,null,null,null,null,null,null,null,null,null,null,null,null,null,null,null,null,null,null,null,null,null,null,null,null,null,"Points for PER graph gen: Premium",null,null,null,"PER","W74","PER","Y73","PER","AX81",null,null,null,null,{"$error":"#REF!"},null,null,null,{"$error":"#REF!"}]
[null,null,null,null,null,null,null,null,null,null,null,null,null,null,null,null,null,null,null,null,null,null,null,null,null,null,null,null,null,null,null,null,null,null,null,null,null,null,null,null,null,null,null,null,null,null,null,null,null,null,null,null,null,null,null,null,null,null,null,null,null,null,null,null,null,null,null,null,null,null,"Points for PER graph gen: Premium",null,null,null,"PER","W75","PER","Y74","PER","AX82",null,null,null,null,{"$error":"#REF!"},null,null,null,{"$error":"#REF!"}]
[null,null,null,null,null,null,null,null,null,null,null,null,null,null,null,null,null,null,null,null,null,null,null,null,null,null,null,null,null,null,null,null,null,null,null,null,null,null,null,null,null,null,null,null,null,null,null,null,null,null,null,null,null,null,null,null,null,null,null,null,null,null,null,null,null,null,null,null,null,null,"Points for PER graph gen: Premium",null,null,null,"PER","W76","PER","Y75","PER","AX83",null,null,null,null,{"$error":"#REF!"},null,null,null,{"$error":"#REF!"}]
[null,null,null,null,null,null,null,null,null,null,null,null,null,null,null,null,null,null,null,null,null,null,null,null,null,null,null,null,null,null,null,null,null,null,null,null,null,null,null,null,null,null,null,null,null,null,null,null,null,null,null,null,null,null,null,null,null,null,null,null,null,null,null,null,null,null,null,null,null,null,"Points for PER graph gen: Premium",null,null,null,"PER","W77","PER","Y76","PER","AX84",null,null,null,null,{"$error":"#REF!"},null,null,null,{"$error":"#REF!"}]
[null,null,null,null,null,null,null,null,null,null,null,null,null,null,null,null,null,null,null,null,null,null,null,null,null,null,null,null,null,null,null,null,null,null,null,null,null,null,null,null,null,null,null,null,null,null,null,null,null,null,null,null,null,null,null,null,null,null,null,null,null,null,null,null,null,null,null,null,null,null,"Points for PER graph gen: Premium",null,null,null,"PER","W78","PER","Y77","PER","AX85",null,null,null,null,{"$error":"#REF!"},null,null,null,{"$error":"#REF!"}]
[null,null,null,null,null,null,null,null,null,null,null,null,null,null,null,null,null,null,null,null,null,null,null,null,null,null,null,null,null,null,null,null,null,null,null,null,null,null,null,null,null,null,null,null,null,null,null,null,null,null,null,null,null,null,null,null,null,null,null,null,null,null,null,null,null,null,null,null,null,null,"Points for PER graph gen: Plus",null,null,null,"PER","Y74","PER","AA73","PER","AX87",null,null,null,null,{"$error":"#REF!"},null,null,null,{"$error":"#REF!"}]
[null,null,null,null,null,null,null,null,null,null,null,null,null,null,null,null,null,null,null,null,null,null,null,null,null,null,null,null,null,null,null,null,null,null,null,null,null,null,null,null,null,null,null,null,null,null,null,null,null,null,null,null,null,null,null,null,null,null,null,null,null,null,null,null,null,null,null,null,null,null,"Points for PER graph gen: Plus",null,null,null,"PER","Y75","PER","AA74","PER","AX88",null,null,null,null,{"$error":"#REF!"},null,null,null,{"$error":"#REF!"}]
[null,null,null,null,null,null,null,null,null,null,null,null,null,null,null,null,null,null,null,null,null,null,null,null,null,null,null,null,null,null,null,null,null,null,null,null,null,null,null,null,null,null,null,null,null,null,null,null,null,null,null,null,null,null,null,null,null,null,null,null,null,null,null,null,null,null,null,null,null,null,"Points for PER graph gen: Plus",null,null,null,"PER","Y76","PER","AA75","PER","AX89",null,null,null,null,{"$error":"#REF!"},null,null,null,{"$error":"#REF!"}]
[null,null,null,null,null,null,null,null,null,null,null,null,null,null,null,null,null,null,null,null,null,null,null,null,null,null,null,null,null,null,null,null,null,null,null,null,null,null,null,null,null,null,null,null,null,null,null,null,null,null,null,null,null,null,null,null,null,null,null,null,null,null,null,null,null,null,null,null,null,null,"Points for PER graph gen: Plus",null,null,null,"PER","Y77","PER","AA76","PER","AX90",null,null,null,null,{"$error":"#REF!"},null,null,null,{"$error":"#REF!"}]
[null,null,null,null,null,null,null,null,null,null,null,null,null,null,null,null,null,null,null,null,null,null,null,null,null,null,null,null,null,null,null,null,null,null,null,null,null,null,null,null,null,null,null,null,null,null,null,null,null,null,null,null,null,null,null,null,null,null,null,null,null,null,null,null,null,null,null,null,null,null,"Points for PER graph gen: Plus",null,null,null,"PER","Y78","PER","AA77","PER","AX91",null,null,null,null,{"$error":"#REF!"},null,null,null,{"$error":"#REF!"}]
[null,null,null,null,null,null,null,null,null,null,null,null,null,null,null,null,null,null,null,null,null,null,null,null,null,null,null,null,null,null,null,null,null,null,null,null,null,null,null,null,null,null,null,null,null,null,null,null,null,null,null,null,null,null,null,null,null,null,null,null,null,null,null,null,null,null,null,null,null,null,"Points for PER graph gen: Classic",null,null,null,"PER","W80","PER","Y79","PER","AX93",null,null,null,null,{"$error":"#REF!"},null,null,null,{"$error":"#REF!"}]
[null,null,null,null,null,null,null,null,null,null,null,null,null,null,null,null,null,null,null,null,null,null,null,null,null,null,null,null,null,null,null,null,null,null,null,null,null,null,null,null,null,null,null,null,null,null,null,null,null,null,null,null,null,null,null,null,null,null,null,null,null,null,null,null,null,null,null,null,null,null,"Points for PER graph gen: Classic",null,null,null,"PER","W81","PER","Y80","PER","AX94",null,null,null,null,{"$error":"#REF!"},null,null,null,{"$error":"#REF!"}]
[null,null,null,null,null,null,null,null,null,null,null,null,null,null,null,null,null,null,null,null,null,null,null,null,null,null,null,null,null,null,null,null,null,null,null,null,null,null,null,null,null,null,null,null,null,null,null,null,null,null,null,null,null,null,null,null,null,null,null,null,null,null,null,null,null,null,null,null,null,null,"Points for PER graph gen: Classic",null,null,null,"PER","W82","PER","Y81","PER","AX95",null,null,null,null,{"$error":"#REF!"},null,null,null,{"$error":"#REF!"}]
[null,null,null,null,null,null,null,null,null,null,null,null,null,null,null,null,null,null,null,null,null,null,null,null,null,null,null,null,null,null,null,null,null,null,null,null,null,null,null,null,null,null,null,null,null,null,null,null,null,null,null,null,null,null,null,null,null,null,null,null,null,null,null,null,null,null,null,null,null,null,"Points for PER graph gen: Classic",null,null,null,"PER","W83","PER","Y82","PER","AX96",null,null,null,null,{"$error":"#REF!"},null,null,null,{"$error":"#REF!"}]
[null,null,null,null,null,null,null,null,null,null,null,null,null,null,null,null,null,null,null,null,null,null,null,null,null,null,null,null,null,null,null,null,null,null,null,null,null,null,null,null,null,null,null,null,null,null,null,null,null,null,null,null,null,null,null,null,null,null,null,null,null,null,null,null,null,null,null,null,null,null,"Points for PER graph gen: Classic",null,null,null,"PER","W84","PER","Y83","PER","AX97",null,null,null,null,{"$error":"#REF!"},null,null,null,{"$error":"#REF!"}]
[null,null,null,null,null,null,null,null,null,null,null,null,null,null,null,null,null,null,null,null,null,null,null,null,null,null,null,null,null,null,null,null,null,null,null,null,null,null,null,null,null,null,null,null,null,null,null,null,null,null,null,null,null,null,null,null,null,null,null,null,null,null,null,null,null,null,null,null,null,null,"Points for PER graph gen: LEB",null,null,null,"PER","Y80","PER","AA79","PER","AX99",null,null,null,null,{"$error":"#REF!"},null,null,null,{"$error":"#REF!"}]
[null,null,null,null,null,null,null,null,null,null,null,null,null,null,null,null,null,null,null,null,null,null,null,null,null,null,null,null,null,null,null,null,null,null,null,null,null,null,null,null,null,null,null,null,null,null,null,null,null,null,null,null,null,null,null,null,null,null,null,null,null,null,null,null,null,null,null,null,null,null,"Points for PER graph gen: LEB",null,null,null,"PER","Y81","PER","AA80","PER","AX100",null,null,null,null,{"$error":"#REF!"},null,null,null,{"$error":"#REF!"}]
[null,null,null,null,null,null,null,null,null,null,null,null,null,null,null,null,null,null,null,null,null,null,null,null,null,null,null,null,null,null,null,null,null,null,null,null,null,null,null,null,null,null,null,null,null,null,null,null,null,null,null,null,null,null,null,null,null,null,null,null,null,null,null,null,null,null,null,null,null,null,"Points for PER graph gen: LEB",null,null,null,"PER","Y82","PER","AA81","PER","AX101",null,null,null,null,{"$error":"#REF!"},null,null,null,{"$error":"#REF!"}]
[null,null,null,null,null,null,null,null,null,null,null,null,null,null,null,null,null,null,null,null,null,null,null,null,null,null,null,null,null,null,null,null,null,null,null,null,null,null,null,null,null,null,null,null,null,null,null,null,null,null,null,null,null,null,null,null,null,null,null,null,null,null,null,null,null,null,null,null,null,null,"Points for PER graph gen: LEB",null,null,null,"PER","Y83","PER","AA82","PER","AX102",null,null,null,null,{"$error":"#REF!"},null,null,null,{"$error":"#REF!"}]
[null,null,null,null,null,null,null,null,null,null,null,null,null,null,null,null,null,null,null,null,null,null,null,null,null,null,null,null,null,null,null,null,null,null,null,null,null,null,null,null,null,null,null,null,null,null,null,null,null,null,null,null,null,null,null,null,null,null,null,null,null,null,null,null,null,null,null,null,null,null,"Points for PER graph gen: LEB",null,null,null,"PER","Y84","PER","AA83","PER","AX103",null,null,null,null,{"$error":"#REF!"},null,null,null,{"$error":"#REF!"}]
[null,null,null,null,null,null,null,null,null,null,null,null,null,null,null,null,null,null,null,null,null,null,null,null,null,null,null,null,null,null,null,null,null,null,null,null,null,null,null,null,null,null,null,null,null,null,null,null,null,null,null,null,null,null,null,null,null,null,null,null,null,null,null,null,null,null,null,null,null,null,"Names for PER graph: Premium",null,null,null,"PER","V73","PER","X72","PER","AW80",null,null,null,null,{"$error":"#REF!"},null,null,null,{"$error":"#REF!"}]
[null,null,null,null,null,null,null,null,null,null,null,null,null,null,null,null,null,null,null,null,null,null,null,null,null,null,null,null,null,null,null,null,null,null,null,null,null,null,null,null,null,null,null,null,null,null,null,null,null,null,null,null,null,null,null,null,null,null,null,null,null,null,null,null,null,null,null,null,null,null,"Names for PER graph: Plus",null,null,null,"PER","X73","PER","Z72","PER","AW86",null,null,null,null,{"$error":"#REF!"},null,null,null,{"$error":"#REF!"}]
[null,null,null,null,null,null,null,null,null,null,null,null,null,null,null,null,null,null,null,null,null,null,null,null,null,null,null,null,null,null,null,null,null,null,null,null,null,null,null,null,null,null,null,null,null,null,null,null,null,null,null,null,null,null,null,null,null,null,null,null,null,null,null,null,null,null,null,null,null,null,"Names for PER graph: Classic",null,null,null,"PER","V79","PER","X78","PER","AW92",null,null,null,null,{"$error":"#REF!"},null,null,null,{"$error":"#REF!"}]
[null,null,null,null,null,null,null,null,null,null,null,null,null,null,null,null,null,null,null,null,null,null,null,null,null,null,null,null,null,null,null,null,null,null,null,null,null,null,null,null,null,null,null,null,null,null,null,null,null,null,null,null,null,null,null,null,null,null,null,null,null,null,null,null,null,null,null,null,null,null,"Names for PER graph: LEB",null,null,null,"PER","X79","PER","Z78","PER","AW98",null,null,null,null,{"$error":"#REF!"},null,null,null,{"$f":"IF(INDIRECT(CG288)=\"\",\"\",INDIRECT(CG288))","v":{"$error":"#REF!"}}]
[]
[null,null,null,null,null,null,null,null,null,null,null,null,null,null,null,null,null,null,null,null,null,null,null,null,null,null,null,null,null,null,null,null,null,null,null,null,null,null,null,null,null,null,null,null,null,null,null,null,null,null,null,null,null,null,null,null,null,null,null,null,null,null,null,null,null,null,null,null,null,null,"SUMMERTIME OVERHEATING"]
[null,null,null,null,null,null,null,null,null,null,null,null,null,null,null,null,null,null,null,null,null,null,null,null,null,null,null,null,null,null,null,null,null,null,null,null,null,null,null,null,null,null,null,null,null,null,null,null,null,null,null,null,null,null,null,null,null,null,null,null,null,null,null,null,null,null,null,null,null,null,"Air changes MVHR or AHU",null,null,null,"SummVent","L20","SummVent","L20","SummVent","L14",null,null,null,null,{"$f":"IF($BX$16=\"\",\"'\",\"'[\"&$BX$16&\"]\")&(OFFSET($BW291,0,$BZ$18))&\"'!\"&OFFSET($BX291,0,$BZ$18)","v":{"$error":"#REF!"}},null,null,null,{"$f":"INDIRECT(CG291)","v":{"$error":"#REF!"}}]
[null,null,null,null,null,null,null,null,null,null,null,null,null,null,null,null,null,null,null,null,null,null,null,null,null,null,null,null,null,null,null,null,null,null,null,null,null,null,null,null,null,null,null,null,null,null,null,null,null,null,null,null,null,null,null,null,null,null,null,null,null,null,null,null,null,null,null,null,null,null,"Summer bypass enabled? (Yes/No)",null,null,null,"SummVent","R24","SummVent","R24","SummVent","R18",null,null,null,null,{"$error":"#REF!"},null,null,null,{"$error":"#REF!"}]
[null,null,null,null,null,null,null,null,null,null,null,null,null,null,null,null,null,null,null,null,null,null,null,null,null,null,null,null,null,null,null,null,null,null,null,null,null,null,null,null,null,null,null,null,null,null,null,null,null,null,null,null,null,null,null,null,null,null,null,null,null,null,null,null,null,null,null,null,null,null,"Air changes extract-only system",null,null,null,"SummVent","L27","SummVent","L27","SummVent","L21",null,null,null,null,{"$error":"#REF!"},null,null,null,{"$error":"#REF!"}]
[null,null,null,null,null,null,null,null,null,null,null,null,null,null,null,null,null,null,null,null,null,null,null,null,null,null,null,null,null,null,null,null,null,null,null,null,null,null,null,null,null,null,null,null,null,null,null,null,null,null,null,null,null,null,null,null,null,null,null,null,null,null,null,null,null,null,null,null,null,null,"Air changes window ventilation (24-hour)",null,null,null,"SummVent","L31","SummVent","L31","SummVent","L25",null,null,null,null,{"$error":"#REF!"},null,null,null,{"$error":"#REF!"}]
[null,null,null,null,null,null,null,null,null,null,null,null,null,null,null,null,null,null,null,null,null,null,null,null,null,null,null,null,null,null,null,null,null,null,null,null,null,null,null,null,null,null,null,null,null,null,null,null,null,null,null,null,null,null,null,null,null,null,null,null,null,null,null,null,null,null,null,null,null,null,"Air changes additional night-time window opening",null,null,null,"SummVent","P59","SummVent","P59","SummVent","O53",null,null,null,null,{"$error":"#REF!"},null,null,null,{"$error":"#REF!"}]
[null,null,null,null,null,null,null,null,null,null,null,null,null,null,null,null,null,null,null,null,null,null,null,null,null,null,null,null,null,null,null,null,null,null,null,null,null,null,null,null,null,null,null,null,null,null,null,null,null,null,null,null,null,null,null,null,null,null,null,null,null,null,null,null,null,null,null,null,null,null,"Air changes additional mech. ventilation, automatic",null,null,null,"SummVent","P61","SummVent","P61","SummVent","O55",null,null,null,null,{"$error":"#REF!"},null,null,null,{"$error":"#REF!"}]
[]
[]
[]
[]
[]
[]
[]
[]
[]
[null,null,null,null,null,null,null,null,null,null,null,null,null,null,null,null,null,null,null,null,null,null,null,null,null,null,null,null,null,null,null,null,null,null,null,null,null,null,null,null,null,null,null,null,null,null,null,null,null,null,null,null,null,null,null,null,null,null,null,null,null,null,null,null,null,null,null,null,null,null,"Heating load",null,null,null,"Heating Load","Q93","Heating Load","Q93","Heating Load","Q91",null,null,null,null,{"$f":"IF($BX$16=\"\",\"'\",\"'[\"&$BX$16&\"]\")&(OFFSET($BW306,0,$BZ$18))&\"'!\"&OFFSET($BX306,0,$BZ$18)","v":{"$error":"#REF!"}},null,null,null,{"$f":"INDIRECT(CG306)","v":{"$error":"#REF!"}}]
[null,null,null,null,null,null,null,null,null,null,null,null,null,null,null,null,null,null,null,null,null,null,null,null,null,null,null,null,null,null,null,null,null,null,null,null,null,null,null,null,null,null,null,null,null,null,null,null,null,null,null,null,null,null,null,null,null,null,null,null,null,null,null,null,null,null,null,null,null,null,"Heating load transportable by vent air",null,null,null,"Heating Load","Q98","Heating Load","Q98","Heating Load","Q98",null,null,null,null,{"$error":"#REF!"},null,null,null,{"$error":"#REF!"}]
[null,null,null,null,null,null,null,null,null,null,null,null,null,null,null,null,null,null,null,null,null,null,null,null,null,null,null,null,null,null,null,null,null,null,null,null,null,null,null,null,null,null,null,null,null,null,null,null,null,null,null,null,null,null,null,null,null,null,null,null,null,null,null,null,null,null,null,null,null,null,"Cooling demand",null,null,null,"Cooling","Q88","Cooling","Q88","Cooling","Q88",null,null,null,null,{"$error":"#REF!"},null,null,null,{"$error":"#REF!"}]
[null,null,null,null,null,null,null,null,null,null,null,null,null,null,null,null,null,null,null,null,null,null,null,null,null,null,null,null,null,null,null,null,null,null,null,null,null,null,null,null,null,null,null,null,null,null,null,null,null,null,null,null,null,null,null,null,null,null,null,null,null,null,null,null,null,null,null,null,null,null,"Cooling load",null,null,null,"Cooling load","Q64","Cooling load","Q64","Cooling load","Q67",null,null,null,null,{"$error":"#REF!"},null,null,null,{"$error":"#REF!"}]
[null,null,null,null,null,null,null,null,null,null,null,null,null,null,null,null,null,null,null,null,null,null,null,null,null,null,null,null,null,null,null,null,null,null,null,null,null,null,null,null,null,null,null,null,null,null,null,null,null,null,null,null,null,null,null,null,null,null,null,null,null,null,null,null,null,null,null,null,null,null,"Overheating %",null,null,null,"Summer","I60","Summer","I60","Summer","I62",null,null,null,null,{"$error":"#REF!"},null,null,null,{"$error":"#REF!"}]
[null,null,null,null,null,null,null,null,null,null,null,null,null,null,null,null,null,null,null,null,null,null,null,null,null,null,null,null,null,null,null,null,null,null,null,null,null,null,null,null,null,null,null,null,null,null,null,null,null,null,null,null,null,null,null,null,null,null,null,null,null,null,null,null,null,null,null,null,null,null,"Building Energy Standard",null,null,null,"Verification","R77","Verification","R78","Verification","T11",null,null,null,null,{"$error":"#REF!"},null,null,null,{"$error":"#REF!"}]
[null,null,null,null,null,null,null,null,null,null,null,null,null,null,null,null,null,null,null,null,null,null,null,null,null,null,null,null,null,null,null,null,null,null,null,null,null,null,null,null,null,null,null,null,null,null,null,null,null,null,null,null,null,null,null,null,null,null,null,null,null,null,null,null,null,null,null,null,null,null,"PH Class",null,null,null,"Verification","R79","Verification","R80","Verification","T14",null,null,null,null,{"$error":"#REF!"},null,null,null,{"$error":"#REF!"}]
[]
[null,null,null,null,null,null,null,null,null,null,null,null,null,null,null,null,null,null,null,null,null,null,null,null,null,null,null,null,null,null,null,null,null,null,null,null,null,null,null,null,null,null,null,null,null,null,null,null,null,null,null,null,null,null,null,null,null,null,null,null,null,null,null,null,null,null,null,null,null,null,"Other version options",null,null,null,null,null,null,null,null,null,null,null,null,null,"DON’T COPY FORMULAE FROM ABOVE - THEY ARE DIFFERENT"]
[null,null,null,null,null,null,null,null,null,null,null,null,null,null,null,null,null,null,null,null,null,null,null,null,null,null,null,null,null,null,null,null,null,null,null,null,null,null,null,null,null,null,null,null,null,null,null,null,null,null,null,null,null,null,null,null,null,null,null,null,null,null,null,null,null,null,null,null,null,null,null,null,null,"Window sum area rows",null,10,null,10,null,10,null,null,null,null,{"$f":"(OFFSET($BX315,0,$BZ$18))","v":{"$error":"#REF!"}},null,null,null,{"$f":"CG315","v":{"$error":"#REF!"}}]
[null,null,null,null,null,null,null,null,null,null,null,null,null,null,null,null,null,null,null,null,null,null,null,null,null,null,null,null,null,null,null,null,null,null,null,null,null,null,null,null,null,null,null,null,null,null,null,null,null,null,null,null,null,null,null,null,null,null,null,null,null,null,null,null,null,null,null,null,null,null,null,null,null,"Window sum area rows",null,11,null,11,null,11,null,null,null,null,{"$f":"(OFFSET($BX316,0,$BZ$18))","v":{"$error":"#REF!"}},null,null,null,{"$error":"#REF!"}]
[null,null,null,null,null,null,null,null,null,null,null,null,null,null,null,null,null,null,null,null,null,null,null,null,null,null,null,null,null,null,null,null,null,null,null,null,null,null,null,null,null,null,null,null,null,null,null,null,null,null,null,null,null,null,null,null,null,null,null,null,null,null,null,null,null,null,null,null,null,null,null,null,null,"Window sum area rows",null,12,null,12,null,12,null,null,null,null,{"$f":"(OFFSET($BX317,0,$BZ$18))","v":{"$error":"#REF!"}},null,null,null,{"$error":"#REF!"}]
[null,null,null,null,null,null,null,null,null,null,null,null,null,null,null,null,null,null,null,null,null,null,null,null,null,null,null,null,null,null,null,null,null,null,null,null,null,null,null,null,null,null,null,null,null,null,null,null,null,null,null,null,null,null,null,null,null,null,null,null,null,null,null,null,null,null,null,null,null,null,null,null,null,"Window sum area rows",null,13,null,13,null,13,null,null,null,null,{"$f":"(OFFSET($BX318,0,$BZ$18))","v":{"$error":"#REF!"}},null,null,null,{"$error":"#REF!"}]
[null,null,null,null,null,null,null,null,null,null,null,null,null,null,null,null,null,null,null,null,null,null,null,null,null,null,null,null,null,null,null,null,null,null,null,null,null,null,null,null,null,null,null,null,null,null,null,null,null,null,null,null,null,null,null,null,null,null,null,null,null,null,null,null,null,null,null,null,null,null,null,null,null,"Window sum area rows",null,14,null,14,null,14,null,null,null,null,{"$f":"(OFFSET($BX319,0,$BZ$18))","v":{"$error":"#REF!"}},null,null,null,{"$error":"#REF!"}]
[null,null,null,null,null,null,null,null,null,null,null,null,null,null,null,null,null,null,null,null,null,null,null,null,null,null,null,null,null,null,null,null,null,null,null,null,null,null,null,null,null,null,null,null,null,null,null,null,null,null,null,null,null,null,null,null,null,null,null,null,null,null,null,null,null,null,null,null,null,null,null,null,null,null,null,null,null,null,null,null,null,null,null,null,null,null,null,null,0]
[null,null,null,null,null,null,null,null,null,null,null,null,null,null,null,null,null,null,null,null,null,null,null,null,null,null,null,null,null,null,null,null,null,null,null,null,null,null,null,null,null,null,null,null,null,null,null,null,null,null,null,null,null,null,null,null,null,null,null,null,null,null,null,null,null,null,null,null,null,null,null,null,null,"Window sheet start row",null,24,null,24,null,23,null,null,null,null,{"$f":"(OFFSET($BX321,0,$BZ$18))","v":{"$error":"#REF!"}},null,null,null,{"$error":"#REF!"}]
[null,null,null,null,null,null,null,null,null,null,null,null,null,null,null,null,null,null,null,null,null,null,null,null,null,null,null,null,null,null,null,null,null,null,null,null,null,null,null,null,null,null,null,null,null,null,null,null,null,null,null,null,null,null,null,null,null,null,null,null,null,null,null,null,null,null,null,null,null,null,null,null,null,"Shading sheet start row",null,17,null,17,null,23,null,null,null,null,{"$f":"(OFFSET($BX322,0,$BZ$18))","v":{"$error":"#REF!"}},null,null,null,{"$error":"#REF!"}]
[null,null,null,null,null,null,null,null,null,null,null,null,null,null,null,null,null,null,null,null,null,null,null,null,null,null,null,null,null,null,null,null,null,null,null,null,null,null,null,null,null,null,null,null,null,null,null,null,null,null,null,null,null,null,null,null,null,null,null,null,null,null,null,null,null,null,null,null,null,null,null,null,null,null,null,null,null,null,null,null,null,null,null,null,null,null,null,null,0]
[null,null,null,null,null,null,null,null,null,null,null,null,null,null,null,null,null,null,null,null,null,null,null,null,null,null,null,null,null,null,null,null,null,null,null,null,null,null,null,null,null,null,null,null,null,null,null,null,null,null,null,null,null,null,null,null,null,null,null,null,null,null,null,null,null,null,null,null,null,null,null,null,null,"Win global radiation col.",null,13,null,13,null,13,null,null,null,null,{"$f":"(OFFSET($BX324,0,$BZ$18))","v":{"$error":"#REF!"}},null,null,null,{"$error":"#REF!"}]
[null,null,null,null,null,null,null,null,null,null,null,null,null,null,null,null,null,null,null,null,null,null,null,null,null,null,null,null,null,null,null,null,null,null,null,null,null,null,null,null,null,null,null,null,null,null,null,null,null,null,null,null,null,null,null,null,null,null,null,null,null,null,null,null,null,null,null,null,null,null,null,null,null,null,null,null,null,null,null,null,null,null,null,null,null,null,null,null,0]
[null,null,null,null,null,null,null,null,null,null,null,null,null,null,null,null,null,null,null,null,null,null,null,null,null,null,null,null,null,null,null,null,null,null,null,null,null,null,null,null,null,null,null,null,null,null,null,null,null,null,null,null,null,null,null,null,null,null,null,null,null,null,null,null,null,null,null,null,null,null,null,null,null,null,null,null,null,null,null,null,null,null,null,null,null,null,null,null,0]
[null,null,null,null,null,null,null,null,null,null,null,null,null,null,null,null,null,null,null,null,null,null,null,null,null,null,null,null,null,null,null,null,null,null,null,null,null,null,null,null,null,null,null,null,null,null,null,null,null,null,null,null,null,null,null,null,null,null,null,null,null,null,null,null,null,null,null,null,null,null,null,null,null,null,null,null,null,null,null,null,null,null,null,null,null,null,null,null,0]
[null,null,null,null,null,null,null,null,null,null,null,null,null,null,null,null,null,null,null,null,null,null,null,null,null,null,null,null,null,null,null,null,null,null,null,null,null,null,null,null,null,null,null,null,null,null,null,null,null,null,null,null,null,null,null,null,null,null,null,null,null,null,null,null,null,null,null,null,null,null,null,null,null,null,null,null,null,null,null,null,null,null,null,null,null,null,null,null,0]
[]
[null,null,null,null,null,null,null,null,null,null,null,null,null,null,null,null,null,null,null,null,null,null,null,null,null,null,null,null,null,null,null,null,null,null,null,null,null,null,null,null,null,null,null,null,null,null,null,null,null,null,null,null,null,null,null,null,null,null,null,null,null,null,null,null,null,null,null,null,null,null,"Version History"]
[null,null,null,null,null,null,null,null,null,null,null,null,null,null,null,null,null,null,null,null,null,null,null,null,null,null,null,null,null,null,null,null,null,null,null,null,null,null,null,null,null,null,null,null,null,null,null,null,null,null,null,null,null,null,null,null,null,null,null,null,null,null,null,null,null,null,null,null,null,null,5,"reference formula for annual heating demand corrected for version PHPP 1.2.1"]
[null,null,null,null,null,null,null,null,null,null,null,null,null,null,null,null,null,null,null,null,null,null,null,null,null,null,null,null,null,null,null,null,null,null,null,null,null,null,null,null,null,null,null,null,null,null,null,null,null,null,null,null,null,null,null,null,null,null,null,null,null,null,null,null,null,null,null,null,null,null,5.3,"reformatted, bug fixes, multiple PHPP version support"]
[null,null,null,null,null,null,null,null,null,null,null,null,null,null,null,null,null,null,null,null,null,null,null,null,null,null,null,null,null,null,null,null,null,null,null,null,null,null,null,null,null,null,null,null,null,null,null,null,null,null,null,null,null,null,null,null,null,null,null,null,null,null,null,null,null,null,null,null,null,null,"5.3.1","Thermal bridges text on graph set to appear if negative cell R14"]
[null,null,null,null,null,null,null,null,null,null,null,null,null,null,null,null,null,null,null,null,null,null,null,null,null,null,null,null,null,null,null,null,null,null,null,null,null,null,null,null,null,null,null,null,null,null,null,null,null,null,null,null,null,null,null,null,null,null,null,null,null,null,null,null,null,null,null,null,null,null,5.4,"V8 PHPP compatibility"]
[null,null,null,null,null,null,null,null,null,null,null,null,null,null,null,null,null,null,null,null,null,null,null,null,null,null,null,null,null,null,null,null,null,null,null,null,null,null,null,null,null,null,null,null,null,null,null,null,null,null,null,null,null,null,null,null,null,null,null,null,null,null,null,null,null,null,null,null,null,null,5.5,"Fixes and window sheet beta"]
[null,null,null,null,null,null,null,null,null,null,null,null,null,null,null,null,null,null,null,null,null,null,null,null,null,null,null,null,null,null,null,null,null,null,null,null,null,null,null,null,null,null,null,null,null,null,null,null,null,null,null,null,null,null,null,null,null,null,null,null,null,null,null,null,null,null,null,null,null,null,6.01,"Added new reporting sheets. Now PHPP 9 compatible. No longer functional for PHPP versions earlier than 8."]
[null,null,null,null,null,null,null,null,null,null,null,null,null,null,null,null,null,null,null,null,null,null,null,null,null,null,null,null,null,null,null,null,null,null,null,null,null,null,null,null,null,null,null,null,null,null,null,null,null,null,null,null,null,null,null,null,null,null,null,null,null,null,null,null,null,null,null,null,null,null,6.02,"Bug fix - heat loss pie chart colours"]
[null,null,null,null,null,null,null,null,null,null,null,null,null,null,null,null,null,null,null,null,null,null,null,null,null,null,null,null,null,null,null,null,null,null,null,null,null,null,null,null,null,null,null,null,null,null,null,null,null,null,null,null,null,null,null,null,null,null,null,null,null,null,null,null,null,null,null,null,null,null,6.03,"Minor big fixes incl. making compatible with PHPP 8.4"]
[null,null,null,null,null,null,null,null,null,null,null,null,null,null,null,null,null,null,null,null,null,null,null,null,null,null,null,null,null,null,null,null,null,null,null,null,null,null,null,null,null,null,null,null,null,null,null,null,null,null,null,null,null,null,null,null,null,null,null,null,null,null,null,null,null,null,null,null,null,null,6.04,"Minor bug fixes, add Macro button"]
[null,null,null,null,null,null,null,null,null,null,null,null,null,null,null,null,null,null,null,null,null,null,null,null,null,null,null,null,null,null,null,null,null,null,null,null,null,null,null,null,null,null,null,null,null,null,null,null,null,null,null,null,null,null,null,null,null,null,null,null,null,null,null,null,null,null,null,null,null,null,6.05,"Fix to work with PHPP 9.6"]
[null,null,null,null,null,null,null,null,null,null,null,null,null,null,null,null,null,null,null,null,null,null,null,null,null,null,null,null,null,null,null,null,null,null,null,null,null,null,null,null,null,null,null,null,null,null,null,null,null,null,null,null,null,null,null,null,null,null,null,null,null,null,null,null,null,null,null,null,null,null,6.06,"Bug fixes, incuding: fix MVHR duct specs and PE/PER display not working in PHPP 9.6, update to work with PHPP 8.4, additional usage instructions, results table error checks heating demand, overheating, PE and PER current results against most recent entry in table."]
[null,null,null,null,null,null,null,null,null,null,null,null,null,null,null,null,null,null,null,null,null,null,null,null,null,null,null,null,null,null,null,null,null,null,null,null,null,null,null,null,null,null,null,null,null,null,null,null,null,null,null,null,null,null,null,null,null,null,null,null,null,null,null,null,null,null,null,null,null,null,6.07,"Add in PER charts. New figures in current results table: PER generation, cooling demand, cooling load. PE figure above 135 kWh/m2a now turns red in PHPP 9.6."]
[null,null,null,null,null,null,null,null,null,null,null,null,null,null,null,null,null,null,null,null,null,null,null,null,null,null,null,null,null,null,null,null,null,null,null,null,null,null,null,null,null,null,null,null,null,null,null,null,null,null,null,null,null,null,null,null,null,null,null,null,null,null,null,null,null,null,null,null,null,null,7.01,"Make revision history work with PHPP 10.3"]
[null,null,null,null,null,null,null,null,null,null,null,null,null,null,null,null,null,null,null,null,null,null,null,null,null,null,null,null,null,null,null,null,null,null,null,null,null,null,null,null,null,null,null,null,null,null,null,null,null,null,null,null,null,null,null,null,null,null,null,null,null,null,null,null,null,null,null,null,null,null,7.02,"Make rest of results sheet work with PHPP 10.3"]
[null,null,null,null,null,null,null,null,null,null,null,null,null,null,null,null,null,null,null,null,null,null,null,null,null,null,null,null,null,null,null,null,null,null,null,null,null,null,null,null,null,null,null,null,null,null,null,null,null,null,null,null,null,null,null,null,null,null,null,null,null,null,null,null,null,null,null,null,null,null,7.03,"Repair bug where macro was not being run when button clicked."]
[null,null,null,null,null,null,null,null,null,null,null,null,null,null,null,null,null,null,null,null,null,null,null,null,null,null,null,null,null,null,null,null,null,null,null,null,null,null,null,null,null,null,null,null,null,null,null,null,null,null,null,null,null,null,null,null,null,null,null,null,null,null,null,null,null,null,null,null,null,null,7.04,"Revision History table: move heating load column to much more prominent position."]
[null,null,null,null,null,null,null,null,null,null,null,null,null,null,null,null,null,null,null,null,null,null,null,null,null,null,null,null,null,null,null,null,null,null,null,null,null,null,null,null,null,null,null,null,null,null,null,null,null,null,null,null,null,null,null,null,null,null,null,null,null,null,null,null,null,null,null,null,null,null,7.05,"Make it work with PHPP 10.4 (except the U-value calculation section doesn't work)"]
[null,null,null,null,null,null,null,null,null,null,null,null,null,null,null,null,null,null,null,null,null,null,null,null,null,null,null,null,null,null,null,null,null,null,null,null,null,null,null,null,null,null,null,null,null,null,null,null,null,null,null,null,null,null,null,null,null,null,null,null,null,null,null,null,null,null,null,null,null,null,7.06,"Correct issue where wall FHLF was not including window areas."]
[null,null,null,null,null,null,null,null,null,null,null,null,null,null,null,null,null,null,null,null,null,null,null,null,null,null,null,null,null,null,null,null,null,null,null,null,null,null,null,null,null,null,null,null,null,null,null,null,null,null,null,null,null,null,null,null,null,null,null,null,null,null,null,null,null,null,null,null,null,null,7.07,"Make it work with PHPP 10.6."]
[null,null,null,null,null,null,null,null,null,null,null,null,null,null,null,null,null,null,null,null,null,null,null,null,null,null,null,null,null,null,null,null,null,null,null,null,null,null,null,null,null,null,null,null,null,null,null,null,null,null,null,null,null,null,null,null,null,null,null,null,null,null,null,null,null,null,null,null,null,null,7.08,"Make roof FHLF work even when horizontal windows have been selected as being installed in an upstand build-up."]